Workbook

Sheet Parametrique
A1: CALCULS
C2: USD | D2: GBP | E2: CHF | F2: DKK | G2: SGD
B3: Portefeuille | C3: 5500000 | D3: -4500000 | E3: 2800000 | F3: 45000000 | G3: -8500000 | H3: PORTEFEUILLE
A4: Cours FX à la date | B4: =Histo!E9 -> 2015-01-02 | C4: =Histo!F9 -> 1.2043 | D4: =Histo!G9 -> 0.78 | E4: =Histo!H9 -> 1.2022 | F4: =Histo!I9 -> 9.042 | G4: =Histo!J9 -> 1.4841
A5: Contrevaleur Euro | C5: =C3/C4 -> 4566968.363 | D5: =D3/D4 -> -5769230.769 | E5: =E3/E4 -> 2329063.384 | F5: =F3/F4 -> 4976775.05 | G5: =G3/G4 -> -5727376.861 | H5: =SUM(C5:G5) -> 376199.1663 | I5: =form(H5) -> =SOMME(C5:G5)
A6: Cours FX à la date | B6: =Histo!E776 -> 2017-12-29 | C6: =Histo!F776 -> 1.1993 | D6: =Histo!G776 -> 0.88723 | E6: =Histo!H776 -> 1.1702 | F6: =Histo!I776 -> 9.8403 | G6: =Histo!J776 -> 1.5346
A7: Contrevaleur Euro | C7: =C3/C6 -> 4586008.505 | D7: =D3/D6 -> -5071965.556 | E7: =E3/E6 -> 2392753.375 | F7: =F3/F6 -> 4573031.31 | G7: =G3/G6 -> -5538902.646 | H7: =SUM(C7:G7) -> 940924.9891 | I7: =SOMME(C7:G7)
A8: RESULTAT sur 3 ans | C8: =C7-C5 -> 19040.1416 | D8: =D7-D5 -> 697265.2135 | E8: =E7-E5 -> 63689.99169 | F8: =F7-F5 -> -403743.7397 | G8: =G7-G5 -> 188474.2158 | H8: =SUM(C8:G8) -> 564725.8228 | I8: =SOMME(C8:G8)
A9: RISQUE | B9: 0.02 | C9: =ABS(C7) -> 4586008.505 | D9: =ABS(D7) -> 5071965.556 | E9: =ABS(E7) -> 2392753.375 | F9: =ABS(F7) -> 4573031.31 | G9: =ABS(G7) -> 5538902.646 | H9: =B9*SUM(ABS(C9:G9)) -> 443253.2278 | I9: =form(H9) -> =B9*SOMME(ABS(C9:G9))
A11: STATISTIQUES | B11: moyenne | C11: =Histo!L5 -> 5.424292084e-06 | D11: =Histo!M5 -> -0.0001679404564 | E11: =Histo!N5 -> 3.517410333e-05 | F11: =Histo!O5 -> -0.000110307444 | G11: =Histo!P5 -> -4.362611844e-05
A12: sur les rendements | B12: écart type | C12: =Histo!L6 -> 0.005892187268 | D12: =Histo!M6 -> 0.006190138371 | E12: =Histo!N6 -> 0.006564561407 | F12: =Histo!O6 -> 0.005298607465 | G12: =Histo!P6 -> 0.006661247504 | H12: =F12 -> 0.005298607465 | I12: =form(H12) -> =F12
B13: centile 5% | C13: =Histo!L7 -> 0.008516023407 | D13: =Histo!M7 -> 0.009192217195 | E13: =Histo!N7 -> 0.005123959292 | F13: =Histo!O7 -> 0.007664285978 | G13: =Histo!P7 -> 0.01007108715
B14: centile 95% | C14: =Histo!L8 -> -0.008934361973 | D14: =Histo!M8 -> -0.009823574309 | E14: =Histo!N8 -> -0.005484823278 | F14: =Histo!O8 -> -0.008652139299 | G14: =Histo!P8 -> -0.01115685991 | H14: alpha | I14: beta
B15: alpha écart type | C15: =C12*$H$15 -> 0.009691785598 | D15: =D12*$H$15 -> 0.01018187155 | E15: =E12*$H$15 -> 0.01079774264 | F15: =F12*$H$15 -> 0.008715433707 | G15: =G12*$H$15 -> 0.01095677712 | H15: =NORMSINV(0.95) -> 1.644853627 | I15: =NORMDIST(H15,0,1,FALSE)/0.05 -> 2.062712808
H16: =NORMSINV(0.99) -> 2.326347874 | I16: =NORMDIST(H16,0,1,FALSE)/0.01 -> 2.66521422
B17: param | C17: =C15*C7 -> 44446.61118 | D17: =D15*D7 -> -51642.1018 | E17: =E15*E7 -> 25836.33515 | F17: =F15*F7 -> 39855.95122 | G17: =G15*G7 -> -60688.52176 | H17: =D17 -> -51642.1018 | I17: =form(H17) -> =D17
B18: histo plus | C18: =C13*C7 -> 39054.55577 | D18: =D13*D7 -> -46622.609 | E18: =E13*E7 -> 12260.37089 | F18: =F13*F7 -> 35049.01974 | G18: =G13*G7 -> -55782.77128 | H18: =F17 -> 39855.95122 | I18: =F17
B19: histo moins | C19: =C14*C7 -> -40973.05999 | D19: =D14*D7 -> 49824.83053 | E19: =E14*E7 -> -13123.82941 | F19: =F14*F7 -> -39566.50391 | G19: =G14*G7 -> 61796.76086 | H19: =SQRT(F17*F17+G17*G17) -> 72605.74028 | I19: =RACINE(F17*F17+G17*G17)
B20: mc | C20: =-MonteCarlo!M3 -> 44494.62191 | D20: =-MonteCarlo!N3 -> 51613.3155 | E20: =-MonteCarlo!O3 -> 26004.79544 | F20: =-MonteCarlo!P3 -> 39507.11937 | G20: =-MonteCarlo!Q3 -> 59371.62106 | H20: =SQRT(F17*F17+G17*G17+2*G17*F17*G28) -> 57342.16629 | I20: =RACINE(F17*F17+G17*G17+2*G17*F17*G28)
H21: =SQRT(SUMSQ(C17:G17)) -> 102866.5041 | I21: =RACINE(SOMME.CARRES(C17:G17))
H22: =SQRT(MMULT(C17:G17,MMULT(correl,TRANSPOSE(C17:G17)))) -> 76044.37267 | I22: =RACINE(PRODUITMAT(C17:G17;PRODUITMAT(correl;TRANSPOSE(C17:G17))))
H23: =VarParam(MMkt,MPeuro,1,0.95) -> 76044.37267 | I23: =VarParam(MMkt;MPeuro;1;0,95)
A24: Corrélation | C24: =nom -> USD | D24: GBP | E24: CHF | F24: DKK | G24: SGD | H24: =H22/ic*I15 -> 95362.71124 | I24: =form(H24) -> =H22/ic*I15
A25: 1 | B25: =C24 -> USD | C25: =mcorrelation(rend) -> 1 | D25: 0.3795342851 | E25: 0.2039869196 | F25: 0.1441347994 | G25: 0.4403418416
A26: 2 | B26: =D24 -> GBP | C26: 0.3795342851 | D26: 1 | E26: 0.1238005661 | F26: 0.3251090941 | G26: 0.3802645941 | H26: =G28 -> 0.4100112662 | I26: =form(H26) -> =G28
A27: 3 | B27: =E24 -> CHF | C27: 0.2039869196 | D27: 0.1238005661 | E27: 1 | F27: 0.1527166346 | G27: 0.2251324218
B28: =F24 -> DKK | C28: 0.1441347994 | D28: 0.3251090941 | E28: 0.1527166346 | F28: 1 | G28: 0.4100112662
B29: =G24 -> SGD | C29: 0.4403418416 | D29: 0.3802645941 | E29: 0.2251324218 | F29: 0.4100112662 | G29: 1
B30: déterminant | C30: =MDETERM(C25:G29) -> 0.4739994522
A31: Matrice de Variance Covariance | C31: =C24 -> USD | D31: =D24 -> GBP | E31: =E24 -> CHF | F31: =F24 -> DKK | G31: =G24 -> SGD
B32: =B25 -> USD | C32: =mcovariance(rend) -> 3.47178708e-05 | D32: 1.384292648e-05 | E32: 7.890137582e-06 | F32: 4.499944282e-06 | G32: 1.728311685e-05
B33: =B26 -> GBP | C33: 1.384292648e-05 | D33: 3.831781305e-05 | E33: 5.030703284e-06 | F33: 1.066329004e-05 | G33: 1.567984692e-05
B34: =B27 -> CHF | C34: 7.890137582e-06 | D34: 5.030703284e-06 | E34: 4.309346647e-05 | F34: 5.311947907e-06 | G34: 9.844628428e-06
B35: =B28 -> DKK | C35: 4.499944282e-06 | D35: 1.066329004e-05 | E35: 5.311947907e-06 | F35: 2.807524107e-05 | G35: 1.44714853e-05
B36: =B29 -> SGD | C36: 1.728311685e-05 | D36: 1.567984692e-05 | E36: 9.844628428e-06 | F36: 1.44714853e-05 | G36: 4.437221831e-05
A38: Cholesky | C38: =C31 -> USD | D38: =D31 -> GBP | E38: =E31 -> CHF | F38: =F31 -> DKK | G38: =G31 -> SGD
B39: =B25 -> USD | C39: =mcholesky(vcv) -> 0.005892187268 | D39: 0 | E39: 0 | F39: 0 | G39: 0 | H39: =C39+D40+E41+F42+G43 -> 0.02841221635 | I39: =form(H39) -> =C39+D40+E41+F42+G43
B40: =B26 -> GBP | C40: 0.002349369741 | D40: 0.005726977813 | E40: 0 | F40: 0 | G40: 0
B41: =B27 -> CHF | C41: 0.00133908466 | D41: 0.0003290912529 | E41: 0.006418100785 | F41: 0 | G41: 0
B42: =B28 -> DKK | C42: 0.0007637137242 | D42: 0.001548643004 | E42: 0.0005889009591 | F42: 0.004974623898 | G42: 0
B43: =B29 -> SGD | C43: 0.002933225994 | D43: 0.001534599017 | E43: 0.0008432038643 | F43: 0.001881193624 | G43: 0.005400326586
H44: =C47 -> 8.250280935e-05 | I44: =form(H44) -> =C47
H45: =D47 -> 3.837048496e-05 | I45: =D47
B46: VALEUR PROPRES | H46: =E47 -> 2.677021011e-05 | I46: =E47
C47: =mValp(vcv) -> 8.250280935e-05 | D47: 3.837048496e-05 | E47: 2.677021011e-05 | F47: 2.487473853e-05 | G47: 1.605836676e-05 | H47: =F47 -> 2.487473853e-05 | I47: =F47
H48: =G47 -> 1.605836676e-05 | I48: =G47
B49: VECTEURS PROPRES
C50: =mVecp(vcv) -> 0.4410819032 | D50: -0.08508699375 | E50: -0.6792333427 | F50: 0.2671025015 | G50: 0.5152720427 | H50: =C50 -> 0.4410819032 | I50: =form(H50) -> =C50
C51: 0.4691270518 | D51: -0.3282799602 | E51: -0.1691736692 | F51: -0.7474272689 | G51: -0.2913500032 | H51: =C51 -> 0.4691270518 | I51: =C51
C52: 0.3424015451 | D52: 0.9226294376 | E52: -0.0006945307904 | F52: -0.1691145304 | G52: -0.05399903744 | H52: =C52 -> 0.3424015451 | I52: =C52
C53: 0.3222693536 | D53: -0.1090109929 | E53: 0.6583552237 | F53: -0.153643836 | G53: 0.6536214793 | H53: =C53 -> 0.3222693536 | I53: =C53
C54: 0.6035480177 | D54: -0.1478647881 | E54: 0.2767494405 | F54: 0.5637398146 | G54: -0.4684794162 | H54: =C54 -> 0.6035480177 | I54: =C54
C56: Produit Simple: P vcv P | H56: Somme ligne | I56: BETA | J56: Component | K56: VAR
C57: =MPeuro*vcv*TRANSPOSE(MPeuro) -> 730167997.3 | D57: -321987538.2 | E57: 86579957.75 | F57: 94372653.65 | G57: -439016308.8 | H57: =SUM(C57:G57) -> 150116761.8 | I57: =H57/$H$62 -> 0.07023434522 | J57: =H57*ic/SQRT($H$62) -> 5340.926723 | K57: =SQRT(ABS(H57*ic))*SIGN(H57) -> 15713.69148
C58: -321987538.2 | D58: 985719402.8 | E58: -61052427.43 | F58: -247327092.7 | G58: 440495874.9 | H58: =SUM(C58:G58) -> 795848219.4 | I58: =H58/$H$62 -> 0.3723493495 | J58: =H58*ic/SQRT($H$62) -> 28315.0727 | K58: =SQRT(ABS(H58*ic))*SIGN(H58) -> 36180.84894
C59: 86579957.75 | D59: -61052427.43 | E59: 246721675.4 | F59: 58124056.97 | G59: -130473105.2 | H59: 199900157.6 | I59: =H59/$H$62 -> 0.0935262426 | J59: =H59*ic/SQRT($H$62) -> 7112.144447 | K59: =SQRT(ABS(H59*ic))*SIGN(H59) -> 18133.02234
C60: 94372653.65 | D60: -247327092.7 | E60: 58124056.97 | F60: 587126717.7 | G60: -366556575.5 | H60: 125739760.1 | I60: =H60/$H$62 -> 0.05882920478 | J60: =H60*ic/SQRT($H$62) -> 4473.629972 | K60: =SQRT(ABS(H60*ic))*SIGN(H60) -> 14381.35948
C61: -439016308.8 | D61: 440495874.9 | E61: -130473105.2 | F61: -366556575.5 | G61: 1361314921 | H61: 865764806.6 | I61: =H61/$H$62 -> 0.4050608579 | J61: =H61*ic/SQRT($H$62) -> 30802.59884 | K61: =SQRT(ABS(H61*ic))*SIGN(H61) -> 37736.67158
G62: somme: | H62: =SUM(C57:G61) -> 2137369705 | I62: =SUM(I57:I61) -> 1 | J62: =SUM(J57:J61) -> 76044.37267
C63: Produit Simple: P chol | H63: =SQRT(H62) -> 46231.6959
C64: =MPeuro*TRANSPOSE(chol)*ic -> 44446.61118 | D64: -19599.94819 | E64: 5270.27442 | F64: 5744.629535 | G64: -26723.69544 | H64: =SUM(C64:G64) -> 9137.871512
C65: 0 | D65: -47778.11956 | E65: 1295.21401 | F65: 11648.84178 | G65: -13981.24688 | H65: =SUM(C65:G65) -> -48815.31064
C66: 0 | D66: 0 | E66: 25259.90582 | F66: 4429.693661 | G66: -7682.164044 | H66: 22007.43544
C67: 0 | D67: 0 | E67: 0 | F67: 37418.95748 | G67: -17138.96085 | H67: 20279.99663
C68: 0 | D68: 0 | E68: 0 | F68: 0 | G68: -49200.66959 | H68: -49200.66959
B69: =SQRT(SUMSQ(C69:G69)) -> 155563.5375 | C69: =SUM(C64:C68) -> 44446.61118 | D69: =SUM(D64:D68) -> -67378.06775 | E69: 31825.39425 | F69: 59242.12246 | G69: -114726.7368 | H69: =SQRT(SUMSQ(H64:H68)) -> 76044.37267 | I69: =form(H69) -> =RACINE(SOMME.CARRES(H64:H68))
C70: Produit Simple: P racar
C71: =MPeuro*TRANSPOSE(racar)*ic -> 42384.64629 | D71: -8757.93682 | E71: 2169.238007 | F71: 1352.835569 | G71: -11908.09061 | H71: =SUM(C71:G71) -> 25240.69244
C72: 7918.818119 | D72: -49563.91863 | E72: 1089.911972 | F72: 6230.246393 | G72: -9800.474767 | H72: =SUM(C72:G72) -> -44125.41691
C73: 4157.61359 | D73: -2310.307462 | E73: 25551.40269 | F73: 2745.944153 | G73: -5984.830691 | H73: 24159.82228
C74: 1356.674601 | D74: -6909.988794 | E74: 1436.764084 | F74: 38281.29204 | G74: -10479.11716 | H74: 23685.62477
C75: 9859.462839 | D75: -8974.281302 | E75: 2585.390059 | F75: 8651.773456 | G75: -57442.27234 | H75: -45319.92729
B76: =SQRT(SUMSQ(C76:G76)) -> 153842.0688 | C76: =SUM(C71:C75) -> 65677.21544 | D76: =SUM(D71:D75) -> -76516.43301 | E76: =SUM(E71:E75) -> 32832.70681 | F76: =SUM(F71:F75) -> 57262.09162 | G76: =SUM(G71:G75) -> -95614.78557 | H76: =SQRT(SUMSQ(H71:H75)) -> 76044.37267 | I76: =form(H76) -> =RACINE(SOMME.CARRES(H71:H75))
B77: Component | C77: Pos Euro | F77: VAR MARGINALE | G77: 1000 | H77: =F77 -> VAR MARGINALE
B78: Gradient | D78: Component | E78: BETA | F78: CALCUL | G78: =ic*SQRT(MMULT(C86:G86,MMULT(vcv,TRANSPOSE(C86:G86)))) -> 76044.37267 | H78: SIMULATIONS
B79: =ic*ic*MMULT(vcv,C79:C83)/Parametrique!H22 -> 0.001164613349 | C79: =TRANSPOSE(C7:G7) -> 4586008.505 | D79: =B79*C79 -> 5340.926723 | E79: =D79/$D$84 -> 0.07023434522 | F79: =B79*$G$77 -> 1.164613349 | G79: =ic*SQRT(MMULT(C87:G87,MMULT(vcv,TRANSPOSE(C87:G87)))) -> 76045.5379 | H79: =G79-$D$84 -> 1.165222026
B80: -0.005582662655 | C80: -5071965.556 | D80: =B80*C80 -> 28315.0727 | E80: =D80/$D$84 -> 0.3723493495 | F80: =B80*$G$77 -> -5.582662655 | G80: =ic*SQRT(MMULT(C88:G88,MMULT(vcv,TRANSPOSE(C88:G88)))) -> 76038.79049 | H80: =G80-$D$84 -> -5.582185896
B81: 0.002972368369 | C81: 2392753.375 | D81: =B81*C81 -> 7112.144447 | E81: =D81/$D$84 -> 0.0935262426 | F81: =B81*$G$77 -> 2.972368369 | G81: =ic*SQRT(MMULT(C89:G89,MMULT(vcv,TRANSPOSE(C89:G89)))) -> 76047.34575 | H81: =G81-$D$84 -> 2.97307685
B82: 0.0009782635781 | C82: 4573031.31 | D82: =B82*C82 -> 4473.629972 | E82: =D82/$D$84 -> 0.05882920478 | F82: =B82*$G$77 -> 0.9782635781 | G82: =ic*SQRT(MMULT(C90:G90,MMULT(vcv,TRANSPOSE(C90:G90)))) -> 76045.35143 | H82: =G82-$D$84 -> 0.9787567168
B83: -0.005561137432 | C83: -5538902.646 | D83: =B83*C83 -> 30802.59884 | E83: =D83/$D$84 -> 0.4050608579 | F83: =B83*$G$77 -> -5.561137432 | G83: =ic*SQRT(MMULT(C91:G91,MMULT(vcv,TRANSPOSE(C91:G91)))) -> 76038.81212 | H83: =G83-$D$84 -> -5.560551385
D84: =SUM(D79:D83) -> 76044.37267 | E84: =SUM(E79:E83) -> 1
B85: Tableau des positions simulées: +1000 sur chaque position
B86: =mprod(vcv,mtran(MPeuro)) -> 32.73364225 | C86: =C7 -> 4586008.505 | D86: =D7 -> -5071965.556 | E86: =E7 -> 2392753.375 | F86: =F7 -> 4573031.31 | G86: =G7 -> -5538902.646
B87: -156.9112035 | C87: =C86+$G$77 -> 4587008.505 | D87: =D86 -> -5071965.556 | E87: =E86 -> 2392753.375 | F87: 4573031.31 | G87: -5538902.646
B88: 83.54398729 | C88: =C87-$G$77 -> 4586008.505 | D88: =D87+$G$77 -> -5070965.556 | E88: 2392753.375 | F88: 4573031.31 | G88: -5538902.646
B89: 27.49593247 | C89: =C88 -> 4586008.505 | D89: =D88-$G$77 -> -5071965.556 | E89: =E88+$G$77 -> 2393753.375 | F89: 4573031.31 | G89: -5538902.646
B90: -156.3061967 | C90: =C89 -> 4586008.505 | D90: =D89 -> -5071965.556 | E90: =E89-$G$77 -> 2392753.375 | F90: =F89+$G$77 -> 4574031.31 | G90: -5538902.646
B91: =mquadprod(mtran(MPeuro),vcv) -> 2137369705 | C91: =C90 -> 4586008.505 | D91: =D90 -> -5071965.556 | E91: 2392753.375 | F91: =F90-$G$77 -> 4573031.31 | G91: =G90+$G$77 -> -5537902.646
B93: ACP | C93: Projections | D93: VP | E93: Racine(VP) | G93: Var Facteur | I93: Var par Facteurs
C94: =MMULT(TRANSPOSE(passage),C79:C83) -> -1406554.303 | D94: =C47 -> 8.250280935e-05 | E94: =SQRT(D94) -> 0.00908310571 | F94: =D94*C94*C94*ic*ic -> 441607314.7 | G94: =C94*E94*ic -> -21014.4549 | H94: =G94/ic -> -12775.88142 | I94: =G94 -> -21014.4549
C95: 3802937.657 | D95: =D47 -> 3.837048496e-05 | E95: =SQRT(D95) -> 0.006194391412 | F95: =D95*C95*C95*ic*ic -> 1501378574 | G95: =C95*E95*ic -> 38747.62668 | H95: =G95/ic -> 23556.88436 | I95: =SQRT(SUMSQ($G$94:G95)) -> 44079.31361
C96: -780797.8612 | D96: =E47 -> 2.677021011e-05 | E96: =SQRT(D96) -> 0.005173993633 | F96: =D96*C96*C96*ic*ic -> 44155369.51 | G96: =C96*E96*ic -> -6644.950678 | H96: =G96/ic -> -4039.843162 | I96: =SQRT(SUMSQ($G$94:G96)) -> 44577.36262
C97: 786092.32 | D97: =F47 -> 2.487473853e-05 | E97: =SQRT(D97) -> 0.004987458123 | F97: =D97*C97*C97*ic*ic -> 41587244.39 | G97: =C97*E97*ic -> 6448.817286 | H97: =G97/ic -> 3920.602527 | I97: =SQRT(SUMSQ($G$94:G97)) -> 45041.40875
C98: 9295446.14 | D98: =G47 -> 1.605836676e-05 | E98: =SQRT(D98) -> 0.004007289203 | F98: =D98*C98*C98*ic*ic -> 3754018113 | G98: =C98*E98*ic -> 61270.04254 | H98: =G98/ic -> 37249.54095 | I98: =SQRT(SUMSQ($G$94:G98)) -> 76044.37267
G100: =SQRT(SUMSQ(G94:G98)) -> 76044.37267 | H100: =form(G100) -> =RACINE(SOMME.CARRES(G94:G98))
B102: =MMULT(TRANSPOSE(C79:C83),MMULT(C114:G118,C79:C83)) -> 6.072454922e+11 | D102: Déterminant | E102: =MDETERM(C32:G36) -> 3.385148321e-23 | F102: =MDETERM(C50:G54) -> 1
B103: =SQRT(B102)*ic -> 1281767.946 | E103: =MDETERM(C107:G111) -> 3.385148321e-23
E104: =PRODUCT(C47:G47) -> 3.385148321e-23
B105: Matrice diagonale
C106: =C38 -> USD | D106: =D38 -> GBP | E106: =E38 -> CHF | F106: =F38 -> DKK | G106: =G38 -> SGD
B107: =B32 -> USD | C107: =C47 -> 8.250280935e-05 | D107: 0 | E107: 0 | F107: 0 | G107: 0
B108: =B33 -> GBP | C108: 0 | D108: =D47 -> 3.837048496e-05 | E108: 0 | F108: 0 | G108: 0
B109: =B34 -> CHF | C109: 0 | D109: 0 | E109: =E47 -> 2.677021011e-05 | F109: 0 | G109: 0
B110: =B35 -> DKK | C110: 0 | D110: 0 | E110: 0 | F110: =F47 -> 2.487473853e-05 | G110: 0
B111: =B36 -> SGD | C111: 0 | D111: 0 | E111: 0 | F111: 0 | G111: =G47 -> 1.605836676e-05
B112: Matrice Diagonale Racine Carrée
C113: =C106 -> USD | D113: =D106 -> GBP | E113: CHF | F113: DKK | G113: SGD
B114: =B107 -> USD | C114: =SQRT(C107) -> 0.00908310571 | D114: =D107 -> 0 | E114: =E107 -> 0 | F114: =F107 -> 0 | G114: =G107 -> 0
B115: =B108 -> GBP | C115: 0 | D115: =SQRT(D108) -> 0.006194391412 | E115: =E108 -> 0 | F115: =F108 -> 0 | G115: =G108 -> 0
B116: CHF | C116: 0 | D116: =D109 -> 0 | E116: =SQRT(E109) -> 0.005173993633 | F116: =F109 -> 0 | G116: =G109 -> 0
B117: DKK | C117: 0 | D117: =D110 -> 0 | E117: =E110 -> 0 | F117: =SQRT(F110) -> 0.004987458123 | G117: =G110 -> 0
B118: SGD | C118: 0 | D118: =D111 -> 0 | E118: =E111 -> 0 | F118: =F111 -> 0 | G118: =SQRT(G111) -> 0.004007289203
B119: =B112 -> Matrice Diagonale Racine Carrée
C120: =C113 -> USD | D120: =D113 -> GBP | E120: CHF | F120: DKK | G120: SGD
B121: =B114 -> USD | C121: =MMULT(passage,MMULT(C114:G118,MINVERSE(passage))) -> 0.00561883722 | D121: 0.001049779906 | E121: 0.0005511654816 | F121: 0.0001798513002 | G121: 0.001307046811
B122: =B115 -> GBP | C122: 0.001049779906 | D122: 0.005941034618 | E122: 0.0002769275915 | F122: 0.000828273546 | G122: 0.001075712279
B123: CHF | C123: 0.0005511654816 | D123: 0.0002769275915 | E123: 0.006492165048 | F123: 0.0003650566538 | G123: 0.0006569024479
B124: DKK | C124: 0.0001798513002 | D124: 0.000828273546 | E124: 0.0003650566538 | F124: 0.005089266059 | G124: 0.001150200911
B125: SGD | C125: 0.001307046811 | D125: 0.001075712279 | E125: 0.0006569024479 | F125: 0.001150200911 | G125: 0.006304935137
B127: Optimisation - portefeuille minimal sur la sphère d'investissement
B128: investissement | C128: =SUM(C133:C137) -> 940924.9891 | E128: =SUM(E133:E137) -> 0 | F128: =SUM(F133:F137) -> 940924.9891 | G128: =G133 -> 0.006234353887 | H128: =F128*G128 -> 5866.059363 | I128: =SUM(I133:I137) -> 658059.8105 | L128: =SUM(L133:L137) -> -940924.9891 | M128: =SUM(M133:M137) -> -940924.9891 | N128: =N133 -> -0.006234353887 | O128: =N128*L128 -> 5866.059363
E130: Ecart | F130: Nouveau | G130: Nouveau | H130: Nouveau | I130: Nouveau | J130: Nouveau | L130: port opposé | M130: port opposé | N130: gradient | O130: component
B131: racine vp | C131: Portefeuille | D131: Gradient | F131: Portefeuille | G131: Gradient | H131: Component | I131: Projection | J131: Var Principales
A133: =F133*C6 -> 287385.271 | B133: =E94 -> 0.00908310571 | C133: =C79 -> 4586008.505 | D133: =ic*ic*MMULT(vcv,C133:C137)/C139 -> 0.001164613349 | E133: =F133-C133 -> -4346380.996 | F133: =$C$128*I146 -> 239627.5086 | G133: =ic*ic*MMULT(vcv,F133:F137)/F139 -> 0.006234353887 | H133: =G133*F133 -> 1493.922689 | I133: =MMULT(TRANSPOSE(passage),F133:F137) -> 356909.2787 | J133: =I133*B133*ic -> 5332.360025 | L133: =-C133 -> -4586008.505 | M133: =-F133 -> -239627.5086 | N133: =ic*ic*MMULT(vcv,M133:M137)/M139 -> -0.006234353887 | O133: =N133*M133 -> 1493.922689 | P133: =MMULT(TRANSPOSE(passage),M133:M137) -> -356909.2787 | Q133: =P133*B133*ic -> -5332.360025
A134: =F134*D6 -> 125130.8851 | B134: =E95 -> 0.006194391412 | C134: =C80 -> -5071965.556 | D134: -0.005582662655 | E134: =F134-C134 -> 5213001.009 | F134: =$C$128*I147 -> 141035.4531 | G134: 0.006234353887 | H134: =G134*F134 -> 879.2649255 | I134: 88910.40169 | J134: =I134*B134*ic -> 905.8962738 | L134: =-C134 -> 5071965.556 | M134: =-F134 -> -141035.4531 | N134: -0.006234353887 | O134: =N134*M134 -> 879.2649255 | P134: -88910.40169 | Q134: =P134*B134*ic -> -905.8962738
A135: =F135*E6 -> 245816.5002 | B135: =E96 -> 0.005173993633 | C135: =C81 -> 2392753.375 | D135: 0.002972368369 | E135: =F135-C135 -> -2182689.711 | F135: =$C$128*I148 -> 210063.6645 | G135: 0.006234353887 | H135: =G135*F135 -> 1309.611223 | I135: 43425.59978 | J135: =I135*B135*ic -> 369.5719251 | L135: =-C135 -> -2392753.375 | M135: =-F135 -> -210063.6645 | N135: -0.006234353887 | O135: =N135*M135 -> 1309.611223 | P135: -43425.59978 | Q135: =P135*B135*ic -> -369.5719251
A136: =F136*F6 -> 3436749.36 | B136: =E97 -> 0.004987458123 | C136: =C82 -> 4573031.31 | D136: 0.0009782635781 | E136: =F136-C136 -> -4223778.812 | F136: =$C$128*I149 -> 349252.4984 | G136: 0.006234353887 | H136: =G136*F136 -> 2177.363671 | I136: -130060.7267 | J136: =I136*B136*ic -> -1066.971195 | L136: =-C136 -> -4573031.31 | M136: =-F136 -> -349252.4984 | N136: -0.006234353887 | O136: =N136*M136 -> 2177.363671 | P136: 130060.7267 | Q136: =P136*B136*ic -> 1066.971195
A137: =F137*G6 -> 1451.523707 | B137: =E98 -> 0.004007289203 | C137: =C83 -> -5538902.646 | D137: -0.005561137432 | E137: =F137-C137 -> 5539848.51 | F137: =$C$128*I150 -> 945.8645298 | G137: 0.006234353887 | H137: =G137*F137 -> 5.896854208 | I137: 298875.257 | J137: =I137*B137*ic -> 1970.007618 | L137: =-C137 -> 5538902.646 | M137: =-F137 -> -945.8645298 | N137: -0.006234353887 | O137: =N137*M137 -> 5.896854208 | P137: -298875.257 | Q137: =P137*B137*ic -> -1970.007618
C139: =ic*SQRT(MMULT(TRANSPOSE(C133:C137),MMULT(vcv,(C133:C137)))) -> 76044.37267 | F139: =ic*SQRT(MMULT(TRANSPOSE(F133:F137),MMULT(vcv,(F133:F137)))) -> 5866.059363 | G139: =-C139+F139 -> -70178.31331 | H139: =SUM(H133:H137) -> 5866.059363 | J139: =SQRT(SUMSQ(J133:J137)) -> 5866.059363 | L139: =SQRT(SUMSQ(L133:L137)) -> 10201648.65 | M139: =ic*SQRT(MMULT(TRANSPOSE(M133:M137),MMULT(vcv,(M133:M137)))) -> 5866.059363 | O139: =SUM(O133:O137) -> 5866.059363 | Q139: =SQRT(SUMSQ(Q133:Q137)) -> 5866.059363
E140: valorisations | F140: =MMULT(1/C4:G4,A133:A137) -> 984594.4041 | G140: =H5 -> 376199.1663
F141: =MMULT(1/C6:G6,A133:A137) -> 940924.9891 | G141: =H7 -> 940924.9891
F142: =F141-F140 -> -43669.41496 | G142: =G141-G140 -> 564725.8228
F143: =F139 -> 5866.059363 | G143: =H22 -> 76044.37267
F144: =F142/F143 -> -7.444420907 | G144: =G142/G143 -> 7.426267099
B145: matrice inverse de VCV
B146: =MINVERSE(vcv) -> 39182.71364 | C146: -9846.039096 | D146: -3746.376466 | E146: 4583.634715 | F146: -12446.19656 | H146: =SUM(B146:F146) -> 17727.73623 | I146: =H146/$H$151 -> 0.254672276
B147: -9846.039096 | C147: 34289.69316 | D147: 118.9720301 | E147: -8637.469427 | F147: -5491.29902 | H147: =SUM(B147:F147) -> 10433.85765 | I147: =H147/$H$151 -> 0.1498902195
B148: -3746.376466 | C148: 118.9720301 | D148: 24937.26944 | E148: -2454.150811 | F148: -3315.122634 | H148: =SUM(B148:F148) -> 15540.59156 | I148: =H148/$H$151 -> 0.2232522963
B149: 4583.634715 | C149: -8637.469427 | D149: -2454.150811 | E149: 45312.6326 | F149: -12966.81148 | H149: =SUM(B149:F149) -> 25837.8356 | I149: =H149/$H$151 -> 0.3711799585
B150: -12446.19656 | C150: -5491.29902 | D150: -3315.122634 | E150: -12966.81148 | F150: 34289.40512 | H150: =SUM(B150:F150) -> 69.97542561 | I150: =H150/$H$151 -> 0.001005249665
H151: =SUM(H146:H150) -> 69609.99647

Sheet Histo
A1: RATES | E1: ccy pour 1 eur | F1: =Parametrique!C2 -> USD | G1: =Parametrique!D2 -> GBP | H1: =Parametrique!E2 -> CHF | I1: =Parametrique!F2 -> DKK | J1: =Parametrique!G2 -> SGD | L1: =F1 -> USD | M1: GBP | N1: CHF | O1: DKK | P1: SGD | R1: =nom -> USD | S1: GBP | T1: CHF | U1: DKK | V1: SGD | W1: portefeuille
F2: 1 | G2: =F2+1 -> 2 | H2: =G2+1 -> 3 | I2: =Parametrique!#REF! ->  | J2: =Parametrique!#REF! ->  | L2: 1 | M2: 2 | N2: 3 | R2: VAR HISTORIQUE
A3: MIN | B3: =form(F3) -> =MIN(F9:F776) | F3: =MIN(F9:F776) -> 1.0364 | G3: =MIN(G9:G776) -> 0.6963 | H3: =MIN(H9:H776) -> 0.9816 | I3: =MIN(I9:I776) -> 8.3275 | J3: =MIN(J9:J776) -> 1.3689 | K3: =form(L3) -> =MIN(L10:L776) | L3: =MIN(L10:L776) -> -0.02466361069 | M3: =MIN(M10:M776) -> -0.05282616164 | N3: =MIN(N10:N776) -> -0.0199704065 | O3: =MIN(O10:O776) -> -0.02551212782 | P3: =MIN(P10:P776) -> -0.03317976239
A4: MAX | B4: =form(F4) -> =MAX(F9:F776) | F4: =MAX(F9:F776) -> 1.206 | G4: =MAX(G9:G776) -> 0.92965 | H4: =MAX(H9:H776) -> 1.2022 | I4: =MAX(I9:I776) -> 9.9738 | J4: =MAX(J9:J776) -> 1.6147 | K4: =MAX(L10:L776) | L4: =MAX(L10:L776) -> 0.03682042864 | M4: =MAX(M10:M776) -> 0.02262450143 | N4: =MAX(N10:N776) -> 0.1555393761 | O4: =MAX(O10:O776) -> 0.03016966294 | P4: =MAX(P10:P776) -> 0.02857152529
A5: MOY | F5: =AVERAGE(F9:F776) -> 1.115336068 | G5: =AVERAGE(G9:G776) -> 0.8072564714 | H5: =AVERAGE(H9:H776) -> 1.089867448 | I5: =AVERAGE(I9:I776) -> 9.189042448 | J5: =AVERAGE(J9:J776) -> 1.479723047 | K5: =MOYENNE(L10:L776) | L5: =AVERAGE(L10:L776) -> 5.424292084e-06 | M5: =AVERAGE(M10:M776) -> -0.0001679404564 | N5: =AVERAGE(N10:N776) -> 3.517410333e-05 | O5: =AVERAGE(O10:O776) -> -0.000110307444 | P5: =AVERAGE(P10:P776) -> -4.362611844e-05 | R5: =Parametrique!C7 -> 4586008.505 | S5: =Parametrique!D7 -> -5071965.556 | T5: =Parametrique!E7 -> 2392753.375 | U5: =Parametrique!F7 -> 4573031.31 | V5: =Parametrique!G7 -> -5538902.646
A6: STD | B6: =form(F6) -> =ECARTYPEP(F9:F776) | F6: =STDEVP(F9:F776) -> 0.03813036559 | G6: =STDEVP(G9:G776) -> 0.06902179818 | H6: =STDEVP(H9:H776) -> 0.03518320219 | I6: =STDEVP(I9:I776) -> 0.3244128646 | J6: =STDEVP(J9:J776) -> 0.05376916473 | K6: =ECARTYPEP(L10:L776) | L6: =STDEVP(L10:L776) -> 0.005892187268 | M6: =STDEVP(M10:M776) -> 0.006190138371 | N6: =STDEVP(N10:N776) -> 0.006564561407 | O6: =STDEVP(O10:O776) -> 0.005298607465 | P6: =STDEVP(P10:P776) -> 0.006661247504 | Q6: ES | R6: =AVERAGEIF(R10:R776,"<"&R8) -> -59201.38022 | S6: -65014.43064 | T6: -19623.74816 | U6: -55161.63439 | V6: -76357.4506 | W6: -94227.6492
A7: STD | B7: =form(F7) -> =ECARTYPEP(LN((F$10:F$776)/(F$9:F$775))) | F7: =STDEVP(LN((F$10:F$776)/(F$9:F$775))) -> 0.005892187268 | G7: =STDEVP(LN((G$10:G$776)/(G$9:G$775))) -> 0.006190138371 | H7: =STDEVP(LN((H$10:H$776)/(H$9:H$775))) -> 0.006564561407 | I7: =STDEVP(LN((I$10:I$776)/(I$9:I$775))) -> 0.005298607465 | J7: =STDEVP(LN((J$10:J$776)/(J$9:J$775))) -> 0.006661247504 | K7: =CENTILE(L10:L776;$Q$7) | L7: =PERCENTILE(L10:L776,$Q$7) -> 0.008516023407 | M7: =PERCENTILE(M10:M776,$Q$7) -> 0.009192217195 | N7: =PERCENTILE(N10:N776,$Q$7) -> 0.005123959292 | O7: =PERCENTILE(O10:O776,$Q$7) -> 0.007664285978 | P7: =PERCENTILE(P10:P776,$Q$7) -> 0.01007108715 | Q7: 0.95 | R7: =PERCENTILE(R10:R776,$Q$7) -> 39054.55577 | S7: =PERCENTILE(S10:S776,$Q$7) -> 49824.83053 | T7: 12260.37089 | U7: 35049.01974 | V7: 61796.76086 | W7: 70698.68681
E8: DATES | F8: =F1 -> USD | G8: =G1 -> GBP | H8: =H1 -> CHF | I8: =I1 -> DKK | J8: =J1 -> SGD | K8: =CENTILE(L10:L776;$Q$8) | L8: =PERCENTILE(L10:L776,$Q$8) -> -0.008934361973 | M8: =PERCENTILE(M10:M776,$Q$8) -> -0.009823574309 | N8: =PERCENTILE(N10:N776,$Q$8) -> -0.005484823278 | O8: =PERCENTILE(O10:O776,$Q$8) -> -0.008652139299 | P8: =PERCENTILE(P10:P776,$Q$8) -> -0.01115685991 | Q8: 0.05 | R8: =PERCENTILE(R10:R776,$Q$8) -> -40973.05999 | S8: -46622.609 | T8: -13123.82941 | U8: -39566.50391 | V8: -55782.77128 | W8: -72036.89504
C9: =E9 -> 2015-01-02 | D9: 1 | E9: 2015-01-02 | F9: 1.2043 | G9: 0.78 | H9: 1.2022 | I9: 9.042 | J9: 1.4841 | L9: RENDEMENTS
B10: =E10-E9 -> 3 | C10: =E10 -> 2015-01-05 | D10: =D9+1 -> 2 | E10: 2015-01-05 | F10: 1.1915 | G10: 0.7827 | H10: 1.2016 | I10: 9.1075 | J10: 1.4755 | L10: =LN(F9/F10) -> 0.01068546773 | M10: =LN(G9/G10) -> -0.003455561127 | N10: =LN(H9/H10) -> 0.0004992095952 | O10: =LN(I9/I10) -> -0.007217861028 | P10: =LN(J9/J10) -> 0.005811612519 | R10: =R$5*L10 -> 49003.64588 | S10: =S$5*M10 -> 17526.48701 | T10: =T$5*N10 -> 1194.485444 | U10: =U$5*O10 -> -33007.50447 | V10: =V$5*P10 -> -32189.95596 | W10: =SUM(R10:V10) -> 2527.157906
B11: =E11-E10 -> 1 | C11: 2015-01-06 | D11: =D10+1 -> 3 | E11: 2015-01-06 | F11: 1.1914 | G11: 0.7842 | H11: 1.2014 | I11: 9.1795 | J11: 1.464 | L11: =LN(F10/F11) -> 8.393134421e-05 | M11: =LN(G10/G11) -> -0.001914609047 | N11: =LN(H10/H11) -> 0.0001664585938 | O11: =LN(I10/I11) -> -0.007874487018 | P11: =LN(J10/J11) -> 0.007824499862 | R11: =R$5*L11 -> 384.9098584 | S11: 9710.831141 | T11: 398.2943622 | U11: -36010.27568 | V11: -43339.14298 | W11: =SUM(R11:V11) -> -68855.3833
B12: 1 | C12: 2015-01-07 | D12: 4 | E12: 2015-01-07 | F12: 1.1831 | G12: 0.7823 | H12: 1.2011 | I12: 9.15 | J12: 1.466 | L12: 0.006990973935 | M12: 0.002425791167 | N12: 0.0002497398556 | O12: 0.003218857631 | P12: -0.001365187925 | R12: 32060.66592 | S12: -12303.52925 | T12: 597.5658825 | U12: 14719.93673 | V12: 7561.643011 | W12: 42636.2823
B13: 1 | C13: 2015-01-08 | D13: 5 | E13: 2015-01-08 | F13: 1.1768 | G13: 0.7811 | H13: 1.201 | I13: 9.028 | J13: 1.4518 | L13: 0.005339221972 | M13: 0.001535116075 | N13: 8.326048046e-05 | O13: 0.01342302033 | P13: 0.009733437596 | R13: 24485.71738 | S13: -7786.055855 | T13: 199.2217957 | U13: 61383.89225 | V13: -53912.56325 | W13: 24370.21232
B14: 1 | C14: 2015-01-09 | D14: 6 | E14: 2015-01-09 | F14: 1.1813 | G14: 0.7799 | H14: 1.201 | I14: 9.0605 | J14: 1.4506 | L14: -0.003816636667 | M14: 0.00153747628 | N14: 0 | O14: -0.003593447215 | P14: 0.0008269019214 | R14: -17503.12822 | S14: -7798.026734 | T14: 0 | U14: -16432.94662 | V14: -4580.12924 | W14: -46314.23081
B15: 3 | C15: 2015-01-12 | D15: 7 | E15: 2015-01-12 | F15: 1.1804 | G15: 0.7791 | H15: 1.201 | I15: 9.1275 | J15: 1.4498 | L15: 0.0007621628857 | M15: 0.001026299 | N15: 0 | O15: -0.007367528378 | P15: 0.0005516480625 | R15: 3495.285476 | S15: -5205.353176 | T15: 0 | U15: -33691.93795 | V15: -3055.524913 | W15: -38457.53056
B16: 1 | C16: 2015-01-13 | D16: 8 | E16: 2015-01-13 | F16: 1.1782 | G16: 0.7767 | H16: 1.201 | I16: 9.115 | J16: 1.4441 | L16: 0.001865513981 | M16: 0.003085231911 | N16: 0 | O16: 0.001370426417 | P16: 0.003939325734 | R16: 8555.262984 | S16: -15648.18999 | T16: 0 | U16: 6267.002913 | V16: -21819.54173 | W16: -22645.46582
B17: 1 | C17: 2015-01-14 | D17: 9 | E17: 2015-01-14 | F17: 1.1775 | G17: 0.7753 | H17: 1.201 | I17: 9.056 | J17: 1.4473 | L17: 0.000594303197 | M17: 0.001804124201 | N17: 0 | O17: 0.00649388667 | P17: -0.002213461511 | R17: 2725.479516 | S17: -9150.455804 | T17: 0 | U17: 29696.74706 | V17: 12260.14782 | W17: 35531.9186
B18: 1 | C18: 2015-01-15 | D18: 10 | E18: 2015-01-15 | F18: 1.1708 | G18: 0.7672 | H18: 1.028 | I18: 8.914 | J18: 1.4143 | L18: 0.005706271073 | M18: 0.01050252766 | N18: 0.1555393761 | O18: 0.01580444694 | P18: 0.02306504262 | R18: 26169.00767 | S18: -53268.45852 | T18: 372167.3671 | U18: 72274.23068 | V18: -127755.0256 | W18: 289587.1214
B19: 1 | C19: 2015-01-16 | D19: 11 | E19: 2015-01-16 | F19: 1.1588 | G19: 0.7637 | H19: 1.0128 | I19: 8.7985 | J19: 1.4113 | L19: 0.01030228892 | M19: 0.004572481675 | N19: 0.01489639463 | O19: 0.01304182211 | P19: 0.002123443606 | R19: 47246.38462 | S19: -23191.46956 | T19: 35643.39852 | U19: 59640.66087 | V19: -11761.54741 | W19: 107577.427
B20: 3 | C20: 2015-01-19 | D20: 12 | E20: 2015-01-19 | F20: 1.1605 | G20: 0.7664 | H20: 1.012 | I20: 8.8325 | J20: 1.4134 | L20: -0.001465959819 | M20: -0.003529184762 | N20: 0.0007902015425 | O20: -0.003856847841 | P20: -0.001486883837 | R20: -6722.904199 | S20: 17899.90355 | T20: 1890.757408 | U20: -17637.48594 | V20: 8235.704817 | W20: 3665.975643
B21: 1 | C21: 2015-01-20 | D21: 13 | E21: 2015-01-20 | F21: 1.1579 | G21: 0.7637 | H21: 1.0087 | I21: 8.8015 | J21: 1.4123 | L21: 0.002242927096 | M21: 0.003529184762 | N21: 0.003266197787 | O21: 0.003515938747 | P21: 0.0007785681817 | R21: 10286.08274 | S21: -17899.90355 | T21: 7815.205779 | U21: 16078.49798 | V21: -4312.413362 | W21: 11967.46958
B22: 1 | C22: 2015-01-21 | D22: 14 | E22: 2015-01-21 | F22: 1.1593 | G22: 0.7671 | H22: 0.9997 | I22: 8.825 | J22: 1.4113 | L22: -0.001208355058 | M22: -0.004442129071 | N22: 0.008962418088 | O22: -0.002666441315 | P22: 0.0007083156551 | R22: -5541.526574 | S22: 22530.32564 | T22: 21444.85613 | U22: -12193.71962 | V22: -3923.291456 | W22: 22316.64412
B23: 1 | C23: 2015-01-22 | D23: 15 | E23: 2015-01-22 | F23: 1.1618 | G23: 0.7644 | H23: 0.9943 | I23: 8.831 | J23: 1.4299 | L23: -0.002154151882 | M23: 0.003525958599 | N23: 0.005416261987 | O23: -0.0006796556673 | P23: -0.01309324632 | R23: -9878.958852 | S23: -17883.54057 | T23: 12959.77915 | U23: -3108.086647 | V23: 72522.21668 | W23: 54611.40976
B24: 1 | C24: 2015-01-23 | D24: 16 | E24: 2015-01-23 | F24: 1.1198 | G24: 0.7473 | H24: 0.9816 | I24: 8.7055 | J24: 1.4169 | L24: 0.03682042864 | M24: 0.02262450143 | N24: 0.01285507859 | O24: 0.01431324866 | P24: 0.009133125169 | R24: 168858.7989 | S24: -114750.692 | T24: 30759.03269 | U24: 65454.93428 | V24: -50587.49116 | W24: 99734.58276
B25: 3 | C25: 2015-01-26 | D25: 17 | E25: 2015-01-26 | F25: 1.1244 | G25: 0.74895 | H25: 1.0014 | I25: 8.7345 | J25: 1.4227 | L25: -0.004099462118 | M25: -0.002205514678 | N25: -0.0199704065 | O25: -0.003325691139 | P25: -0.004085088087 | R25: -18800.16814 | S25: 11186.29448 | T25: -47784.25756 | U25: -15208.4897 | V25: 22626.90521 | W25: -47979.71571
B26: 1 | C26: 2015-01-27 | D26: 18 | E26: 2015-01-27 | F26: 1.1306 | G26: 0.74725 | H26: 1.017 | I26: 8.813 | J26: 1.4233 | L26: -0.005498905209 | M26: 0.002272424451 | N26: -0.01545809615 | O26: -0.008947203154 | P26: -0.0004216444195 | R26: -25218.02606 | S26: -11525.65854 | T26: -36987.41175 | U26: -40915.84016 | V26: 2335.44739 | W26: -112311.4891
B27: 1 | C27: 2015-01-28 | D27: 19 | E27: 2015-01-28 | F27: 1.1344 | G27: 0.7466 | H27: 1.0242 | I27: 8.795 | J27: 1.4234 | L27: -0.003355411537 | M27: 0.0008702346836 | N27: -0.00705470298 | O27: 0.002044525928 | P27: -7.025678859e-05 | R27: -15387.94584 | S27: -4413.80034 | T27: -16880.16437 | U27: 9349.681083 | V27: 389.1455122 | W27: -26943.08396
B28: 1 | C28: 2015-01-29 | D28: 20 | E28: 2015-01-29 | F28: 1.1315 | G28: 0.74775 | H28: 1.0372 | I28: 8.823 | J28: 1.4535 | L28: 0.002559690704 | M28: -0.00153913103 | N28: -0.01261295464 | O28: -0.00317857005 | P28: -0.02092606513 | R28: 11738.76334 | S28: 7806.419568 | T28: -30179.68978 | U28: -14535.70036 | V28: 115907.4375 | W28: 90737.2303
B29: 1 | C29: 2015-01-30 | D29: 21 | E29: 2015-01-30 | F29: 1.1305 | G29: 0.7511 | H29: 1.0468 | I29: 8.8335 | J29: 1.4535 | L29: 0.0008841733556 | M29: -0.004470101182 | N29: -0.009213116991 | O29: -0.001189363831 | P29: 0 | R29: 4054.826528 | S29: 22672.19923 | T29: -22044.71678 | U29: -5438.998036 | V29: 0 | W29: -756.6890629
B30: 3 | C30: 2015-02-02 | D30: 22 | E30: 2015-02-02 | F30: 1.131 | G30: 0.7526 | H30: 1.0519 | I30: 8.7225 | J30: 1.4523 | L30: -0.0004421843981 | M30: -0.001995079467 | N30: -0.004860161089 | O30: 0.01264541799 | P30: 0.0008259343852 | R30: -2027.86141 | S30: 10118.97434 | T30: -11629.16685 | U30: 57827.8924 | V30: -4574.770151 | W30: 49715.06833
B31: 1 | C31: 2015-02-03 | D31: 23 | E31: 2015-02-03 | F31: 1.1376 | G31: 0.75395 | H31: 1.0526 | I31: 8.637 | J31: 1.4799 | L31: -0.005818582933 | M31: -0.001792174652 | N31: -0.0006652411745 | O31: 0.009850593781 | P31: -0.01882601129 | R31: -26684.07082 | S31: 9089.848107 | T31: -1591.758066 | U31: 45047.07378 | V31: 104275.4438 | W31: 130136.5368
B32: 1 | C32: 2015-02-04 | D32: 24 | E32: 2015-02-04 | F32: 1.1446 | G32: 0.7516 | H32: 1.0602 | I32: 8.6305 | J32: 1.4722 | L32: -0.006134450926 | M32: 0.003121785272 | N32: -0.007194275634 | O32: 0.0007528594535 | P32: 0.005216637283 | R32: -28132.64412 | S32: -15833.58737 | T32: -17214.12731 | U32: 3442.849853 | V32: -28894.44605 | W32: -86631.955
B33: 1 | C33: 2015-02-05 | D33: 25 | E33: 2015-02-05 | F33: 1.141 | G33: 0.7482 | H33: 1.0587 | I33: 8.637 | J33: 1.4616 | L33: 0.003150160113 | M33: 0.004533945625 | N33: 0.001415829204 | O33: -0.0007528594535 | P33: 0.007226154561 | R33: 14446.66107 | S33: -22996.01604 | T33: 3387.730108 | U33: -3442.849853 | V33: -40024.96661 | W33: -48629.44133
B34: 1 | C34: 2015-02-06 | D34: 26 | E34: 2015-02-06 | F34: 1.1447 | G34: 0.7473 | H34: 1.0534 | I34: 8.5715 | J34: 1.4572 | L34: -0.003237523062 | M34: 0.001203610978 | N34: 0.0050187123 | O34: 0.007612553833 | P34: 0.003014939929 | R34: -14847.3083 | S34: -6104.673422 | T34: 12008.5408 | U34: 34812.44703 | V34: -16699.45875 | W34: 9169.547351
B35: 3 | C35: 2015-02-09 | D35: 27 | E35: 2015-02-09 | F35: 1.1275 | G35: 0.7415 | H35: 1.0428 | I35: 8.6145 | J35: 1.443 | L35: 0.01513980155 | M35: 0.007791549358 | N35: 0.01011362499 | O35: -0.005004083525 | P35: 0.009792506361 | R35: 69431.25866 | S35: -39518.46997 | T35: 24199.41033 | U35: -22883.83064 | V35: -54239.73939 | W35: -23011.371
B36: 1 | C36: 2015-02-10 | D36: 28 | E36: 2015-02-10 | F36: 1.1297 | G36: 0.742 | H36: 1.0457 | I36: 8.5665 | J36: 1.4522 | L36: -0.001949318356 | M36: -0.0006740815894 | N36: -0.002777114545 | O36: 0.005587582199 | P36: -0.006355368172 | R36: -8939.59056 | S36: 3418.918603 | T36: -6644.950202 | U36: 25552.18835 | V36: 35201.76558 | W36: 48588.33177
B37: 1 | C37: 2015-02-11 | D37: 29 | E37: 2015-02-11 | F37: 1.1314 | G37: 0.7396 | H37: 1.0465 | I37: 8.602 | J37: 1.4606 | L37: -0.001503693176 | M37: 0.003239743654 | N37: -0.0007647452815 | O37: -0.004135486571 | P37: -0.00576766224 | R37: -6895.949695 | S37: -16431.86822 | T37: -1829.846854 | U37: -18911.70957 | V37: 31946.51964 | W37: -12122.8547
B38: 1 | C38: 2015-02-12 | D38: 30 | E38: 2015-02-12 | F38: 1.1328 | G38: 0.7376 | H38: 1.0559 | I38: 8.7425 | J38: 1.4761 | L38: -0.00123664003 | M38: 0.002707827271 | N38: -0.008942220926 | O38: -0.01620145559 | P38: -0.01055616436 | R38: -5671.241697 | S38: -13734.00665 | T38: -21396.52931 | U38: -74089.7637 | V38: 58469.56668 | W38: -56421.97466
B39: 1 | C39: 2015-02-13 | D39: 31 | E39: 2015-02-13 | F39: 1.1381 | G39: 0.7401 | H39: 1.0576 | I39: 8.6535 | J39: 1.4689 | L39: -0.004667761348 | M39: -0.003383639961 | N39: -0.001608706285 | O39: 0.01023232657 | P39: 0.004889653206 | R39: -21406.39324 | S39: 17161.70534 | T39: -3849.237393 | U39: 46792.74979 | V39: -27083.31308 | W39: 11615.51141
B40: 3 | C40: 2015-02-16 | D40: 32 | E40: 2015-02-16 | F40: 1.1408 | G40: 0.7421 | H40: 1.0626 | I40: 8.6035 | J40: 1.4669 | L40: -0.002369565372 | M40: -0.002698692773 | N40: -0.004716544919 | O40: 0.005794766172 | P40: 0.001362490844 | R40: -10866.84695 | S40: 13687.67679 | T40: -11285.52878 | U40: 26499.64714 | V40: -7546.704139 | W40: 10488.24406
B41: 1 | C41: 2015-02-17 | D41: 33 | E41: 2015-02-17 | F41: 1.1415 | G41: 0.7434 | H41: 1.0631 | I41: 8.5725 | J41: 1.4593 | L41: -0.0006134163098 | M41: -0.001750252887 | N41: -0.0004704332777 | O41: 0.003609691856 | P41: 0.00519446182 | R41: -2813.132414 | S41: 8877.222357 | T41: -1125.630813 | U41: 16507.23388 | V41: -28771.61832 | W41: -7325.92531
B42: 1 | C42: 2015-02-18 | D42: 34 | E42: 2015-02-18 | F42: 1.1372 | G42: 0.7372 | H42: 1.0707 | I42: 8.548 | J42: 1.4598 | L42: 0.003774086193 | M42: 0.008375032067 | N42: -0.00712347187 | O42: 0.002862067898 | P42: -0.0003425713438 | R42: 17307.99138 | S42: -42477.87417 | T42: -17044.71136 | U42: 13088.32611 | V42: 1897.469323 | W42: -27228.79872
B43: 1 | C43: 2015-02-19 | D43: 35 | E43: 2015-02-19 | F43: 1.1387 | G43: 0.7379 | H43: 1.0796 | I43: 8.645 | J43: 1.4632 | L43: -0.00131816004 | M43: -0.0009490882687 | N43: -0.00827796198 | O43: -0.01128378168 | P43: -0.002326378059 | R43: -6045.093153 | S43: 4813.743008 | T43: -19807.12147 | U43: -51601.08691 | V43: 12885.58159 | W43: -59753.97694
B44: 1 | C44: 2015-02-20 | D44: 36 | E44: 2015-02-20 | F44: 1.1298 | G44: 0.7348 | H44: 1.0718 | I44: 8.593 | J44: 1.4399 | L44: 0.007846634925 | M44: 0.004209960723 | N44: 0.007251124083 | O44: 0.006033200804 | P44: 0.01605215136 | R44: 35984.7345 | S44: -21352.77578 | T44: 17350.15163 | U44: 27590.01618 | V44: -88911.30365 | W44: -29339.17712
B45: 3 | C45: 2015-02-23 | D45: 37 | E45: 2015-02-23 | F45: 1.1298 | G45: 0.7352 | H45: 1.0727 | I45: 8.6405 | J45: 1.451 | L45: 0 | M45: -0.0005442177005 | N45: -0.0008393565426 | O45: -0.005512533181 | P45: -0.00767930717 | R45: 0 | S45: 2760.253432 | T45: -2008.373201 | U45: -25208.98683 | V45: 42534.9348 | W45: 18077.8282
B46: 1 | C46: 2015-02-24 | D46: 38 | E46: 2015-02-24 | F46: 1.1328 | G46: 0.7344 | H46: 1.0755 | I46: 8.625 | J46: 1.4609 | L46: -0.002651818048 | M46: 0.001088731735 | N46: -0.002606835104 | O46: 0.001795488594 | P46: -0.006799710254 | R46: -12161.26012 | S46: -5522.00986 | T46: -6237.513495 | U46: 8210.825559 | V46: 37662.93312 | W46: 21952.9752
B47: 1 | C47: 2015-02-25 | D47: 39 | E47: 2015-02-25 | F47: 1.1346 | G47: 0.7328 | H47: 1.0773 | I47: 8.6325 | J47: 1.4388 | L47: -0.001587721953 | M47: 0.002181025946 | N47: -0.001672241192 | O47: -0.0008691873646 | P47: 0.01524325132 | R47: -7281.30638 | S47: -11062.08848 | T47: -4001.260758 | U47: -3974.821033 | V47: -84430.88505 | W47: -110750.3617
B48: 1 | C48: 2015-02-26 | D48: 40 | E48: 2015-02-26 | F48: 1.1317 | G48: 0.7301 | H48: 1.0745 | I48: 8.564 | J48: 1.4357 | L48: 0.002559238921 | M48: 0.003691302298 | N48: 0.002602473818 | O48: 0.007966779555 | P48: 0.002156897688 | R48: 11736.69146 | S48: -18722.15811 | T48: 6227.078012 | U48: 36432.33234 | V48: -11946.84631 | W48: 23727.09739
B49: 1 | C49: 2015-02-27 | D49: 41 | E49: 2015-02-27 | F49: 1.124 | G49: 0.7278 | H49: 1.0636 | I49: 8.574 | J49: 1.4358 | L49: 0.006827175518 | M49: 0.003155225884 | N49: 0.01019605671 | O49: -0.001166997448 | P49: -6.965000873e-05 | R49: 31309.48499 | S49: -16003.197 | T49: 24396.64912 | U49: -5336.71587 | V49: 385.7846176 | W49: 34752.00585
B50: 3 | C50: 2015-03-02 | D50: 42 | E50: 2015-03-02 | F50: 1.1227 | G50: 0.7294 | H50: 1.0724 | I50: 8.6085 | J50: 1.4433 | L50: 0.001157252989 | M50: -0.002195993197 | N50: -0.008239746993 | O50: -0.004015719059 | P50: -0.005209973231 | R50: 5307.172049 | S50: 11138.00185 | T50: -19715.68243 | U50: -18364.00899 | V50: 28857.53451 | W50: 7223.016999
B51: 1 | C51: 2015-03-03 | D51: 43 | E51: 2015-03-03 | F51: 1.1168 | G51: 0.7276 | H51: 1.0736 | I51: 8.6095 | J51: 1.4288 | L51: 0.005269045457 | M51: 0.002470831731 | N51: -0.001118359856 | O51: -0.0001161575097 | P51: 0.01009722725 | R51: 24163.88728 | S51: -12531.97343 | T51: -2675.95932 | U51: -531.1919288 | V51: -55927.55874 | W51: -47502.79614
B52: 1 | C52: 2015-03-04 | D52: 44 | E52: 2015-03-04 | F52: 1.1124 | G52: 0.7259 | H52: 1.0694 | I52: 8.6145 | J52: 1.4191 | L52: 0.003947609648 | M52: 0.002339182353 | N52: 0.003919743703 | O52: -0.0005805852462 | P52: 0.006812063282 | R52: 18103.77142 | S52: -11864.25232 | T52: 9378.979976 | U52: -2655.034509 | V52: -37731.35533 | W52: -24767.89077
B53: 1 | C53: 2015-03-05 | D53: 45 | E53: 2015-03-05 | F53: 1.1069 | G53: 0.7251 | H53: 1.0697 | I53: 8.546 | J53: 1.4205 | L53: 0.004956527968 | M53: 0.001102687913 | N53: -0.0002804917975 | O53: 0.007983492768 | P53: -0.0009860544538 | R53: 22730.67942 | S53: -5592.795115 | T53: -671.1476952 | U53: 36508.76239 | V53: 5461.659623 | W53: 58437.15862
B54: 1 | C54: 2015-03-06 | D54: 46 | E54: 2015-03-06 | F54: 1.0963 | G54: 0.722 | H54: 1.07 | I54: 8.542 | J54: 1.399 | L54: 0.009622441711 | M54: 0.004284437485 | N54: -0.0002804131439 | O54: 0.0004681648026 | P54: 0.01525122663 | R54: 44128.59953 | S54: -21730.51935 | T54: -670.9594965 | U54: 2140.9323 | V54: -84475.05952 | W54: -60607.00654
B55: 3 | C55: 2015-03-09 | D55: 47 | E55: 2015-03-09 | F55: 1.086 | G55: 0.7186 | H55: 1.0691 | I55: 8.5785 | J55: 1.4043 | L55: 0.009439652187 | M55: 0.004720264213 | N55: 0.0008414754365 | O55: -0.004263900622 | P55: -0.003781262309 | R55: 43290.32521 | S55: -23941.0175 | T55: 2013.443191 | U55: -19498.95105 | V55: 20944.04381 | W55: 22807.84366
B56: 1 | C56: 2015-03-10 | D56: 48 | E56: 2015-03-10 | F56: 1.0738 | G56: 0.7128 | H56: 1.0703 | I56: 8.6395 | J56: 1.4034 | L56: 0.01129746251 | M56: 0.008103998523 | N56: -0.001121809971 | O56: -0.00708563773 | P56: 0.0006410941559 | R56: 51810.25913 | S56: -41103.20137 | T56: -2684.214594 | U56: -32402.84319 | V56: -3550.958116 | W56: -27930.95814
B57: 1 | C57: 2015-03-11 | D57: 49 | E57: 2015-03-11 | F57: 1.0578 | G57: 0.70355 | H57: 1.0655 | I57: 8.657 | J57: 1.3899 | L57: 0.01501247936 | M57: 0.01306192892 | N57: 0.004494810452 | O57: -0.002023531463 | P57: 0.009666061727 | R57: 68847.35801 | S57: -66249.65359 | T57: 10754.97288 | U57: -9253.672735 | V57: -53539.37488 | W57: -49440.37031
B58: 1 | C58: 2015-03-12 | D58: 50 | E58: 2015-03-12 | F58: 1.0613 | G58: 0.7091 | H58: 1.0636 | I58: 8.591 | J58: 1.3771 | L58: -0.003303292136 | M58: -0.007857613076 | N58: 0.00178479217 | O58: 0.007653098578 | P58: 0.009251963358 | R58: -15148.92583 | S58: 39853.54287 | T58: 4270.567489 | U58: 34997.85941 | V58: -51245.72432 | W58: 12727.31962
B59: 1 | C59: 2015-03-13 | D59: 51 | E59: 2015-03-13 | F59: 1.0572 | G59: 0.71525 | H59: 1.0648 | I59: 8.6255 | J59: 1.38 | L59: 0.003870668038 | M59: -0.00863557162 | N59: -0.001127607712 | O59: -0.004007788596 | P59: -0.002103660418 | R59: 17750.91654 | S59: 43799.32181 | T59: -2698.087159 | U59: -18327.74273 | V59: 11651.97026 | W59: 52176.37872
B60: 3 | C60: 2015-03-16 | D60: 52 | E60: 2015-03-16 | F60: 1.0557 | G60: 0.7131 | H60: 1.0615 | I60: 8.686 | J60: 1.3797 | L60: 0.001419849734 | M60: 0.003010468896 | N60: 0.003103985938 | O60: -0.006989601861 | P60: 0.0002174149373 | R60: 6511.442958 | S60: -15268.99455 | T60: 7427.07283 | U60: -31963.66815 | V60: -1204.240171 | W60: -34498.38709
B61: 1 | C61: 2015-03-17 | D61: 53 | E61: 2015-03-17 | F61: 1.0635 | G61: 0.71995 | H61: 1.066 | I61: 8.7915 | J61: 1.3914 | L61: -0.007361301645 | M61: -0.00956010212 | N61: -0.004230323582 | O61: -0.01207281149 | P61: -0.008444350276 | R61: -33758.99195 | S61: 48488.50866 | T61: -10122.12103 | U61: -55209.34494 | V61: 46772.43408 | W61: -3829.51518
B62: 1 | C62: 2015-03-18 | D62: 54 | E62: 2015-03-18 | F62: 1.0592 | G62: 0.723 | H62: 1.0627 | I62: 8.9 | J62: 1.3901 | L62: 0.004051449458 | M62: -0.004227457004 | N62: 0.003100486347 | O62: -0.01226593114 | P62: 0.0009347475065 | R62: 18579.98167 | S62: 21441.51632 | T62: 7418.699173 | U62: -56092.48713 | V62: -5177.475437 | W62: -13829.76541
B63: 1 | C63: 2015-03-19 | D63: 55 | E63: 2015-03-19 | F63: 1.0677 | G63: 0.7183 | H63: 1.0595 | I63: 8.6355 | J63: 1.3966 | L63: -0.007992896002 | M63: 0.006521913078 | N63: 0.00301574067 | O63: 0.03016966294 | P63: -0.004665024429 | R63: -36655.48904 | S63: -33078.91849 | T63: 7215.923668 | U63: 137966.8132 | V63: 25839.11615 | W63: 101287.4455
B64: 1 | C64: 2015-03-20 | D64: 56 | E64: 2015-03-20 | F64: 1.0776 | G64: 0.7255 | H64: 1.0552 | I64: 8.7125 | J64: 1.3988 | L64: -0.009229543912 | M64: -0.009973763243 | N64: 0.004066776305 | O64: -0.008877162285 | P64: -0.001574014777 | R64: -42326.76688 | S64: 50586.58363 | T64: 9730.792732 | U64: -40595.54107 | V64: 8718.314614 | W64: -13886.61697
B65: 3 | C65: 2015-03-23 | D65: 57 | E65: 2015-03-23 | F65: 1.0912 | G65: 0.7318 | H65: 1.0561 | I65: 8.6275 | J65: 1.3938 | L65: -0.01254166199 | M65: -0.008646180261 | N65: -0.0008525553493 | O65: 0.009804000097 | P65: 0.003580896185 | R65: -57516.16857 | S65: 43853.12847 | T65: -2039.95469 | U65: 44833.99941 | V65: -19834.23535 | W65: 9296.769269
B66: 1 | C66: 2015-03-24 | D66: 58 | E66: 2015-03-24 | F66: 1.095 | G66: 0.7344 | H66: 1.0491 | I66: 8.5935 | J66: 1.3843 | L66: -0.003476355161 | M66: -0.003546586721 | N66: 0.006650224015 | O66: 0.003948672455 | P66: 0.006839233311 | R66: -15942.59434 | S66: 17988.16569 | T66: 15912.34596 | U66: 18057.40277 | V66: -37881.84748 | W66: -1866.527394
B67: 1 | C67: 2015-03-25 | D67: 59 | E67: 2015-03-25 | F67: 1.0985 | G67: 0.7365 | H67: 1.0517 | I67: 8.593 | J67: 1.3925 | L67: -0.003191249574 | M67: -0.002855396596 | N67: -0.002475248789 | O67: 5.818520352e-05 | P67: -0.005906096108 | R67: -14635.09769 | S67: 14482.47318 | T67: -5922.659894 | U67: 266.0827575 | V67: 32713.29136 | W67: 26904.08972
B68: 1 | C68: 2015-03-26 | D68: 60 | E68: 2015-03-26 | F68: 1.0973 | G68: 0.7371 | H68: 1.0498 | I68: 8.6005 | J68: 1.399 | L68: 0.001092995828 | M68: -0.0008143322926 | N68: 0.001808232708 | O68: -0.0008724227732 | P68: -0.004657002864 | R68: 5012.488163 | S68: 4130.265339 | T68: 4326.654915 | U68: -3989.616658 | V68: 25794.68548 | W68: 35274.47724
B69: 1 | C69: 2015-03-27 | D69: 61 | E69: 2015-03-27 | F69: 1.0856 | G69: 0.7298 | H69: 1.0476 | I69: 8.645 | J69: 1.394 | L69: 0.01071978748 | M69: 0.009953044193 | N69: 0.002097836185 | O69: -0.005160778031 | P69: 0.003580383345 | R69: 49161.03654 | S69: -50481.49732 | T69: 5019.604612 | U69: -23600.39952 | V69: -19831.39478 | W69: -39732.65047
B70: 3 | C70: 2015-03-30 | D70: 62 | E70: 2015-03-30 | F70: 1.0845 | G70: 0.7328 | H70: 1.0439 | I70: 8.6545 | J70: 1.4158 | L70: 0.001013778254 | M70: -0.004102289358 | N70: 0.003538134219 | O70: -0.001098297749 | P70: -0.01551743002 | R70: 4649.195694 | S70: 20806.67032 | T70: 8465.882596 | U70: -5022.549994 | V70: 85949.53419 | W70: 114848.7328
B71: 1 | C71: 2015-03-31 | D71: 63 | E71: 2015-03-31 | F71: 1.0759 | G71: 0.7273 | H71: 1.0463 | I71: 8.7035 | J71: 1.4154 | L71: 0.007961530667 | M71: 0.007533766199 | N71: -0.002296431973 | O71: -0.005645826726 | P71: 0.0002825656984 | R71: 36511.64735 | S71: -38211.00267 | T71: -5494.795354 | U71: -25818.54239 | V71: -1565.103894 | W71: -34577.79696
B72: 1 | C72: 2015-04-01 | D72: 64 | E72: 2015-04-01 | F72: 1.0755 | G72: 0.7285 | H72: 1.0426 | I72: 8.6695 | J72: 1.4153 | L72: 0.0003718508921 | M72: -0.001648578475 | N72: 0.003542538053 | O72: 0.003914124608 | P72: 7.065390189e-05 | R72: 1705.311354 | S72: 8361.53324 | T72: 8476.419884 | U72: 17899.41438 | V72: -391.3450841 | W72: 36051.33378
B73: 1 | C73: 2015-04-02 | D73: 65 | E73: 2015-04-02 | F73: 1.083 | G73: 0.7316 | H73: 1.04 | I73: 8.6506 | J73: 1.4343 | L73: -0.006949298293 | M73: -0.004246290881 | N73: 0.002496880199 | O73: 0.002182436303 | P73: -0.01333540256 | R73: -31869.54108 | S73: 21537.04109 | T73: 5974.418523 | U73: 9980.349544 | V73: 73863.49652 | W73: 79485.7646
B74: 5 | C74: =E74 -> 2015-04-07 | D74: 66 | E74: 2015-04-07 | F74: 1.0847 | G74: 0.7286 | H74: 1.0438 | I74: 8.73 | J74: 1.4192 | L74: -0.001568483045 | M74: 0.004109031942 | N74: -0.003647187074 | O74: -0.009136687151 | P74: 0.01058359274 | R74: =R$5*L74 -> -7193.076585 | S74: =S$5*M74 -> -20840.86848 | T74: =T$5*N74 -> -8726.819182 | U74: =U$5*O74 -> -41782.35641 | V74: =V$5*P74 -> -58621.48985 | W74: -137164.6105
B75: =E75-E74 -> 1 | C75: 2015-04-08 | D75: =D74+1 -> 67 | E75: 2015-04-08 | F75: 1.0862 | G75: 0.7264 | H75: 1.0438 | I75: 8.6766 | J75: 1.4078 | L75: =LN(F74/F75) -> -0.001381915555 | M75: =LN(G74/G75) -> 0.003024057287 | N75: =LN(H74/H75) -> 0 | O75: =LN(I74/I75) -> 0.006135622985 | P75: =LN(J74/J75) -> 0.008065130381 | R75: -6337.476486 | S75: -15337.9144 | T75: 0 | U75: 28058.39602 | V75: -44671.97201 | W75: =SUM(R75:V75) -> -38288.96688
B76: 1 | C76: 2015-04-09 | D76: 68 | E76: 2015-04-09 | F76: 1.0774 | G76: 0.7268 | H76: 1.0447 | I76: 8.662 | J76: 1.3951 | L76: 0.008134635354 | M76: -0.0005505092349 | N76: -0.0008618626341 | O76: 0.001684104074 | P76: 0.0090621049 | R76: 37305.50692 | S76: 2792.163878 | T76: -2062.224727 | U76: 7701.460661 | V76: -50194.11681 | W76: -4457.210074
B77: 1 | C77: 2015-04-10 | D77: 69 | E77: 2015-04-10 | F77: 1.057 | G77: 0.7244 | H77: 1.039 | I77: 8.613 | J77: 1.3824 | L77: 0.01911602438 | M77: 0.003307610513 | N77: 0.005471050744 | O77: 0.005672952985 | P77: 0.009144978224 | R77: 87666.25037 | S77: -16776.08659 | T77: 13090.87514 | U77: 25942.59162 | V77: -50653.14408 | W77: 59270.48646
B78: 3 | C78: 2015-04-13 | D78: 70 | E78: 2015-04-13 | F78: 1.0552 | G78: 0.7215 | H78: 1.0373 | I78: 8.548 | J78: 1.3925 | L78: 0.001704384467 | M78: 0.004011347795 | N78: 0.001637528661 | O78: 0.00757535235 | P78: -0.007279573752 | R78: 7816.321662 | S78: -20345.41785 | T78: 3918.202232 | U78: 34642.32348 | V78: 40320.85031 | W78: 66352.27984
B79: 1 | C79: 2015-04-14 | D79: 71 | E79: 2015-04-14 | F79: 1.0564 | G79: 0.7217 | H79: 1.0344 | I79: 8.482 | J79: 1.3936 | L79: -0.00113657902 | M79: -0.0002771618643 | N79: 0.00279963498 | O79: 0.007751066405 | P79: -0.0007896342968 | R79: -5212.361052 | S79: 1405.755429 | T79: 6698.836049 | U79: 35445.86935 | V79: 4373.707496 | W79: 42711.80728
B80: 1 | C80: 2015-04-15 | D80: 72 | E80: 2015-04-15 | F80: 1.0579 | G80: 0.7168 | H80: 1.0321 | I80: 8.415 | J80: 1.3945 | L80: -0.00141890957 | M80: 0.006812678418 | N80: 0.002225986886 | O80: 0.00793044341 | P80: -0.0006456009693 | R80: -6507.131355 | S80: -34553.67028 | T80: 5326.237635 | U80: 36266.16601 | V80: 3575.920917 | W80: 4107.522936
B81: 1 | C81: 2015-04-16 | D81: 73 | E81: 2015-04-16 | F81: 1.0711 | G81: 0.7189 | H81: 1.0327 | I81: 8.3725 | J81: 1.379 | L81: -0.01240034678 | M81: -0.002925404329 | N81: -0.0005811701055 | O81: 0.005063301957 | P81: 0.01117732927 | R81: -56868.09579 | S81: 14837.54999 | T81: -1390.596732 | U81: 23154.63838 | V81: -61910.13869 | W81: -82176.64283
B82: 1 | C82: 2015-04-17 | D82: 74 | E82: 2015-04-17 | F82: 1.0814 | G82: 0.7199 | H82: 1.0297 | I82: 8.397 | J82: 1.3842 | L82: -0.009570340177 | M82: -0.001390047485 | N82: 0.002909234015 | O82: -0.002921973515 | P82: -0.003763756614 | R82: -43889.66145 | S82: 7050.272967 | T82: 6961.079509 | U82: -13362.27637 | V82: 20847.08147 | W82: -22393.50388
B83: 3 | C83: 2015-04-20 | D83: 75 | E83: 2015-04-20 | F83: 1.0723 | G83: 0.71955 | H83: 1.0283 | I83: 8.442 | J83: 1.3823 | L83: 0.008450623722 | M83: 0.0004862968591 | N83: 0.001360544428 | O83: -0.005344748159 | P83: 0.001373576937 | R83: 38754.63226 | S83: -2466.480919 | T83: 3255.447272 | U83: -24441.70067 | V83: -7608.108933 | W83: 7493.789005
B84: 1 | C84: 2015-04-21 | D84: 76 | E84: 2015-04-21 | F84: 1.07 | G84: 0.7187 | H84: 1.0252 | I84: 8.425 | J84: 1.3821 | L84: 0.00214722577 | M84: 0.001181992142 | N84: 0.003019237745 | O84: 0.002015771122 | P84: 0.0001446968603 | R84: 9847.195644 | S84: -5995.02343 | T84: 7224.291306 | U84: 9218.184454 | V84: -801.4618225 | W84: 19493.18615
B85: 1 | C85: 2015-04-22 | D85: 77 | E85: 2015-04-22 | F85: 1.0743 | G85: 0.7129 | H85: 1.0323 | I85: 8.443 | J85: 1.3796 | L85: -0.004010638217 | M85: 0.008102866351 | N85: -0.006901606982 | O85: -0.002134219449 | P85: 0.001810479547 | R85: -18392.82097 | S85: -41097.45903 | T85: -16513.8434 | U85: -9759.852362 | V85: -10028.06995 | W85: -95792.04572
B86: 1 | C86: 2015-04-23 | D86: 78 | E86: 2015-04-23 | F86: 1.0772 | G86: 0.717 | H86: 1.0383 | I86: 8.516 | J86: 1.3937 | L86: -0.002695795265 | M86: -0.005734682476 | N86: -0.005795437838 | O86: -0.008609051344 | P86: -0.01016847906 | R86: -12362.94001 | S86: 29086.11199 | T86: -13867.05345 | U86: -39369.46135 | V86: 56322.21558 | W86: 19808.87277
B87: 1 | C87: 2015-04-24 | D87: 79 | E87: 2015-04-24 | F87: 1.0824 | G87: 0.7159 | H87: 1.0338 | I87: 8.475 | J87: 1.3884 | L87: -0.004815715919 | M87: 0.001535348197 | N87: 0.004343426547 | O87: 0.004826093765 | P87: 0.003810076138 | R87: -22084.91416 | S87: -7787.233174 | T87: 10392.74853 | U87: 22069.87789 | V87: -21103.6408 | W87: -18513.16171
B88: 3 | C88: 2015-04-27 | D88: 80 | E88: 2015-04-27 | F88: 1.0822 | G88: 0.7162 | H88: 1.0367 | I88: 8.4345 | J88: 1.3867 | L88: 0.0001847916479 | M88: -0.0004189651622 | N88: -0.002801257567 | O88: 0.004790215848 | P88: 0.001225181228 | R88: 847.4560691 | S88: 2124.976872 | T88: -6702.718499 | U88: 21905.80706 | V88: -6786.159544 | W88: 11389.36195
B89: 1 | C89: 2015-04-28 | D89: 81 | E89: 2015-04-28 | F89: 1.0927 | G89: 0.715 | H89: 1.0464 | I89: 8.392 | J89: 1.3752 | L89: -0.009655691368 | M89: 0.00167691487 | N89: -0.009313110374 | O89: 0.005051566324 | P89: 0.008327648691 | R89: -44281.08274 | S89: -8505.254462 | T89: -22283.97628 | U89: 23100.97097 | V89: -46126.03537 | W89: -98095.37788
B90: 1 | C90: 2015-04-29 | D90: 82 | E90: 2015-04-29 | F90: 1.1002 | G90: 0.7161 | H90: 1.0491 | I90: 8.385 | J90: 1.3762 | L90: -0.006840283865 | M90: -0.001537279319 | N90: -0.002576952035 | O90: 0.0008344758188 | P90: -0.0007269026997 | R90: -31369.59998 | S90: 7797.027755 | T90: -6166.010679 | U90: 3816.084047 | V90: 4026.243287 | W90: -21896.25557
B91: 1 | C91: 2015-04-30 | D91: 83 | E91: 2015-04-30 | F91: 1.1215 | G91: 0.7267 | H91: 1.0486 | I91: 8.3845 | J91: 1.4161 | L91: -0.01917509352 | M91: -0.01469391561 | N91: 0.000476712599 | O91: 5.963207014e-05 | P91: -0.02858053646 | R91: -87937.14196 | S91: 74527.03385 | T91: 1140.65568 | U91: 272.6993239 | V91: 158304.809 | W91: 146308.0559
B92: 4 | C92: 2015-05-04 | D92: 84 | E92: 2015-05-04 | F92: 1.1152 | G92: 0.73788 | H92: 1.0431 | I92: 8.463 | J92: 1.4225 | L92: 0.005633313954 | M92: -0.01526747213 | N92: 0.005258892457 | O92: -0.009318957483 | P92: -0.004509272771 | R92: 25834.4257 | S92: 77436.09277 | T92: 12583.23268 | U92: -42615.88435 | V92: 24976.42288 | W92: 98214.28969
B93: 1 | C93: 2015-05-05 | D93: 85 | E93: 2015-05-05 | F93: 1.1117 | G93: 0.735 | H93: 1.0376 | I93: 8.4475 | J93: 1.4119 | L93: 0.003143385767 | M93: 0.003910710541 | N93: 0.00528669468 | O93: 0.001833181082 | P93: 0.007479571985 | R93: 14415.59386 | S93: -19834.98916 | T93: 12649.75654 | U93: 8383.194483 | V93: -41428.62106 | W93: -25815.06533
B94: 1 | C94: 2015-05-06 | D94: 86 | E94: 2015-05-06 | F94: 1.123 | G94: 0.7376 | H94: 1.0374 | I94: 8.413 | J94: 1.403 | L94: -0.0101133005 | M94: -0.00353117303 | N94: 0.0001927710849 | O94: 0.004092411038 | P94: 0.006323513913 | R94: -46379.6821 | S94: 17909.98798 | T94: 461.2536642 | U94: 18714.72381 | V94: -35025.32794 | W94: -44319.04459
B95: 1 | C95: 2015-05-07 | D95: 87 | E95: 2015-05-07 | F95: 1.1305 | G95: 0.7425 | H95: 1.0343 | I95: 8.3275 | J95: 1.4186 | L95: -0.00665633698 | M95: -0.006621198434 | N95: 0.002992713534 | O95: 0.01021483748 | P95: -0.01105766867 | R95: -30526.018 | S95: 33582.4904 | T95: 7160.825409 | U95: 46712.77164 | V95: 61247.35023 | W95: 118177.4197
B96: 1 | C96: 2015-05-08 | D96: 88 | E96: 2015-05-08 | F96: 1.1221 | G96: 0.728 | H96: 1.0385 | I96: 8.3815 | J96: 1.4181 | L96: 0.007458083047 | M96: 0.01972182248 | N96: -0.004052494932 | O96: -0.006463605003 | P96: 0.0003525223007 | R96: 34202.83229 | S96: -100028.4043 | T96: -9696.620929 | U96: -29558.26806 | V96: -1952.586704 | W96: -107033.0477
B97: 3 | C97: 2015-05-11 | D97: 89 | E97: 2015-05-11 | F97: 1.1142 | G97: 0.7196 | H97: 1.0403 | I97: 8.4245 | J97: 1.4117 | L97: 0.007065271084 | M97: 0.01160554612 | N97: -0.001731768761 | O97: -0.005117231207 | P97: 0.004523295577 | R97: 32401.39328 | S97: -58862.93018 | T97: -4143.695548 | U97: -23401.25853 | V97: -25054.09384 | W97: -79060.58481
B98: 1 | C98: 2015-05-12 | D98: 90 | E98: 2015-05-12 | F98: 1.1239 | G98: 0.7164 | H98: 1.0396 | I98: 8.3945 | J98: 1.407 | L98: -0.008668120938 | M98: 0.00445683189 | N98: 0.0006731093095 | O98: 0.003567397802 | P98: 0.003334873776 | R98: -39752.07634 | S98: -22604.89783 | T98: 1610.584572 | U98: 16313.82184 | V98: -18471.54118 | W98: -62904.10894
B99: 1 | C99: 2015-05-13 | D99: 91 | E99: 2015-05-13 | F99: 1.1221 | G99: 0.7174 | H99: 1.041 | I99: 8.357 | J99: 1.3945 | L99: 0.001602849853 | M99: -0.001394894912 | N99: -0.001345765848 | O99: 0.004477218475 | P99: 0.008923850047 | R99: 7350.68306 | S99: 7074.858946 | T99: -3220.085775 | U99: 20474.46027 | V99: -49428.33663 | W99: -17748.42013
B100: 1 | C100: 2015-05-14 | D100: 92 | E100: 2015-05-14 | F100: 1.1419 | G100: 0.7231 | H100: 1.0386 | I100: 8.4328 | J100: 1.4087 | L100: -0.01749161204 | M100: -0.007913960083 | N100: 0.002308137205 | O100: -0.00902935294 | P100: -0.0101313652 | R100: -80216.68157 | S100: 40139.33295 | T100: 5522.803088 | U100: -41291.5137 | V100: 56116.6455 | W100: -19729.41373
B101: 1 | C101: 2015-05-15 | D101: 93 | E101: 2015-05-15 | F101: 1.1328 | G101: 0.7211 | H101: 1.0463 | I101: 8.3745 | J101: 1.4159 | L101: 0.008001097768 | M101: 0.002769701258 | N101: -0.007386478977 | O101: 0.006937489522 | P101: -0.005098078025 | R101: 36693.10241 | S101: -14047.82938 | T101: -17674.0225 | U101: 31725.3568 | V101: 28237.75786 | W101: 64934.36519
B102: 3 | C102: 2015-05-18 | D102: 94 | E102: 2015-05-18 | F102: 1.1389 | G102: 0.727 | H102: 1.0482 | I102: 8.3815 | J102: 1.4228 | L102: -0.005370440341 | M102: -0.008148653611 | N102: -0.001814275981 | O102: -0.0008355216528 | P102: -0.004861389783 | R102: -24628.88508 | S102: 41329.69044 | T102: -4341.114978 | U102: -3820.866678 | V102: 26926.76473 | W102: 35465.58844
B103: 1 | C103: 2015-05-19 | D103: 95 | E103: 2015-05-19 | F103: 1.118 | G103: 0.72185 | H103: 1.042 | I103: 8.3545 | J103: 1.4027 | L103: 0.01852150957 | M103: 0.007109116458 | N103: 0.005932464055 | O103: 0.003226580237 | P103: 0.01422781035 | R103: 84939.80039 | S103: -36057.19381 | T103: 14194.92339 | U103: 14755.25245 | V103: -78806.45638 | W103: -973.6739553
B104: 1 | C104: 2015-05-20 | D104: 96 | E104: 2015-05-20 | F104: 1.1118 | G104: 0.7157 | H104: 1.0429 | I104: 8.3975 | J104: 1.407 | L104: 0.005561051196 | M104: 0.008556276331 | N104: -0.0008633508139 | O104: -0.005133726652 | P104: -0.003060827389 | R104: 25503.02808 | S104: -43397.13884 | T104: -2065.785574 | U104: -23476.69272 | V104: 16953.62492 | W104: -26482.96413
B105: 1 | C105: 2015-05-21 | D105: 97 | E105: 2015-05-21 | F105: 1.1133 | G105: 0.7099 | H105: 1.0394 | I105: 8.433 | J105: 1.4112 | L105: -0.001348254215 | M105: 0.008136969699 | N105: 0.003361670553 | O105: -0.004218538088 | P105: -0.002980628138 | R105: -6183.105298 | S105: -41270.43004 | T105: 8043.648563 | U105: -19291.50676 | V105: 16509.40908 | W105: -42191.98446
B106: 1 | C106: 2015-05-22 | D106: 98 | E106: 2015-05-22 | F106: 1.1164 | G106: 0.7138 | H106: 1.0417 | I106: 8.4135 | J106: 1.4163 | L106: -0.002780644928 | M106: -0.005478696011 | N106: -0.002210370416 | O106: 0.002315021958 | P106: -0.003607430968 | R106: -12752.06129 | S106: 27787.75746 | T106: -5288.871274 | U106: 10586.6679 | V106: 19981.20893 | W106: 40314.70173
B107: 3 | C107: 2015-05-25 | D107: 99 | E107: 2015-05-25 | F107: 1.0978 | G107: 0.71 | H107: 1.0349 | I107: 8.39 | J107: 1.4023 | L107: 0.01680104555 | M107: 0.005337841021 | N107: 0.006549190316 | O107: 0.002797038155 | P107: 0.009934091488 | R107: 77049.73777 | S107: -27073.3458 | T107: 15670.59724 | U107: 12790.94306 | V107: -55023.96562 | W107: 23413.96664
B108: 1 | C108: 2015-05-26 | D108: 100 | E108: 2015-05-26 | F108: 1.0926 | G108: 0.7096 | H108: 1.0351 | I108: 8.3685 | J108: 1.402 | L108: 0.004748000154 | M108: 0.00056353904 | N108: -0.0001932367156 | O108: 0.002565863508 | P108: 0.0002139571381 | R108: 21774.36909 | S108: -2858.2506 | T108: -462.3678035 | U108: 11733.77416 | V108: -1185.087758 | W108: 29002.43708
B109: 1 | C109: 2015-05-27 | D109: 101 | E109: 2015-05-27 | F109: 1.0863 | G109: 0.707 | H109: 1.0331 | I109: 8.4255 | J109: 1.4089 | L109: 0.005782750522 | M109: 0.003670765099 | N109: 0.001934049534 | O109: -0.006788164687 | P109: -0.004909469465 | R109: 26519.74308 | S109: -18617.99414 | T109: 4627.703552 | U109: -31042.48965 | V109: 27193.07341 | W109: 8680.036239
B110: 1 | C110: 2015-05-28 | D110: 102 | E110: 2015-05-28 | F110: 1.0896 | G110: 0.7124 | H110: 1.0344 | I110: 8.491 | J110: 1.4267 | L110: -0.003033229956 | M110: -0.007608885519 | N110: -0.001257557602 | O110: -0.007743957359 | P110: -0.01255482706 | R110: -13910.41837 | S110: 38592.00527 | T110: -3009.025198 | U110: -35413.35947 | V110: 69539.96483 | W110: 55799.16706
B111: 1 | C111: 2015-05-29 | D111: 103 | E111: 2015-05-29 | F111: 1.097 | G111: 0.719 | H111: 1.0341 | I111: 8.536 | J111: 1.4338 | L111: -0.00676852488 | M111: -0.009221806306 | N111: 0.0002900652667 | O111: -0.005285734982 | P111: -0.004964177298 | R111: -31040.51267 | S111: 46772.68394 | T111: 694.0546461 | U111: -24171.83157 | V111: 27496.09477 | W111: 19750.48912
B112: 3 | C112: 2015-06-01 | D112: 104 | E112: 2015-06-01 | F112: 1.0944 | G112: 0.71925 | H112: 1.0331 | I112: 8.7065 | J112: 1.4341 | L112: 0.002372913407 | M112: -0.0003476447106 | N112: 0.0009674923355 | O112: -0.01977735914 | P112: -0.0002092123164 | R112: 10882.20107 | S112: 1763.241998 | T112: 2314.970552 | U112: -90442.48257 | V112: 1158.806653 | W112: -74323.2623
B113: 1 | C113: 2015-06-02 | D113: 105 | E113: 2015-06-02 | F113: 1.1029 | G113: 0.7243 | H113: 1.0391 | I113: 8.6755 | J113: 1.4342 | L113: -0.007736806444 | M113: -0.00699666877 | N113: -0.005790963003 | O113: 0.003566912078 | P113: -6.972771331e-05 | R113: -35481.06015 | S113: 35486.863 | T113: -13856.34627 | U113: 16311.60061 | V113: 386.2150157 | W113: 2847.272206
B114: 1 | C114: 2015-06-03 | D114: 106 | E114: 2015-06-03 | F114: 1.1134 | G114: 0.7275 | H114: 1.0427 | I114: 8.7145 | J114: 1.4321 | L114: -0.009475322437 | M114: -0.004408327844 | N114: -0.003458548937 | O114: -0.00448534392 | P114: 0.001465303964 | R114: -43453.90928 | S114: 22358.88698 | T114: -8275.454643 | U114: -20511.61818 | V114: -8116.176002 | W114: -57998.27113
B115: 1 | C115: 2015-06-04 | D115: 107 | E115: 2015-06-04 | F115: 1.1317 | G115: 0.7354 | H115: 1.0551 | I115: 8.737 | J115: 1.4618 | L115: -0.01630253022 | M115: -0.01080056982 | N115: -0.01182204635 | O115: -0.002578576336 | P115: -0.02052665456 | R115: -74763.54225 | S115: 54780.11812 | T115: -28287.24132 | U115: -11791.91032 | V115: 113695.1413 | W115: 53632.56549
B116: 1 | C116: 2015-06-05 | D116: 108 | E116: 2015-06-05 | F116: 1.1218 | G116: 0.7317 | H116: 1.0478 | I116: 8.8085 | J116: 1.4534 | L116: 0.008786388898 | M116: 0.005043974977 | N116: 0.006942821174 | O116: -0.008150283069 | P116: 0.005762913864 | R116: 40294.45421 | S116: -25582.86735 | T116: 16612.4588 | U116: -37271.49966 | V116: -31920.21885 | W116: -37867.67284
B117: 3 | C117: 2015-06-08 | D117: 109 | E117: 2015-06-08 | F117: 1.1162 | G117: 0.7318 | H117: 1.047 | I117: 8.827 | J117: 1.4615 | L117: 0.00500447872 | M117: -0.0001366586951 | N117: 0.0007637961036 | O117: -0.002098041653 | P117: -0.005557666369 | R117: 22950.58197 | S117: 693.1281945 | T117: 1827.575705 | U117: -9594.410169 | V117: 30783.37295 | W117: 46660.24866
B118: 1 | C118: 2015-06-09 | D118: 110 | E118: 2015-06-09 | F118: 1.1249 | G118: 0.7354 | H118: 1.0465 | I118: 8.778 | J118: 1.4606 | L118: -0.007764083444 | M118: -0.004907316282 | N118: 0.0004776689845 | O118: 0.005566614772 | P118: 0.0006159953653 | R118: -35606.15271 | S118: 24889.73915 | T118: 1142.944075 | U118: 25456.30364 | V118: -3411.938359 | W118: 12470.8958
B119: 1 | C119: 2015-06-10 | D119: 111 | E119: 2015-06-10 | F119: 1.1279 | G119: 0.7284 | H119: 1.0486 | I119: 8.699 | J119: 1.4571 | L119: -0.002663353847 | M119: 0.009564221014 | N119: -0.002004678252 | O119: 0.009040514741 | P119: 0.002399151166 | R119: -12214.16339 | S119: -48509.39955 | T119: -4796.700655 | U119: 41342.55697 | V119: -13288.66474 | W119: -37466.37137
B120: 1 | C120: 2015-06-11 | D120: 112 | E120: 2015-06-11 | F120: 1.1232 | G120: 0.7266 | H120: 1.0523 | I120: 8.786 | J120: 1.4533 | L120: 0.004175742374 | M120: 0.002474228066 | N120: -0.003522303608 | O120: -0.009951469028 | P120: 0.002611326388 | R120: 19149.99004 | S120: -12549.19953 | T120: -8428.003848 | U120: -45508.37945 | V120: -14463.88264 | W120: -61799.47542
B121: 1 | C121: 2015-06-12 | D121: 113 | E121: 2015-06-12 | F121: 1.122 | G121: 0.7245 | H121: 1.0469 | I121: 8.695 | J121: 1.456 | L121: 0.001068947189 | M121: 0.002894358026 | N121: 0.005144828421 | O121: 0.01041139775 | P121: -0.001856117125 | R121: 4902.2009 | S121: -14680.08422 | T121: 12310.30557 | U121: 47611.64788 | V121: 10280.85205 | W121: 60424.92219
B122: 3 | C122: 2015-06-15 | D122: 114 | E122: 2015-06-15 | F122: 1.1218 | G122: 0.7234 | H122: 1.0512 | I122: 8.712 | J122: 1.4466 | L122: 0.0001782690084 | M122: 0.001519442243 | N122: -0.004098952405 | O122: -0.001953237824 | P122: 0.006476974341 | R122: 817.5431887 | S122: -7706.558719 | T122: -9807.782203 | U122: -8932.217727 | V122: -35875.33032 | W122: -61504.34578
B123: 1 | C123: 2015-06-16 | D123: 115 | E123: 2015-06-16 | F123: 1.1215 | G123: 0.7182 | H123: 1.0465 | I123: 8.723 | J123: 1.4482 | L123: 0.000267463114 | M123: 0.007214237726 | N123: 0.004481105844 | O123: -0.00126182982 | P123: -0.00110543054 | R123: 1226.588115 | S123: -36590.36526 | T123: 10722.18113 | U123: -5770.387277 | V123: 6122.87214 | W123: -24289.11114
B124: 1 | C124: 2015-06-17 | D124: 116 | E124: 2015-06-17 | F124: 1.1279 | G124: 0.717 | H124: 1.0451 | I124: 8.7245 | J124: 1.4694 | L124: -0.005690421686 | M124: 0.001672241192 | N124: 0.001338688286 | O124: -0.0001719444051 | P124: -0.01453274823 | R124: -26096.32225 | S124: -8481.549729 | T124: 3203.150914 | U124: -786.307148 | V124: 80495.47763 | W124: 48334.44942
B125: 1 | C125: 2015-06-18 | D125: 117 | E125: 2015-06-18 | F125: 1.1404 | G125: 0.7167 | H125: 1.0461 | I125: 8.831 | J125: 1.457 | L125: -0.01102158139 | M125: 0.0004184975997 | N125: -0.0009563887493 | O125: -0.01213309863 | P125: 0.008474626991 | R125: -50545.066 | S125: -2122.605411 | T125: -2288.402408 | U125: -55485.03992 | V125: -46940.13386 | W125: -157381.2476
B126: 1 | C126: 2015-06-19 | D126: 118 | E126: 2015-06-19 | F126: 1.1299 | G126: 0.7134 | H126: 1.0449 | I126: 8.8255 | J126: 1.4591 | L126: 0.009249944823 | M126: 0.004615070075 | N126: 0.00114777631 | O126: 0.0006230000485 | P126: -0.001440280075 | R126: 42420.32563 | S126: -23407.47646 | T126: 2746.345639 | U126: 2848.998728 | V126: 7977.571117 | W126: 32585.76466
B127: 3 | C127: 2015-06-22 | D127: 119 | E127: 2015-06-22 | F127: 1.1345 | G127: 0.7169 | H127: 1.0435 | I127: 8.742 | J127: 1.4616 | L127: -0.004062892005 | M127: -0.004894087934 | N127: 0.001340739523 | O127: 0.009506261997 | P127: -0.001711918794 | R127: -18632.45729 | S127: 24822.64543 | T127: 3208.059019 | U127: 43472.43375 | V127: 9482.151536 | W127: 62352.83245
B128: 1 | C128: 2015-06-23 | D128: 120 | E128: 2015-06-23 | F128: 1.1204 | G128: 0.7101 | H128: 1.0449 | I128: 8.7255 | J128: 1.4538 | L128: 0.01250626083 | M128: 0.009530555671 | N128: -0.001340739523 | O128: 0.001889223404 | P128: 0.005350908013 | R128: 57353.81855 | S128: -48338.65009 | T128: -3208.059019 | U128: 8639.47778 | V128: -29638.15855 | W128: -15191.57133
B129: 1 | C129: 2015-06-24 | D129: 121 | E129: 2015-06-24 | F129: 1.1213 | G129: 0.7118 | H129: 1.0449 | I129: 8.769 | J129: 1.4473 | L129: -0.0008029620809 | M129: -0.002391167888 | N129: 0 | O129: -0.00497300176 | P129: 0.004481066407 | R129: -3682.390932 | S129: 12127.92117 | T129: 0 | U129: -22741.69276 | V129: -24820.19058 | W129: -39116.3531
B130: 1 | C130: 2015-06-25 | D130: 122 | E130: 2015-06-25 | F130: 1.1206 | G130: 0.7126 | H130: 1.0507 | I130: 8.7595 | J130: 1.4477 | L130: 0.0006244703357 | M130: -0.001123280096 | N130: -0.005535421655 | O130: 0.001083949103 | P130: -0.0002763385164 | R130: 2863.82627 | S130: 5697.237955 | T130: -13244.89885 | U130: 4956.933189 | V130: 1530.61214 | W130: 1803.710704
B131: 1 | C131: 2015-06-26 | D131: 123 | E131: 2015-06-26 | F131: 1.1202 | G131: 0.7123 | H131: 1.0447 | I131: 8.773 | J131: 1.4631 | L131: 0.0003570153555 | M131: 0.0004210821874 | N131: 0.005726845851 | O131: -0.001539997453 | P131: -0.01058138222 | R131: 1637.275457 | S131: -2135.714351 | T131: 13702.92974 | U131: -7042.456568 | V131: 58609.246 | W131: 64771.28028
B132: 3 | C132: 2015-06-29 | D132: 124 | E132: 2015-06-29 | F132: 1.1133 | G132: 0.7085 | H132: 1.0376 | I132: 8.8065 | J132: 1.4526 | L132: 0.006178663041 | M132: 0.005349111854 | N132: 0.006819408841 | O132: -0.003811262044 | P132: 0.007202418212 | R132: 28335.40126 | S132: -27130.51108 | T132: 16317.16352 | U132: -17429.02066 | V132: -39893.49329 | W132: -39800.46024
B133: 1 | C133: 2015-06-30 | D133: 125 | E133: 2015-06-30 | F133: 1.1189 | G133: 0.7114 | H133: 1.0413 | I133: 8.791 | J133: 1.455 | L133: -0.005017482079 | M133: -0.004084800384 | N133: -0.003559578534 | O133: 0.001761614321 | P133: -0.001650846434 | R133: -23010.21549 | S133: 20717.96685 | T133: -8517.193552 | U133: 8055.917447 | V133: 9143.877678 | W133: 6390.352933
B134: 1 | C134: 2015-07-01 | D134: 126 | E134: 2015-07-01 | F134: 1.11 | G134: 0.70905 | H134: 1.0457 | I134: 8.7435 | J134: 1.4458 | L134: 0.007986044507 | M134: 0.003308813607 | N134: -0.004216585069 | O134: 0.005417903697 | P134: 0.006343099039 | R134: 36624.06803 | S134: -16782.18864 | T134: -10089.24816 | U134: 24776.24324 | V134: -35133.80805 | W134: -604.9335774
B135: 1 | C135: 2015-07-02 | D135: 127 | E135: 2015-07-02 | F135: 1.1066 | G135: 0.7103 | H135: 1.0507 | I135: 8.795 | J135: 1.4573 | L135: 0.003067763842 | M135: -0.001761370096 | N135: -0.00477009109 | O135: -0.005872811018 | P135: -0.007922606973 | R135: 14068.79107 | S135: 8933.60846 | T135: -11413.65156 | U135: -26856.54866 | V135: 43882.54873 | W135: 28614.74804
B136: 1 | C136: 2015-07-03 | D136: 128 | E136: 2015-07-03 | F136: 1.1096 | G136: 0.7102 | H136: 1.0466 | I136: 8.85 | J136: 1.4747 | L136: -0.002707338537 | M136: 0.0001407954948 | N136: 0.003909793757 | O136: -0.00623408083 | P136: -0.01186917072 | R136: -12415.87755 | S136: -714.1098999 | T136: 9355.172209 | U136: -28508.64683 | V136: 65742.18109 | W136: 33458.71902
B137: 3 | C137: 2015-07-06 | D137: 129 | E137: 2015-07-06 | F137: 1.1008 | G137: 0.708 | H137: 1.0422 | I137: 8.9095 | J137: 1.4688 | L137: 0.007962401822 | M137: 0.003102526815 | N137: 0.004212951463 | O137: -0.006700664165 | P137: 0.004008838391 | R137: 36515.64247 | S137: -15735.90914 | T137: 10080.55383 | U137: -30642.34703 | V137: -22204.56557 | W137: -21986.62543
B138: 1 | C138: =E138 -> 2015-07-07 | D138: 130 | E138: 2015-07-07 | F138: 1.0931 | G138: 0.7077 | H138: 1.0383 | I138: 8.983 | J138: 1.4722 | L138: 0.007019491879 | M138: 0.000423818612 | N138: 0.003749103166 | O138: -0.008215779062 | P138: -0.002312139758 | R138: =R$5*L138 -> 32191.44946 | S138: =S$5*M138 -> -2149.593402 | T138: =T$5*N138 -> 8970.679255 | U138: =U$5*O138 -> -37571.01489 | V138: =V$5*P138 -> 12806.71702 | W138: 14248.23745
B139: =E139-E138 -> 1 | C139: 2015-07-08 | D139: =D138+1 -> 131 | E139: 2015-07-08 | F139: 1.1024 | G139: 0.7173 | H139: 1.0463 | I139: 9.07 | J139: 1.4866 | L139: =LN(F138/F139) -> -0.00847192496 | M139: =LN(G138/G139) -> -0.01347388805 | N139: =LN(H138/H139) -> -0.007675371078 | O139: =LN(I138/I139) -> -0.00963836188 | P139: =LN(J138/J139) -> -0.009733752667 | R139: -38852.31992 | S139: 68339.09609 | T139: -18365.27005 | U139: -44076.53065 | V139: 53914.3084 | W139: =SUM(R139:V139) -> 20959.28386
B140: 1 | C140: 2015-07-09 | D140: 132 | E140: 2015-07-09 | F140: 1.1054 | G140: 0.7176 | H140: 1.0504 | I140: 9.0185 | J140: 1.4816 | L140: -0.00271763914 | M140: -0.0004181476122 | N140: -0.003910912602 | O140: 0.005694240999 | P140: 0.003369048399 | R140: -12463.11621 | S140: 2120.830286 | T140: -9357.849329 | U140: 26039.94237 | V140: -18660.83109 | W140: -12321.02397
B141: 1 | C141: 2015-07-10 | D141: 133 | E141: 2015-07-10 | F141: 1.1185 | G141: 0.7208 | H141: 1.0464 | I141: 8.9005 | J141: 1.4975 | L141: -0.01178124153 | M141: -0.00444939555 | N141: 0.003815342286 | O141: 0.01317056819 | P141: -0.0106744661 | R141: -54028.87386 | S141: 22567.18097 | T141: 9129.173133 | U141: 60229.42072 | V141: 59124.82851 | W141: 97021.72947
B142: 3 | C142: 2015-07-13 | D142: 134 | E142: 2015-07-13 | F142: 1.1049 | G142: 0.7115 | H142: 1.0478 | I142: 8.9035 | J142: 1.4874 | L142: 0.01223366881 | M142: 0.01298628876 | N142: -0.001337026271 | O142: -0.0003370029239 | P142: 0.00676742172 | R142: 56103.70921 | S142: -65866.00931 | T142: -3199.174123 | U142: -1541.124922 | V142: -37484.09007 | W142: -51986.68921
B143: 1 | C143: 2015-07-14 | D143: 135 | E143: 2015-07-14 | F143: 1.1031 | G143: 0.7084 | H143: 1.0422 | I143: 8.9925 | J143: 1.4828 | L143: 0.001630435144 | M143: 0.004366511621 | N143: 0.005358864499 | O143: -0.009946438728 | P143: 0.003097436993 | R143: 7477.189436 | S143: -22146.79654 | T143: 12822.44112 | U143: -45485.37573 | V143: -17156.40195 | W143: -64488.94367
B144: 1 | C144: 2015-07-15 | D144: 136 | E144: 2015-07-15 | F144: 1.1009 | G144: 0.7045 | H144: 1.0439 | I144: 8.9405 | J144: 1.4753 | L144: 0.001996370899 | M144: 0.00552057457 | N144: -0.001629835939 | O144: 0.005799380555 | P144: 0.005070833353 | R144: 9155.373922 | S144: -28000.16407 | T144: -3899.795445 | U144: 26520.74885 | V144: -28086.85227 | W144: -24310.68901
B145: 1 | C145: 2015-07-16 | D145: 137 | E145: 2015-07-16 | F145: 1.0867 | G145: 0.6981 | H145: 1.0407 | I145: 8.858 | J145: 1.4713 | L145: 0.01298244601 | M145: 0.009125972362 | N145: 0.00307013577 | O145: 0.009270510532 | P145: 0.00271499522 | R145: 59537.60781 | S145: -46286.61748 | T145: 7346.077728 | U145: 42394.33492 | V145: -15038.0942 | W145: 47953.30877
B146: 1 | C146: 2015-07-17 | D146: 138 | E146: 2015-07-17 | F146: 1.0889 | G146: 0.6983 | H146: 1.0431 | I146: 8.8805 | J146: 1.4712 | L146: -0.002022431283 | M146: -0.0002864508756 | N146: -0.002303485038 | O146: -0.002536856224 | P146: 6.796941379e-05 | R146: -9274.887065 | S146: 1452.868975 | T146: -5511.6716 | U146: -11601.12294 | V146: -376.4759659 | W146: -25311.2886
B147: 3 | C147: 2015-07-20 | D147: 139 | E147: 2015-07-20 | F147: 1.0852 | G147: 0.6971 | H147: 1.0443 | I147: 8.8955 | J147: 1.4703 | L147: 0.003403710567 | M147: 0.00171993736 | N147: -0.001149755804 | O147: -0.001687669167 | P147: 0.0006119327065 | R147: 15609.44561 | S147: -8723.463046 | T147: -2751.08208 | U147: -7717.763944 | V147: -3389.435687 | W147: -6972.299147
B148: 1 | C148: 2015-07-21 | D148: 140 | E148: 2015-07-21 | F148: 1.0867 | G148: 0.6987 | H148: 1.044 | I148: 8.9165 | J148: 1.4746 | L148: -0.001381279284 | M148: -0.002292593066 | N148: 0.0002873150429 | O148: -0.002357962018 | P148: -0.002920304972 | R148: -6334.558544 | S148: 11627.95306 | T148: 687.4740388 | U148: -10783.03413 | V148: 16175.28494 | W148: 11373.11936
B149: 1 | C149: 2015-07-22 | D149: 141 | E149: 2015-07-22 | F149: 1.0902 | G149: 0.6982 | H149: 1.0482 | I149: 8.899 | J149: 1.4765 | L149: -0.003215584561 | M149: 0.0007158708875 | N149: -0.004014917925 | O149: 0.001964582036 | P149: -0.001287655628 | R149: -14746.69815 | S149: -3630.872484 | T149: -9606.708419 | U149: 8984.09516 | V149: 7132.199167 | W149: -11867.98472
B150: 1 | C150: 2015-07-23 | D150: 142 | E150: 2015-07-23 | F150: 1.0999 | G150: 0.7044 | H150: 1.0517 | I150: 8.963 | J150: 1.4844 | L150: -0.008858100933 | M150: -0.008840781951 | N150: -0.003333495158 | O150: -0.0071660815 | P150: -0.005336228002 | R150: -40623.32622 | S150: 44840.14154 | T150: -7976.231791 | U150: -32770.71507 | V150: 29556.8474 | W150: -6973.284137
B151: 1 | C151: 2015-07-24 | D151: 143 | E151: 2015-07-24 | F151: 1.0939 | G151: 0.7069 | H151: 1.0512 | I151: 8.9955 | J151: 1.5058 | L151: 0.005469974437 | M151: -0.003542836555 | N151: 0.0004755337956 | O151: -0.003619459919 | P151: -0.01431366823 | R151: 25085.34929 | S151: 17969.14498 | T151: 1137.835095 | U151: -16551.90354 | V151: 79282.01483 | W151: 106922.4407
B152: 3 | C152: 2015-07-27 | D152: 144 | E152: 2015-07-27 | F152: 1.1058 | G152: 0.7127 | H152: 1.0595 | I152: 9.042 | J152: 1.5184 | L152: -0.01081976278 | M152: -0.008171361331 | N152: -0.007864729978 | O152: -0.005155936578 | P152: -0.00833283044 | R152: -49619.52412 | S152: 41444.86321 | T152: -18818.3592 | U152: -23578.2594 | V152: 46154.73657 | W152: -4416.542946
B153: 1 | C153: 2015-07-28 | D153: 145 | E153: 2015-07-28 | F153: 1.1025 | G153: 0.7074 | H153: 1.0659 | I153: 9.0215 | J153: 1.5089 | L153: 0.002988726583 | M153: 0.007464297736 | N153: -0.006022413987 | O153: 0.002269771506 | P153: 0.006276240336 | R153: 13706.32553 | S153: -37858.66102 | T153: -14410.1514 | U153: 10379.73616 | V153: -34763.4842 | W153: -62946.23492
B154: 1 | C154: 2015-07-29 | D154: 146 | E154: 2015-07-29 | F154: 1.103 | G154: 0.7053 | H154: 1.0622 | I154: 8.9975 | J154: 1.5101 | L154: -0.0004534119325 | M154: 0.002973032557 | N154: 0.003477283707 | O154: 0.002663856395 | P154: -0.0007949652621 | R154: -2079.350979 | S154: -15079.11873 | T154: 8320.282327 | U154: 12181.8987 | V154: 4403.235194 | W154: 7746.946516
B155: 1 | C155: 2015-07-30 | D155: 147 | E155: 2015-07-30 | F155: 1.0955 | G155: 0.701 | H155: 1.0633 | I155: 8.943 | J155: 1.5065 | L155: 0.006822860218 | M155: 0.00611535718 | N155: -0.001035050669 | O155: 0.006075657607 | P155: 0.002386794211 | R155: 31289.69499 | S155: -31016.88098 | T155: -2476.620981 | U155: 27784.17247 | V155: -13220.22077 | W155: 12360.14472
B156: 1 | C156: 2015-07-31 | D156: 148 | E156: 2015-07-31 | F156: 1.0967 | G156: 0.7041 | H156: 1.0565 | I156: 9.0015 | J156: 1.514 | L156: -0.001094790731 | M156: -0.00441250449 | N156: 0.006415721601 | O156: -0.006520126751 | P156: -0.004966075427 | R156: -5020.719602 | S156: 22380.07079 | T156: 15351.23952 | U156: -29816.74378 | V156: 27506.60832 | W156: 30400.45525
B157: 3 | C157: 2015-08-03 | D157: 149 | E157: 2015-08-03 | F157: 1.0951 | G157: 0.7028 | H157: 1.0598 | I157: 9.0005 | J157: 1.5071 | L157: 0.001459987484 | M157: 0.001848035212 | N157: -0.003118653003 | O157: 0.0001110987669 | P157: 0.004567880572 | R157: 6695.515021 | S157: -9373.170942 | T157: -7462.167499 | U157: 508.0581396 | V157: -25301.04578 | W157: -34932.81106
B158: 1 | C158: 2015-08-04 | D158: 150 | E158: 2015-08-04 | F158: 1.0973 | G158: 0.70275 | H158: 1.064 | I158: 9.0015 | J158: 1.4831 | L158: -0.002006933715 | M158: 7.11465263e-05 | N158: -0.003955179843 | O158: -0.0001110987669 | P158: 0.01605278268 | R158: -9203.815086 | S158: -360.8527308 | T158: -9463.76992 | U158: -508.0581396 | V158: -88914.80044 | W158: -108451.2963
B159: 1 | C159: 2015-08-05 | D159: 151 | E159: 2015-08-05 | F159: 1.0883 | G159: 0.6963 | H159: 1.0658 | I159: 8.9955 | J159: 1.4755 | L159: 0.008235771295 | M159: 0.009220607838 | N159: -0.001690299961 | O159: 0.000666777821 | P159: 0.005137576365 | R159: 37769.3172 | S159: -46766.60536 | T159: -4044.470937 | U159: 3049.195852 | V159: -28456.53532 | W159: -38449.09856
B160: 1 | C160: 2015-08-06 | D160: 152 | E160: 2015-08-06 | F160: 1.0885 | G160: 0.7014 | H160: 1.0713 | I160: 9.026 | J160: 1.4849 | L160: -0.0001837559726 | M160: -0.007297735758 | N160: -0.005147173406 | O160: -0.00338484911 | P160: -0.006350514519 | R160: -842.7064531 | S160: 37013.8644 | T160: -12315.91654 | U160: -15479.02096 | V160: 35174.88167 | W160: 43551.10211
B161: 1 | C161: 2015-08-07 | D161: 153 | E161: 2015-08-07 | F161: 1.0941 | G161: 0.7051 | H161: 1.0738 | I161: 9.041 | J161: 1.4809 | L161: -0.005131505808 | M161: -0.005261299019 | N161: -0.00233089472 | O161: -0.00166048635 | P161: 0.002697418859 | R161: -23533.12928 | S161: 26685.1274 | T161: -5577.256209 | U161: -7593.45607 | V161: -14940.74045 | W161: -24959.45461
B162: 3 | C162: 2015-08-10 | D162: 154 | E162: 2015-08-10 | F162: 1.096 | G162: 0.7071 | H162: 1.08 | I162: 9.026 | J162: 1.4884 | L162: -0.001735081025 | M162: -0.002832461885 | N162: -0.00575728213 | O162: 0.00166048635 | P162: -0.005051706429 | R162: -7957.096338 | S162: 14366.14912 | T162: -13775.75625 | U162: 7593.45607 | V162: 27980.9101 | W162: 28207.66271
B163: 1 | C163: 2015-08-11 | D163: 155 | E163: 2015-08-11 | F163: 1.1055 | G163: 0.7088 | H163: 1.0859 | I163: 9.0835 | J163: 1.5092 | L163: -0.00863053279 | M163: -0.002401300681 | N163: -0.005448095105 | O163: -0.006350279492 | P163: -0.01387799162 | R163: -39579.69678 | S163: 12179.31434 | T163: -13035.94795 | U163: -29040.02694 | V163: 76868.84449 | W163: 7392.487158
B164: 1 | C164: 2015-08-12 | D164: 156 | E164: 2015-08-12 | F164: 1.1155 | G164: 0.7149 | H164: 1.0864 | I164: 9.076 | J164: 1.5128 | L164: -0.009005013575 | M164: -0.008569273482 | N164: -0.0004603415816 | O164: 0.0008260139791 | P164: -0.002382529254 | R164: -41297.06884 | S164: 43463.05994 | T164: -1101.483873 | U164: 3777.387789 | V164: 13196.59759 | W164: 18038.4926
B165: 1 | C165: 2015-08-13 | D165: 157 | E165: 2015-08-13 | F165: 1.1109 | G165: 0.7106 | H165: 1.0849 | I165: 9.0745 | J165: 1.5121 | L165: 0.004132237285 | M165: 0.006032989186 | N165: 0.001381660976 | O165: 0.0001652847033 | P165: 0.0004628252256 | R165: 18950.47533 | S165: -30599.11335 | T165: 3305.973964 | U165: 755.8521232 | V165: -2563.543867 | W165: -10150.3558
B166: 1 | C166: 2015-08-14 | D166: 158 | E166: 2015-08-14 | F166: 1.1171 | G166: 0.7145 | H166: 1.0875 | I166: 9.1375 | J166: 1.5122 | L166: -0.005565543989 | M166: -0.005473313783 | N166: -0.002393667134 | O166: -0.006918542862 | P166: -6.613100555e-05 | R166: -25523.63207 | S166: 27760.45898 | T166: -5727.455116 | U166: -31638.71313 | V166: 366.2932016 | W166: -34763.04813
B167: 3 | C167: 2015-08-17 | D167: 159 | E167: 2015-08-17 | F167: 1.11 | G167: 0.7105 | H167: 1.0841 | I167: 9.1585 | J167: 1.5096 | L167: 0.00637602627 | M167: 0.005614049833 | N167: 0.003131334296 | O167: -0.002295584742 | P167: 0.00172082907 | R167: 29240.5107 | S167: -28474.26738 | T167: 7492.510706 | U167: -10497.7809 | V167: -9531.504688 | W167: -11770.53156
B168: 1 | C168: 2015-08-18 | D168: 160 | E168: 2015-08-18 | F168: 1.106 | G168: 0.7042 | H168: 1.0798 | I168: 9.1555 | J168: 1.5065 | L168: 0.003610112224 | M168: 0.008906540816 | N168: 0.003974310883 | O168: 0.0003276182185 | P168: 0.002055635484 | R168: 16556.00536 | S168: -45173.66824 | T168: 9509.545781 | U168: 1498.208371 | V168: -11385.96482 | W168: -28995.87355
B169: 1 | C169: 2015-08-19 | D169: 161 | E169: 2015-08-19 | F169: 1.1041 | G169: 0.7049 | H169: 1.0755 | I169: 9.168 | J169: 1.5026 | L169: 0.001719379637 | M169: -0.0009935420589 | N169: 0.003990169076 | O169: -0.001364368373 | P169: 0.002592138635 | R169: 7885.089639 | S169: 5039.211101 | T169: 9547.490526 | U169: -6239.299287 | V169: -14357.60354 | W169: 1874.888435
B170: 1 | C170: 2015-08-20 | D170: 162 | E170: 2015-08-20 | F170: 1.1183 | G170: 0.7138 | H170: 1.0772 | I170: 9.2325 | J170: 1.5287 | L170: -0.01277915159 | M170: -0.01254686228 | N170: -0.00157941223 | O170: -0.007010707772 | P170: -0.01722076007 | R170: -58605.29787 | S170: 63637.2533 | T170: -3779.143944 | U170: -32060.18615 | V170: 95384.11352 | W170: 64576.73885
B171: 1 | C171: 2015-08-21 | D171: 163 | E171: 2015-08-21 | F171: 1.1281 | G171: 0.7198 | H171: 1.0765 | I171: 9.2745 | J171: 1.5384 | L171: -0.008725126577 | M171: -0.008370584589 | N171: 0.000650044133 | O171: -0.00453883094 | P171: -0.006325214268 | R171: -40013.50469 | S171: 42455.31672 | T171: 1555.395294 | U171: -20756.216 | V171: 35034.74604 | W171: 18275.73736
B172: 3 | C172: 2015-08-24 | D172: 164 | E172: 2015-08-24 | F172: 1.1497 | G172: 0.7302 | H172: 1.0777 | I172: 9.369 | J172: 1.5903 | L172: -0.01896623715 | M172: -0.01434507358 | N172: -0.001114102798 | O172: -0.01013766828 | P172: -0.03317976239 | R172: -86979.32487 | S172: 72757.71907 | T172: -2665.773231 | U172: -46359.87448 | V172: 183779.4737 | W172: 120532.2202
B173: 1 | C173: 2015-08-25 | D173: 165 | E173: 2015-08-25 | F173: 1.1506 | G173: 0.729 | H173: 1.0834 | I173: 9.3885 | J173: 1.5937 | L173: -0.0007825066695 | M173: 0.001644737213 | N173: -0.005275103621 | O173: -0.002079169082 | P173: -0.002135679204 | R173: -3588.582242 | S173: -8342.050492 | T173: -12622.022 | U173: -9508.105309 | V173: 11829.31919 | W173: -22231.44085
B174: 1 | C174: 2015-08-26 | D174: 166 | E174: 2015-08-26 | F174: 1.1402 | G174: 0.7314 | H174: 1.0778 | I174: 9.502 | J174: 1.5963 | L174: 0.009079859832 | M174: -0.003286773707 | N174: 0.005182317724 | O174: -0.01201676671 | P174: -0.001630094405 | R174: 41640.31441 | S174: 16670.40303 | T174: 12400.00823 | U174: -54953.05043 | V174: 9028.934212 | W174: 24786.60945
B175: 1 | C175: 2015-08-27 | D175: 167 | E175: 2015-08-27 | F175: 1.1284 | G175: 0.7312 | H175: 1.0771 | I175: 9.4025 | J175: 1.579 | L175: 0.01040298547 | M175: 0.0002734855753 | N175: 0.0006496821427 | O175: 0.0105266914 | P175: 0.01089671601 | R175: 47708.17984 | S175: -1387.109418 | T175: 1554.52914 | U175: 48138.88937 | V175: -60355.84916 | W175: 35658.63977
B176: 1 | C176: 2015-08-28 | D176: 168 | E176: 2015-08-28 | F176: 1.1268 | G176: 0.7321 | H176: 1.0807 | I176: 9.34 | J176: 1.5789 | L176: 0.001418943126 | M176: -0.001230096513 | N176: -0.003336734952 | O176: 0.006669359122 | P176: 6.33332278e-05 | R176: 6507.285242 | S176: 6239.007142 | T176: -7983.98382 | U176: 30499.18808 | V176: -350.796583 | W176: 34910.70006
B177: 3 | C177: 2015-08-31 | D177: 169 | E177: 2015-08-31 | F177: 1.1215 | G177: 0.72753 | H177: 1.0825 | I177: 9.3585 | J177: 1.5753 | L177: 0.004714682042 | M177: 0.006261881344 | N177: -0.001664201568 | O177: -0.001978768996 | P177: 0.002282671716 | R177: 21621.57194 | S177: -31760.04649 | T177: -3982.023918 | U177: -9048.972574 | V177: -12643.49641 | W177: -35812.96745
B178: 1 | C178: 2015-09-01 | D178: 170 | E178: 2015-09-01 | F178: 1.1236 | G178: 0.7328 | H178: 1.0825 | I178: 9.356 | J178: 1.5956 | L178: -0.00187074127 | M178: -0.007217578051 | N178: 0 | O178: 0.0002671725149 | P178: -0.01280411072 | R178: -8579.235374 | S178: 36607.30727 | T178: 0 | U178: 1221.788276 | V178: 70920.72274 | W178: 100170.5829
B179: 1 | C179: 2015-09-02 | D179: 171 | E179: 2015-09-02 | F179: 1.1255 | G179: 0.7369 | H179: 1.0867 | I179: 9.3015 | J179: 1.6061 | L179: -0.001689565117 | M179: -0.005579384413 | N179: -0.003872400192 | O179: 0.005842171246 | P179: -0.006559039038 | R179: -7748.359995 | S179: 28298.44557 | T179: -9265.698631 | U179: 26716.43203 | V179: 36329.87868 | W179: 74330.69764
B180: 1 | C180: 2015-09-03 | D180: 172 | E180: 2015-09-03 | F180: 1.1229 | G180: 0.7345 | H180: 1.0903 | I180: 9.273 | J180: 1.6035 | L180: 0.002312756768 | M180: 0.003262202159 | N180: -0.003307306644 | O180: 0.003068725658 | P180: 0.001620139936 | R180: 10606.32221 | S180: -16545.77699 | T180: -7913.569135 | U180: 14033.37852 | V180: -8973.797376 | W180: -8793.442773
B181: 1 | C181: 2015-09-04 | D181: 173 | E181: 2015-09-04 | F181: 1.1138 | G181: 0.7315 | H181: 1.0839 | I181: 9.2165 | J181: 1.5948 | L181: 0.008137032423 | M181: 0.004092775154 | N181: 0.005887239891 | O181: 0.006111595864 | P181: 0.005440403626 | R181: 37316.4999 | S181: -20758.41461 | T181: 14086.71312 | U181: 27948.51924 | V181: -30133.86604 | W181: 28459.45161
B182: 3 | C182: 2015-09-07 | D182: 174 | E182: 2015-09-07 | F182: 1.1146 | G182: 0.73035 | H182: 1.0871 | I182: 9.2645 | J182: 1.6062 | L182: -0.0007180039799 | M182: 0.001573349163 | N182: -0.002947952388 | O182: -0.005194535786 | P182: -0.007122804247 | R182: -3292.772358 | S182: -7979.972764 | T182: -7053.723028 | U182: -23754.77479 | V182: 39452.51929 | W182: -2628.723652
B183: 1 | C183: 2015-09-08 | D183: 175 | E183: 2015-09-08 | F183: 1.1162 | G183: 0.7244 | H183: 1.092 | I183: 9.2245 | J183: 1.5976 | L183: -0.001434463219 | M183: 0.008180145288 | N183: -0.004497277095 | O183: 0.004326903825 | P183: 0.005368637653 | R183: -6578.460522 | S183: -41489.41514 | T183: -10760.87495 | U183: 19787.06667 | V183: -29736.3613 | W183: -68778.04524
B184: 1 | C184: 2015-09-09 | D184: 176 | E184: 2015-09-09 | F184: 1.1139 | G184: 0.7251 | H184: 1.0893 | I184: 9.2 | J184: 1.586 | L184: 0.002062688503 | M184: -0.0009658503683 | N184: 0.002475589216 | O184: 0.002659503861 | P184: 0.007287379907 | R184: 9459.507019 | S184: 4898.7598 | T184: 5923.474454 | U184: 12161.99442 | V184: -40364.08785 | W184: -7920.352149
B185: 1 | C185: 2015-09-10 | D185: 177 | E185: 2015-09-10 | F185: 1.1185 | G185: 0.72655 | H185: 1.0923 | I185: 9.176 | J185: 1.5831 | L185: -0.004121131079 | M185: -0.001997727389 | N185: -0.002750276761 | O185: 0.002612104228 | P185: 0.001830173115 | R185: -18899.54218 | S185: 10132.40451 | T185: -6580.734004 | U185: 11945.23442 | V185: -10137.15071 | W185: -13539.78796
B186: 1 | C186: 2015-09-11 | D186: 178 | E186: 2015-09-11 | F186: 1.1268 | G186: 0.7306 | H186: 1.1031 | I186: 9.271 | J186: 1.5955 | L186: -0.007393255072 | M186: -0.005558810594 | N186: -0.009838833126 | O186: -0.0102998688 | P186: -0.007802216639 | R186: -33905.53064 | S186: 28194.09587 | T186: -23541.90117 | U186: -47101.6225 | V186: 43215.71838 | W186: -33139.24007
B187: 3 | C187: 2015-09-14 | D187: 179 | E187: 2015-09-14 | F187: 1.1305 | G187: 0.7334 | H187: 1.0979 | I187: 9.257 | J187: 1.5874 | L187: -0.003278255716 | M187: -0.003825141276 | N187: 0.004725133735 | O187: 0.00151122654 | P187: 0.005089709062 | R187: -15034.10859 | S187: 19400.9848 | T187: 11306.07969 | U187: 6910.886283 | V187: -28191.40299 | W187: -5607.560807
B188: 1 | C188: 2015-09-15 | D188: 180 | E188: 2015-09-15 | F188: 1.132 | G188: 0.7346 | H188: 1.0971 | I188: 9.2565 | J188: 1.5885 | L188: -0.001325967045 | M188: -0.001634877748 | N188: 0.0007289294172 | O188: 5.401463798e-05 | P188: -0.0006927170528 | R188: -6080.896146 | S188: 8292.043627 | T188: 1744.148324 | U188: 247.0106307 | V188: 3836.892316 | W188: 8039.198752
B189: 1 | C189: 2015-09-16 | D189: 181 | E189: 2015-09-16 | F189: 1.1228 | G189: 0.72665 | H189: 1.0943 | I189: 9.2385 | J189: 1.5677 | L189: 0.008160414275 | M189: 0.01088120231 | N189: 0.002555445399 | O189: 0.001946472634 | P189: 0.01318059764 | R189: 37423.72927 | S189: -55189.08334 | T189: 6114.550604 | U189: 8901.280299 | V189: -73006.04711 | W189: -75755.57028
B190: 1 | C190: 2015-09-17 | D190: 182 | E190: 2015-09-17 | F190: 1.1312 | G190: 0.72865 | H190: 1.095 | I190: 9.2165 | J190: 1.5776 | L190: -0.007453450655 | M190: -0.002748575908 | N190: -0.0006394738262 | O190: 0.002384178859 | P190: -0.006295127774 | R190: -34181.58809 | S190: 13940.68233 | T190: -1530.103156 | U190: 10902.92457 | V190: 34868.09988 | W190: 24000.01553
B191: 1 | C191: 2015-09-18 | D191: 183 | E191: 2015-09-18 | F191: 1.1419 | G191: 0.7298 | H191: 1.0913 | I191: 9.237 | J191: 1.5709 | L191: -0.009414525565 | M191: -0.001577017023 | N191: 0.003384717132 | O191: -0.002221801656 | P191: 0.004256001342 | R191: -43175.09431 | S191: 7998.57602 | T191: 8098.793342 | U191: -10160.36854 | V191: -23573.5771 | W191: -60811.67059
B192: 3 | C192: 2015-09-21 | D192: 184 | E192: 2015-09-21 | F192: 1.125 | G192: 0.7243 | H192: 1.0906 | I192: 9.2205 | J192: 1.5693 | L192: 0.01491050607 | M192: 0.007564852801 | N192: 0.0006416426271 | O192: 0.001787891577 | P192: 0.001019043461 | R192: 68379.70765 | S192: -38368.67284 | T192: 1535.292562 | U192: 8176.084163 | V192: -5644.382523 | W192: 34078.02901
B193: 1 | C193: 2015-09-22 | D193: 185 | E193: 2015-09-22 | F193: 1.1155 | G193: 0.7223 | H193: 1.086 | I193: 9.2145 | J193: 1.5732 | L193: 0.008480300766 | M193: 0.002765106144 | N193: 0.004226781998 | O193: 0.0006509357431 | P193: -0.002482101513 | R193: 38890.73144 | S193: -14024.52312 | T193: 10113.64689 | U193: 2976.749534 | V193: 13748.11864 | W193: 51704.72338
B194: 1 | C194: 2015-09-23 | D194: 186 | E194: 2015-09-23 | F194: 1.115 | G194: 0.7297 | H194: 1.0882 | I194: 9.237 | J194: 1.5813 | L194: 0.0004483299784 | M194: -0.01019292571 | N194: -0.002023733558 | O194: -0.002438827321 | P194: -0.005135531972 | R194: 2056.045094 | S194: 51698.16814 | T194: -4842.295302 | U194: -11152.8337 | V194: 28445.21162 | W194: 66204.29586
B195: 1 | C195: 2015-09-24 | D195: 187 | E195: 2015-09-24 | F195: 1.1241 | G195: 0.7387 | H195: 1.0928 | I195: 9.463 | J195: 1.6147 | L195: -0.008128310574 | M195: -0.01225839376 | N195: -0.004218254765 | O195: -0.02417229992 | P195: -0.02090188736 | R195: -37276.50142 | S195: 62174.15093 | T195: -10093.24333 | U195: -110540.6843 | V195: 115773.5192 | W195: 20037.24103
B196: 1 | C196: 2015-09-25 | D196: 188 | E196: 2015-09-25 | F196: 1.1151 | G196: 0.73475 | H196: 1.0922 | I196: 9.513 | J196: 1.5895 | L196: 0.008038628496 | M196: 0.005361579236 | N196: 0.0005491990985 | O196: -0.005269826698 | P196: 0.01572967954 | R196: 36865.21865 | S196: -27193.74521 | T196: 1314.097997 | U196: -24099.08249 | V196: -87125.1636 | W196: -100238.6746
B197: 3 | C197: 2015-09-28 | D197: 189 | E197: 2015-09-28 | F197: 1.117 | G197: 0.7352 | H197: 1.0941 | I197: 9.582 | J197: 1.5967 | L197: -0.001702433098 | M197: -0.0006122657425 | N197: -0.001738096765 | O197: -0.007227054237 | P197: -0.004519497995 | R197: -7807.372666 | S197: 3105.390757 | T197: -4158.836901 | U197: -33049.5453 | V197: 25033.0594 | W197: -16877.30471
B198: 1 | C198: 2015-09-29 | D198: 190 | E198: 2015-09-29 | F198: 1.1204 | G198: 0.7391 | H198: 1.0901 | I198: 9.522 | J198: 1.6009 | L198: -0.003039244317 | M198: -0.005290658749 | N198: 0.003662672348 | O198: 0.006281427689 | P198: -0.002626971738 | R198: -13938.00029 | S198: 26834.03894 | T198: 8763.871625 | U198: 28725.16549 | V198: 14550.54071 | W198: 64935.61649
B199: 1 | C199: 2015-09-30 | D199: 191 | E199: 2015-09-30 | F199: 1.1203 | G199: 0.7385 | H199: 1.0915 | I199: 9.5245 | J199: 1.5939 | L199: 8.925782128e-05 | M199: 0.0008121278194 | N199: -0.001283461856 | O199: -0.0002625154243 | P199: 0.004382127959 | R199: 409.3371275 | S199: -4119.084327 | T199: -3071.007688 | U199: -1200.491255 | V199: -24272.18015 | W199: -32253.42629
B200: 1 | C200: 2015-10-01 | D200: 192 | E200: 2015-10-01 | F200: 1.1153 | G200: 0.7367 | H200: 1.0903 | I200: 9.4565 | J200: 1.5777 | L200: 0.004473079564 | M200: 0.002440348283 | N200: 0.001100009278 | O200: 0.00716509045 | P200: 0.01021575286 | R200: 20513.58092 | S200: -12377.36243 | T200: 2632.050912 | U200: 32766.18297 | V200: -56584.06055 | W200: -13049.60818
... 583 more rows

Sheet MonteCarlo
A1: QUASI MONTE CARLO | M1: 1 | N1: 2 | O1: 3 | P1: 4 | Q1: 5 | R1: =VarMonteC(market,MPos,1,0.05,2000) ->  | V1: MC avec Racine Carrée | AA1: =cent(VarMonteCV(market,MPos,1,2000),0.05) -> 
R2: Portefeuille | S2: dev 4 + dev 5
G3: MIN | H3: =MIN(H11:H2010) -> -3.315591267 | I3: =MIN(I11:I2010) -> -3.414070554 | J3: =MIN(J11:J2010) -> -3.3415946 | K3: =MIN(K11:K2010) -> -3.814239956 | L3: =MIN(L11:L2010) -> -3.31686612 | M3: =M9*M5 -> -44494.62191 | N3: =N9*N6 -> -51613.3155 | O3: =O9*O5 -> -26004.79544 | P3: =P9*P5 -> -39507.11937 | Q3: =Q9*Q6 -> -59371.62106 | R3: =PERCENTILE(R11:R2010,$G5) -> -75304.89828 | S3: =PERCENTILE(S11:S2010,$G5) -> -57215.4248 | T3: VAR | V3: =V9*V5 -> -43327.18619 | W3: =W9*W5 -> 51929.39288 | X3: =X9*X5 -> -25611.26182 | Y3: =Y9*Y5 -> -39909.42361 | Z3: =Z9*Z5 -> 61134.00553 | AA3: =PERCENTILE(AA11:AA2010,$G5) -> -73982.4753 | AB3: =PERCENTILE(AB11:AB2010,$G5) -> -57577.56734
G4: MAX | H4: =MAX(H11:H2010) -> 3.116681672 | I4: =MAX(I11:I2010) -> 3.102335844 | J4: =MAX(J11:J2010) -> 3.02346749 | K4: =MAX(K11:K2010) -> 3.174175201 | L4: =MAX(L11:L2010) -> 2.996498389 | R4: =PERCENTILE(R11:R2010,$G6) -> 73934.85547 | S4: =PERCENTILE(S11:S2010,$G6) -> 57579.71211 | AA4: =PERCENTILE(AA11:AA2010,$G6) -> 76216.95563 | AB4: =PERCENTILE(AB11:AB2010,$G6) -> 57172.79236
G5: 0.05 | H5: =PERCENTILE(H11:H2010,$G5) -> -1.646630379 | I5: -1.649058335 | J5: -1.645258233 | K5: -1.656624827 | L5: -1.648839395 | M5: -0.009702254555 | N5: -0.01029442447 | O5: -0.01086814701 | P5: =PERCENTILE(P11:P2010,$G5) -> -0.008639153484 | Q5: -0.01087443863 | V5: =PERCENTILE(V11:V2010,$G5) -> -0.00944768989 | W5: =PERCENTILE(W11:W2010,$G5) -> -0.0102385145 | X5: =PERCENTILE(X11:X2010,$G5) -> -0.01070367807 | Y5: =PERCENTILE(Y11:Y2010,$G5) -> -0.008727126692 | Z5: =PERCENTILE(Z11:Z2010,$G5) -> -0.01103720528
G6: =1-G5 -> 0.95 | H6: =PERCENTILE(H11:H2010,$G6) -> 1.633435046 | I6: 1.636533772 | J6: 1.62930476 | K6: 1.613614046 | L6: 1.63132445 | M6: 0.009624505184 | N6: 0.01017619598 | O6: 0.01053658716 | P6: 0.008586325699 | Q6: 0.01071902232 | V6: =PERCENTILE(V11:V2010,$G6) -> 0.009592047096 | W6: =PERCENTILE(W11:W2010,$G6) -> 0.01019653732 | X6: =PERCENTILE(X11:X2010,$G6) -> 0.0107984527 | Y6: =PERCENTILE(Y11:Y2010,$G6) -> 0.008638721956 | Z6: =PERCENTILE(Z11:Z2010,$G6) -> 0.01081767977
AB7: correlation
G8: STD | H8: =STDEVP(H11:H2010) -> 0.9966279755 | I8: =STDEVP(I11:I2010) -> 0.9986896763 | J8: =STDEVP(J11:J2010) -> 0.9943777312 | K8: =STDEVP(K11:K2010) -> 0.9971675703 | L8: =STDEVP(L11:L2010) -> 0.9938508607 | M8: =PERCENTILE(ABS(M11:M2010),0.9) -> 0.009674845899 | N8: =PERCENTILE(ABS(N11:N2010),0.9) -> 0.01024200114 | O8: =PERCENTILE(ABS(O11:O2010),0.9) -> 0.01077171135 | P8: =PERCENTILE(ABS(P11:P2010),0.9) -> 0.008598284011 | Q8: =PERCENTILE(ABS(Q11:Q2010),0.9) -> 0.01073766341 | R8: CVAR | S8: ANTI | AB8: ANTI
B9: =form(B11) -> =halton(B$10;$A11) | G9: VAR | H9: =H8*ic -> 1.63930714 | I9: =I8*ic -> 1.642698336 | J9: =J8*ic -> 1.635605818 | K9: =K8*ic -> 1.640194695 | L9: =L8*ic -> 1.634739193 | M9: =Parametrique!C7 -> 4586008.505 | N9: =Parametrique!D7 -> -5071965.556 | O9: =Parametrique!E7 -> 2392753.375 | P9: =Parametrique!F7 -> 4573031.31 | Q9: =Parametrique!G7 -> -5538902.646 | R9: =AVERAGEIF(R11:R2010,"<"&R3) -> -94249.47483 | S9: =PERCENTILE(ABS(R11:R2010),0.9) -> 74963.08555 | V9: =M9 -> 4586008.505 | W9: =N9 -> -5071965.556 | X9: =O9 -> 2392753.375 | Y9: =P9 -> 4573031.31 | Z9: =Q9 -> -5538902.646 | AA9: =AVERAGEIF(AA11:AA2010,"<"&AA3) -> -95310.34644 | AB9: =PERCENTILE(ABS(AA11:AA2010),0.9) -> 75402.49206
B10: 3 | C10: 5 | D10: 7 | E10: 11 | F10: 13 | H10: =form(H11) -> =LOI.NORMALE.STANDARD.INVERSE(B11) | M10: =form(M11) -> =PRODUITMAT(H11:L11;TRANSPOSE(chol)) | T10: TEST
A11: 1 | B11: =halton(B$10,$A11) -> 0.3333333333 | C11: =halton(C$10,$A11) -> 0.2 | D11: =halton(D$10,$A11) -> 0.1428571429 | E11: =halton(E$10,$A11) -> 0.09090909091 | F11: =halton(F$10,$A11) -> 0.07692307692 | H11: =NORMSINV(B11) -> -0.4307272993 | I11: =NORMSINV(C11) -> -0.8416212336 | J11: =NORMSINV(D11) -> -1.067570524 | K11: =NORMSINV(E11) -> -1.335177736 | L11: =NORMSINV(F11) -> -1.426076872 | M11: =MMULT(H11:L11,TRANSPOSE(chol)) -> -0.002537925909 | N11: -0.005831883815 | O11: -0.007705525723 | P11: -0.008903023565 | Q11: -0.01366815991 | R11: =SUMPRODUCT($M$9:$Q$9,M11:Q11) -> 34495.54292 | S11: =P11*$P$9+Q11*$Q$9 -> 34992.80157 | T11: =-S11 -> -34992.80157 | V11: =MMULT(H11:L11,TRANSPOSE(racar)) -> -0.005996194342 | W11: -0.008387850282 | X11: -0.008825523106 | Y11: -0.009599632845 | Z11: -0.01269665756 | AA11: =SUMPRODUCT($V$9:$Z$9,V11:Z11) -> 20353.11784 | AB11: =Y11*$Y$9+Z11*$Z$9 -> 26426.12857
A12: 2 | B12: 0.6666666667 | C12: 0.4 | D12: 0.2857142857 | E12: 0.1818181818 | F12: 0.1538461538 | H12: 0.4307272993 | I12: -0.2533471031 | J12: -0.5659488219 | K12: -0.9084578685 | L12: -1.020076233 | M12: =MMULT(H12:L12,TRANSPOSE(chol)) -> 0.002537925909 | N12: -0.0004389755549 | O12: -0.003138910575 | P12: -0.004915915896 | Q12: -0.006820305888 | R12: =SUMPRODUCT($M$9:$Q$9,M12:Q12) -> 21651.15284 | S12: =P12*$P$9+Q12*$Q$9 -> 15296.37302 | T12: =-S12 -> -15296.37302 | V12: =MMULT(H12:L12,TRANSPOSE(racar)) -> 0.000345621712 | W12: -0.00305946204 | X12: -0.004508719108 | Y12: -0.006135653631 | Z12: -0.007557744564 | AA12: =SUMPRODUCT($V$9:$Z$9,V12:Z12) -> 20117.33253 | AB12: =Y12*$Y$9+Z12*$Z$9 -> 13803.0752
A13: 3 | B13: 0.1111111111 | C13: 0.6 | D13: 0.4285714286 | E13: 0.2727272727 | F13: 0.2307692308 | H13: -1.220640349 | I13: 0.2533471031 | J13: -0.1800123698 | K13: -0.6045853466 | L13: -0.7363159174 | M13: =MMULT(H13:L13,TRANSPOSE(chol)) -> -0.007192241522 | N13: -0.001416822262 | O13: -0.002706503983 | P13: -0.003653469738 | Q13: -0.008457103434 | R13: -2137.96254 | S13: 30135.64108 | T13: -30135.64108 | V13: =MMULT(H13:L13,TRANSPOSE(racar)) -> -0.007762972163 | W13: -0.001118936315 | X13: -0.00247568167 | Y13: -0.003999214687 | Z13: -0.006778974768 | AA13: =SUMPRODUCT($V$9:$Z$9,V13:Z13) -> -16589.99829 | AB13: =Y13*$Y$9+Z13*$Z$9 -> 19259.5473
A14: 4 | B14: 0.4444444444 | C14: 0.8 | D14: 0.5714285714 | E14: 0.3636363636 | F14: 0.3076923077 | H14: -0.1397102989 | I14: 0.8416212336 | J14: 0.1800123698 | K14: -0.3487556955 | L14: -0.5024022234 | M14: =MMULT(H14:L14,TRANSPOSE(chol)) -> -0.0008231992443 | N14: 0.004491714983 | O14: 0.0012452238 | P14: -0.0004322467972 | Q14: -0.002335676711 | R14: -12617.10119 | S14: 10960.40778 | T14: -10960.40778 | V14: =MMULT(H14:L14,TRANSPOSE(racar)) -> -0.0005216631528 | W14: 0.004073980854 | X14: 0.0008673898248 | Y14: -0.001615093781 | Z14: -0.002727767588 | AA14: =SUMPRODUCT($V$9:$Z$9,V14:Z14) -> -13257.02761 | AB14: 7722.964682
A15: 5 | B15: 0.7777777778 | C15: 0.04 | D15: 0.7142857143 | E15: 0.4545454545 | F15: 0.3846153846 | H15: 0.7647096738 | I15: -1.750686071 | J15: 0.5659488219 | K15: -0.1141852943 | L15: -0.2933812321 | M15: =MMULT(H15:L15,TRANSPOSE(chol)) -> 0.004505812603 | N15: -0.008229554519 | O15: 0.004080192099 | P15: -0.002361909554 | Q15: -0.001765483714 | R15: 71144.36147 | S15: -1022.24393 | T15: 1022.24393 | V15: =MMULT(H15:L15,TRANSPOSE(racar)) -> 0.002366876196 | W15: -0.009851553313 | X15: 0.003376494508 | Y15: -0.002024476251 | Z15: -0.002493035666 | AA15: =SUMPRODUCT($V$9:$Z$9,V15:Z15) -> 73451.06063 | AB15: 4550.688561
A16: 6 | B16: 0.2222222222 | C16: 0.24 | D16: 0.8571428571 | E16: 0.5454545455 | F16: 0.4615384615 | H16: -0.7647096738 | I16: -0.7063025628 | J16: 1.067570524 | K16: 0.1141852943 | L16: -0.09655861529 | M16: =MMULT(H16:L16,TRANSPOSE(chol)) -> -0.004505812603 | N16: -0.005841564875 | O16: 0.005595326229 | P16: -0.0004811075965 | Q16: -0.00273342133 | R16: 35292.79117 | S16: 12940.03453 | T16: -12940.03453 | V16: =MMULT(H16:L16,TRANSPOSE(racar)) -> -0.00455550365 | W16: -0.004712597721 | X16: 0.006292022308 | Y16: 0.0001372355013 | Z16: -0.001535459767 | AA16: =SUMPRODUCT($V$9:$Z$9,V16:Z16) -> 27198.15686 | AB16: 9132.344408
A17: 7 | B17: 0.5555555556 | C17: 0.44 | D17: 0.02040816327 | E17: 0.6363636364 | F17: 0.5384615385 | H17: 0.1397102989 | I17: -0.1509692155 | J17: -2.04539099 | K17: 0.3487556955 | L17: 0.09655861529 | M17: =MMULT(H17:L17,TRANSPOSE(chol)) -> 0.0008231992443 | N17: -0.0005363661988 | O17: -0.01299012425 | P17: 0.000403296955 | Q17: -0.0003690318681 | R17: -20698.21283 | S17: 3888.321193 | T17: -3888.321193 | V17: =MMULT(H17:L17,TRANSPOSE(racar)) -> -0.0003118931361 | W17: -0.0009239390669 | X17: -0.01305307476 | Y17: 0.001039372012 | Z17: -0.0003134789612 | AA17: =SUMPRODUCT($V$9:$Z$9,V17:Z17) -> -21487.53595 | AB17: 6489.410202
A18: 8 | B18: 0.8888888889 | C18: 0.64 | D18: 0.1632653061 | E18: 0.7272727273 | F18: 0.6153846154 | H18: 1.220640349 | I18: 0.3584587933 | J18: -0.9811259962 | K18: 0.6045853466 | L18: 0.2933812321 | M18: =MMULT(H18:L18,TRANSPOSE(chol)) -> 0.007192241522 | N18: 0.004920621056 | O18: -0.004544459107 | P18: 0.003917143163 | Q18: 0.006024911847 | R18: -18305.49143 | S18: -15458.18184 | T18: 15458.18184 | V18: =MMULT(H18:L18,TRANSPOSE(racar)) -> 0.007186317945 | W18: 0.003955674794 | X18: -0.00518415919 | Y18: 0.003572612161 | Z18: 0.003881672788 | AA18: =SUMPRODUCT($V$9:$Z$9,V18:Z18) -> -4673.485896 | AB18: -5162.540403
A19: 9 | B19: 0.03703703704 | C19: 0.84 | D19: 0.306122449 | E19: 0.8181818182 | F19: 0.6923076923 | H19: -1.786155561 | I19: 0.9944578832 | J19: -0.5068716226 | K19: 0.9084578685 | L19: 0.5024022234 | M19: =MMULT(H19:L19,TRANSPOSE(chol)) -> -0.01052436306 | N19: 0.001498898404 | O19: -0.00531769928 | P19: 0.004396687767 | Q19: 0.0002816212924 | R19: -50044.80457 | S19: 18546.3179 | T19: -18546.3179 | V19: =MMULT(H19:L19,TRANSPOSE(racar)) -> -0.008451475035 | W19: 0.005185563617 | X19: -0.003338100855 | Y19: 0.00551865119 | Z19: 0.002614718916 | AA19: =SUMPRODUCT($V$9:$Z$9,V19:Z19) -> -62292.49737 | AB19: 10754.29116
A20: 10 | B20: 0.3703703704 | C20: 0.08 | D20: 0.4489795918 | E20: 0.9090909091 | F20: 0.7692307692 | H20: -0.3308725717 | I20: -1.40507156 | J20: -0.128239826 | K20: 1.335177736 | L20: 0.7363159174 | M20: =MMULT(H20:L20,TRANSPOSE(chol)) -> -0.001949563154 | N20: -0.008824155659 | O20: -0.001728519273 | P20: 0.004137840351 | Q20: 0.003253196488 | R20: 32582.51488 | S20: 903.3348485 | T20: -903.3348485 | V20: =MMULT(H20:L20,TRANSPOSE(racar)) -> -0.002202283553 | W20: -0.006832478832 | X20: -0.0004329194943 | Y20: 0.006371879707 | Z20: 0.004149987022 | AA20: =SUMPRODUCT($V$9:$Z$9,V20:Z20) -> 29670.96792 | AB20: 6152.431307
A21: 11 | B21: 0.7037037037 | C21: 0.28 | D21: 0.5918367347 | E21: 0.00826446281 | F21: 0.8461538462 | H21: 0.5350828151 | I21: -0.5828415073 | J21: 0.2322722935 | K21: -2.397022125 | L21: 1.020076233 | M21: =MMULT(H21:L21,TRANSPOSE(chol)) -> 0.00315280815 | N21: -0.002080813006 | O21: 0.002015460137 | P21: -0.0122814615 | Q21: 0.001870425774 | R21: -36688.49833 | S21: -66523.61426 | T21: 66523.61426 | V21: =MMULT(H21:L21,TRANSPOSE(racar)) -> 0.003424888246 | W21: -0.003724721263 | X21: 0.001436506046 | Y21: -0.01132751505 | Z21: 0.003899446208 | AA21: =SUMPRODUCT($V$9:$Z$9,V21:Z21) -> -35364.30462 | AB21: -73399.73389
A22: 12 | B22: 0.1481481481 | C22: 0.48 | D22: 0.7346938776 | E22: 0.09917355372 | F22: 0.9230769231 | H22: -1.044408795 | I22: -0.05015358346 | J22: 0.6270716877 | K22: -1.286274991 | L22: 1.426076872 | M22: =MMULT(H22:L22,TRANSPOSE(chol)) -> -0.006153852204 | N22: -0.00274093088 | O22: 0.00260955239 | P22: -0.006904750517 | Q22: 0.002669845141 | R22: -54439.34886 | S22: -46363.65261 | T22: 46363.65261 | V22: =MMULT(H22:L22,TRANSPOSE(racar)) -> -0.003942781966 | W22: -0.0007520492345 | X22: 0.00394875205 | Y22: -0.004906383209 | Z22: 0.006504730429 | AA22: =SUMPRODUCT($V$9:$Z$9,V22:Z22) -> -63284.98664 | AB22: -58466.11261
A23: 13 | B23: 0.4814814815 | C23: 0.68 | D23: 0.8775510204 | E23: 0.1900826446 | F23: 0.005917159763 | H23: -0.04643572477 | I23: 0.4676987991 | J23: 1.16283129 | K23: -0.8775917845 | L23: -2.517046542 | M23: =MMULT(H23:L23,TRANSPOSE(chol)) -> -0.0002736079863 | N23: 0.002569405959 | O23: 0.007554902634 | P23: -0.002992061729 | Q23: -0.01368176595 | R23: 65889.48934 | S23: 62099.17763 | T23: -62099.17763 | V23: =MMULT(H23:L23,TRANSPOSE(racar)) -> -0.002576755188 | W23: -0.0003826163982 | X23: 0.005679392837 | Y23: -0.006557876992 | Z23: -0.01567293966 | AA23: =SUMPRODUCT($V$9:$Z$9,V23:Z23) -> 60534.49248 | AB23: 56821.51012
A24: 14 | B24: 0.8148148148 | C24: 0.88 | D24: 0.04081632653 | E24: 0.2809917355 | F24: 0.08284023669 | H24: 0.8957798189 | I24: 1.174986792 | J24: -1.7412906 | K24: -0.5798979013 | L24: -1.386217585 | M24: =MMULT(H24:L24,TRANSPOSE(chol)) -> 0.005278102444 | N24: 0.00883364129 | O24: -0.009589575678 | P24: -0.001406467245 | Q24: -0.005614532651 | R24: -18877.46023 | S24: 24666.531 | T24: -24666.531 | V24: =MMULT(H24:L24,TRANSPOSE(racar)) -> 0.003390832573 | W24: 0.00546731208 | X24: -0.01160794211 | Y24: -0.004047035515 | Z24: -0.008116095236 | AA24: =SUMPRODUCT($V$9:$Z$9,V24:Z24) -> -13507.53293 | AB24: 26447.04126
A25: 15 | B25: 0.2592592593 | C25: 0.12 | D25: 0.1836734694 | E25: 0.3719008264 | F25: 0.1597633136 | H25: -0.6456307493 | I25: -1.174986792 | J25: -0.9014540797 | K25: -0.3268231448 | L25: -0.9954311243 | M25: =MMULT(H25:L25,TRANSPOSE(chol)) -> -0.003804177281 | N25: -0.008245948635 | O25: -0.007036855245 | P25: -0.004469401538 | Q25: -0.01044749482 | R25: 44968.66246 | S25: 37428.94351 | T25: -37428.94351 | V25: =MMULT(H25:L25,TRANSPOSE(racar)) -> -0.006717876624 | W25: -0.00924954135 | X25: -0.007306834419 | Y25: -0.004226645541 | Z25: -0.009352025675 | AA25: =SUMPRODUCT($V$9:$Z$9,V25:Z25) -> 31093.04044 | AB25: 32471.37736
A26: 16 | B26: 0.5925925926 | C26: 0.32 | D26: 0.3265306122 | E26: 0.4628099174 | F26: 0.2366863905 | H26: 0.2342191939 | I26: -0.4676987991 | J26: -0.4495135655 | K26: -0.0933571455 | L26: -0.7170021321 | M26: =MMULT(H26:L26,TRANSPOSE(chol)) -> 0.001380063352 | N26: -0.002128233159 | O26: -0.002725299622 | P26: -0.001274557717 | Q26: -0.004457412408 | R26: 29462.91871 | S26: 18860.58103 | T26: -18860.58103 | V26: =MMULT(H26:L26,TRANSPOSE(racar)) -> -0.000376643392 | W26: -0.003505832114 | X26: -0.003423822528 | Y26: -0.001809171692 | Z26: -0.005120291862 | AA26: =SUMPRODUCT($V$9:$Z$9,V26:Z26) -> 27949.20636 | AB26: 20087.39935
A27: 17 | B27: 0.9259259259 | C27: 0.52 | D27: 0.4693877551 | E27: 0.5537190083 | F27: 0.3136094675 | H27: 1.446103593 | I27: 0.05015358346 | J27: -0.07680897577 | K27: 0.1350631016 | L27: -0.48564493 | M27: =MMULT(H27:L27,TRANSPOSE(chol)) -> 0.008520713178 | N27: 0.003684660484 | O27: 0.001459992496 | P27: 0.00180873441 | Q27: 0.001885387282 | R27: 21709.4165 | S27: -2171.577513 | T27: 2171.577513 | V27: =MMULT(H27:L27,TRANSPOSE(racar)) -> 0.007525267077 | W27: 0.001384239124 | X27: 4.255908716e-05 | Y27: 0.0004023676877 | Z27: -0.00101299017 | AA27: =SUMPRODUCT($V$9:$Z$9,V27:Z27) -> 35042.85302 | AB27: 7450.893964
A28: 18 | B28: 0.07407407407 | C28: 0.72 | D28: 0.612244898 | E28: 0.6446280992 | F28: 0.3905325444 | H28: -1.446103593 | I28: 0.5828415073 | J28: 0.2851748283 | K28: 0.3708573252 | L28: -0.2779313097 | M28: =MMULT(H28:L28,TRANSPOSE(chol)) -> -0.008520713178 | N28: -5.951164339e-05 | O28: 8.563369409e-05 | P28: 0.001811019705 | Q28: -0.003910125532 | R28: -8629.667322 | S28: 29939.65447 | T28: -29939.65447 | V28: =MMULT(H28:L28,TRANSPOSE(racar)) -> -0.007652956927 | W28: 0.002031761045 | X28: 0.001168574741 | Y28: 0.001894488311 | Z28: -0.002401601727 | AA28: =SUMPRODUCT($V$9:$Z$9,V28:Z28) -> -20639.64392 | AB28: 21965.79252
A29: 19 | B29: 0.4074074074 | C29: 0.92 | D29: 0.7551020408 | E29: 0.7355371901 | F29: 0.4674556213 | H29: -0.2342191939 | I29: 1.40507156 | J29: 0.6906334541 | K29: 0.6296469174 | L29: -0.0816673499 | M29: =MMULT(H29:L29,TRANSPOSE(chol)) -> -0.001380063352 | N29: 0.007496546164 | O29: 0.004581312545 | P29: 0.005536049136 | Q29: 0.002795005811 | R29: -23553.99419 | S29: 9835.260951 | T29: -9835.260951 | V29: =MMULT(H29:L29,TRANSPOSE(racar)) -> 0.0005461294537 | W29: 0.00872662495 | X29: 0.004919925235 | Y29: 0.00448428614 | Z29: 0.001868309201 | AA29: =SUMPRODUCT($V$9:$Z$9,V29:Z29) -> -19826.02099 | AB29: 10158.39814
A30: 20 | B30: 0.7407407407 | C30: 0.16 | D30: 0.8979591837 | E30: 0.826446281 | F30: 0.5443786982 | H30: 0.6456307493 | I30: -0.9944578832 | J30: 1.270008415 | K30: 0.9402147097 | L30: 0.1114713246 | M30: =MMULT(H30:L30,TRANSPOSE(chol)) -> 0.003804177281 | N30: -0.004178412886 | O30: 0.008688328848 | P30: 0.004378140558 | Q30: 0.003809270284 | R30: 58349.98038 | S30: -1077.8034 | T30: 1077.8034 | V30: =MMULT(H30:L30,TRANSPOSE(racar)) -> 0.003598514059 | W30: -0.003979972107 | X30: 0.008742018221 | Y30: 0.004669276624 | Z30: 0.002392645979 | AA30: =SUMPRODUCT($V$9:$Z$9,V30:Z30) -> 65706.70618 | AB30: 8100.115053
A31: 21 | B31: 0.1851851852 | C31: 0.36 | D31: 0.0612244898 | E31: 0.9173553719 | F31: 0.6213017751 | H31: -0.8957798189 | I31: -0.3584587933 | J31: -1.544575486 | K31: 1.387500312 | L31: 0.3089015079 | M31: =MMULT(H31:L31,TRANSPOSE(chol)) -> -0.005278102444 | N31: -0.004157403557 | O31: -0.0112307318 | P31: 0.004753446179 | Q31: -0.0002016814142 | R31: -7136.834563 | S31: 22854.75193 | T31: -22854.75193 | V31: =MMULT(H31:L31,TRANSPOSE(racar)) -> -0.005607568051 | W31: -0.002016204374 | X31: -0.009911194649 | Y31: 0.006394790379 | Z31: 0.0009724479956 | AA31: =SUMPRODUCT($V$9:$Z$9,V31:Z31) -> -15347.99824 | AB31: 23857.28185
A32: 22 | B32: 0.5185185185 | C32: 0.56 | D32: 0.2040816327 | E32: 0.01652892562 | F32: 0.6982248521 | H32: 0.04643572477 | I32: 0.1509692155 | J32: -0.8271302058 | K32: -2.131379975 | L32: 0.5193018036 | M32: =MMULT(H32:L32,TRANSPOSE(chol)) -> 0.0002736079863 | N32: 0.0009736920342 | O32: -0.005196741009 | P32: -0.01082065051 | Q32: -0.001534694784 | R32: -57100.93208 | S32: -40982.64858 | T32: 40982.64858 | V32: =MMULT(H32:L32,TRANSPOSE(racar)) -> 0.0002589339158 | W32: -0.0004901408724 | X32: -0.005739408318 | Y32: -0.01041841241 | Z32: 0.0005023982459 | AA32: =SUMPRODUCT($V$9:$Z$9,V32:Z32) -> -60485.99899 | AB32: -50426.46112
A33: 23 | B33: 0.8518518519 | C33: 0.76 | D33: 0.3469387755 | E33: 0.1074380165 | F33: 0.775147929 | H33: 1.044408795 | I33: 0.7063025628 | J33: -0.3935984158 | K33: -1.240268679 | L33: 0.7559083588 | M33: =MMULT(H33:L33,TRANSPOSE(chol)) -> 0.006153852204 | N33: 0.006498681527 | O33: -0.0008951645106 | P33: -0.004510220843 | Q33: 0.005564461014 | R33: -58327.76718 | S33: -51446.38896 | T33: 51446.38896 | V33: =MMULT(H33:L33,TRANSPOSE(racar)) -> 0.007157831062 | W33: 0.004969427248 | X33: -0.001740279416 | Y33: -0.004813446523 | Z33: 0.005205708768 | AA33: =SUMPRODUCT($V$9:$Z$9,V33:Z33) -> -47388.90488 | AB33: -50845.95572
A34: 24 | B34: 0.2962962963 | C34: 0.96 | D34: 0.4897959184 | E34: 0.1983471074 | F34: 0.8520710059 | H34: -0.5350828151 | I34: 1.750686071 | J34: -0.02558062912 | K34: -0.8475399758 | L34: 1.045357031 | M34: =MMULT(H34:L34,TRANSPOSE(chol)) -> -0.00315280815 | N34: 0.008769032912 | O34: -0.0003045647725 | P34: -0.001928719428 | Q34: 0.005146395186 | R34: -96989.26251 | S34: -37325.47624 | T34: 37325.47624 | V34: =MMULT(H34:L34,TRANSPOSE(racar)) -> 3.109206922e-05 | W34: 0.01025459184 | X34: 0.0004011179185 | Y34: -0.001766512581 | Z34: 0.006783119262 | AA34: =SUMPRODUCT($V$9:$Z$9,V34:Z34) -> -96557.92642 | AB34: -45649.35457
A35: 25 | B35: 0.6296296296 | C35: 0.008 | D35: 0.6326530612 | E35: 0.2892561983 | F35: 0.9289940828 | H35: 0.3308725717 | I35: -2.408915546 | J35: 0.3388883016 | K35: -0.5555589555 | L35: 1.468340208 | M35: =MMULT(H35:L35,TRANSPOSE(chol)) -> 0.001949563154 | N35: -0.01301846388 | O35: 0.001825332624 | P35: -0.006041983495 | Q35: 0.00444395922 | R35: 27092.64719 | S35: -52244.83718 | T35: 52244.83718 | V35: =MMULT(H35:L35,TRANSPOSE(racar)) -> 0.001336342906 | W35: -0.01275090295 | X35: 0.00247713493 | Y35: -0.00295052082 | Z35: 0.006682567813 | AA35: =SUMPRODUCT($V$9:$Z$9,V35:Z35) -> 26220.87681 | AB35: -50506.91663
A36: 26 | B36: 0.962962963 | C36: 0.208 | D36: 0.7755102041 | E36: 0.3801652893 | F36: 0.01183431953 | H36: 1.786155561 | I36: -0.8133803882 | J36: 0.7571172976 | K36: -0.3050467082 | L36: -2.262465808 | M36: =MMULT(H36:L36,TRANSPOSE(chol)) -> 0.01052436306 | N36: -0.0004618716079 | O36: 0.006983392263 | P36: -0.0009671498744 | Q36: -0.008162516767 | R36: 108105.5298 | S36: 40788.57906 | T36: -40788.57906 | V36: =MMULT(H36:L36,TRANSPOSE(racar)) -> 0.006587532115 | W36: -0.005434008527 | X36: 0.004076971617 | Y36: -0.004230822444 | Z36: -0.0126585873 | AA36: =SUMPRODUCT($V$9:$Z$9,V36:Z36) -> 118293.7692 | AB36: 50766.99921
A37: 27 | B37: 0.01234567901 | C37: 0.408 | D37: 0.9183673469 | E37: 0.4710743802 | F37: 0.08875739645 | H37: -2.246197536 | I37: -0.2326927492 | J37: 1.394173209 | K37: -0.0725694219 | L37: -1.348446574 | M37: =MMULT(H37:L37,TRANSPOSE(chol)) -> -0.01323501652 | N37: -0.006609774735 | O37: 0.005863518356 | P37: -0.001615785524 | Q37: -0.01318869184 | R37: 52520.44713 | S37: 65661.84233 | T37: -65661.84233 | V37: =MMULT(H37:L37,TRANSPOSE(racar)) -> -0.01387240884 | W37: -0.004865011556 | X37: 0.006836447182 | Y37: -0.002008072163 | Z37: -0.01085569758 | AA37: =SUMPRODUCT($V$9:$Z$9,V37:Z37) -> 28359.79335 | AB37: 50945.67516
A38: 28 | B38: 0.3456790123 | C38: 0.608 | D38: 0.08163265306 | E38: 0.5619834711 | F38: 0.1656804734 | H38: -0.3970127959 | I38: 0.274110116 | J38: -1.394173209 | K38: 0.1559999535 | L38: -0.9713762584 | M38: =MMULT(H38:L38,TRANSPOSE(chol)) -> -0.002339273741 | N38: 0.0006370927033 | O38: -0.00938937067 | P38: 7.630574979e-05 | Q38: -0.00687173429 | R38: 1985.12594 | S38: 38410.81582 | T38: -38410.81582 | V38: =MMULT(H38:L38,TRANSPOSE(racar)) -> -0.003952992577 | W38: -9.007413024e-05 | X38: -0.009775264292 | Y38: -0.0006766699053 | Z38: -0.007084919498 | AA38: =SUMPRODUCT($V$9:$Z$9,V38:Z38) -> -4913.154634 | AB38: 36148.24669
A39: 29 | B39: 0.6790123457 | C39: 0.808 | D39: 0.2244897959 | E39: 0.652892562 | F39: 0.2426035503 | H39: 0.4649387655 | I39: 0.8705498302 | J39: -0.7571172976 | K39: 0.3931416329 | L39: -0.6979521795 | M39: =MMULT(H39:L39,TRANSPOSE(chol)) -> 0.002739506274 | N39: 0.006077932629 | O39: -0.003950172419 | P39: 0.00321311568 | Q39: -0.0009682830225 | R39: -7658.550261 | S39: 20056.904 | T39: -20056.904 | V39: =MMULT(H39:L39,TRANSPOSE(racar)) -> 0.002267454903 | W39: 0.005025216466 | X39: -0.004732960516 | Y39: 0.001726299665 | Z39: -0.002901545689 | AA39: =SUMPRODUCT($V$9:$Z$9,V39:Z39) -> -2448.163097 | AB39: 23965.80151
A40: 30 | B40: 0.1234567901 | C40: 0.048 | D40: 0.3673469388 | E40: 0.7438016529 | F40: 0.3195266272 | H40: -1.157878604 | I40: -1.664562861 | J40: -0.3388883016 | K40: 0.6551103727 | L40: -0.4690229183 | M40: =MMULT(H40:L40,TRANSPOSE(chol)) -> -0.006822437566 | N40: -0.01225319953 | O40: -0.004273309828 | P40: -0.0004027453411 | Q40: -0.007536995553 | R40: 60539.9903 | S40: 39904.91755 | T40: -39904.91755 | V40: =MMULT(H40:L40,TRANSPOSE(racar)) -> -0.008935352029 | W40: -0.01116051392 | X40: -0.003368214791 | Y40: 0.001083887611 | Z40: -0.005730259331 | AA40: =SUMPRODUCT($V$9:$Z$9,V40:Z40) -> 44264.835 | AB40: 36696.00055
A41: 31 | B41: 0.4567901235 | C41: 0.248 | D41: 0.5102040816 | E41: 0.8347107438 | F41: 0.3964497041 | H41: -0.1085237438 | I41: -0.6807969188 | J41: 0.02558062912 | K41: 0.9729492768 | L41: -0.2625474498 | M41: =MMULT(H41:L41,TRANSPOSE(chol)) -> -0.0006394422215 | N41: -0.004153871249 | O41: -0.0002051877357 | P41: 0.003717928723 | Q41: -0.0009290412608 | R41: 39792.91434 | S41: 22148.07355 | T41: -22148.07355 | V41: =MMULT(H41:L41,TRANSPOSE(racar)) -> -0.001478540631 | W41: -0.003628037494 | X41: 0.0001004412186 | Y41: 0.00407554958 | Z41: -0.001393640737 | AA41: =SUMPRODUCT($V$9:$Z$9,V41:Z41) -> 38217.86856 | AB41: 26356.8562
A42: 32 | B42: 0.7901234568 | C42: 0.448 | D42: 0.6530612245 | E42: 0.9256198347 | F42: 0.4733727811 | H42: 0.8068496911 | I42: -0.1307159681 | J42: 0.3935984158 | K42: 1.443924086 | L42: -0.06679417324 | M42: =MMULT(H42:L42,TRANSPOSE(chol)) -> 0.004754109477 | N42: 0.001146980801 | O42: 0.003563576864 | P42: 0.007828539562 | Q42: 0.00485355003 | R42: 33428.51538 | S42: 8916.815427 | T42: -8916.815427 | V42: =MMULT(H42:L42,TRANSPOSE(racar)) -> 0.004785660452 | W42: 0.001303537573 | X42: 0.003447051558 | Y42: 0.007452217231 | Z42: 0.002412203176 | AA42: =SUMPRODUCT($V$9:$Z$9,V42:Z42) -> 44301.79029 | AB42: 20718.26417
A43: 33 | B43: 0.2345679012 | C43: 0.648 | D43: 0.7959183673 | E43: 0.02479338843 | F43: 0.550295858 | H43: -0.7238858749 | I43: 0.379926467 | J43: 0.8271302058 | K43: -1.963511437 | L43: 0.1264088665 | M43: =MMULT(H43:L43,TRANSPOSE(chol)) -> -0.004265271135 | N43: 0.0004751548767 | O43: 0.00446429103 | P43: -0.009245104259 | Q43: -0.003853942729 | R43: -32220.1291 | S43: -20931.53766 | T43: 20931.53766 | V43: =MMULT(H43:L43,TRANSPOSE(racar)) -> -0.003400589887 | W43: 0.0002359456126 | X43: 0.004442342406 | Y43: -0.009360995908 | Z43: -0.001455550242 | AA43: =SUMPRODUCT($V$9:$Z$9,V43:Z43) -> -40908.38867 | AB43: -34745.97629
A44: 34 | B44: 0.5679012346 | C44: 0.848 | D44: 0.9387755102 | E44: 0.1157024793 | F44: 0.6272189349 | H44: 0.1710333647 | I44: 1.027893346 | J44: 1.544575486 | K44: -1.196747572 | L44: 0.3244965548 | M44: =MMULT(H44:L44,TRANSPOSE(chol)) -> 0.001007760614 | N44: 0.006288542997 | O44: 0.01048054 | P44: -0.00332130672 | Q44: 0.002882549117 | R44: -33350.92582 | S44: -31154.59855 | T44: 31154.59855 | V44: =MMULT(H44:L44,TRANSPOSE(racar)) -> 0.003100282687 | W44: 0.006071863483 | X44: 0.01018284061 | Y44: -0.004271335569 | Z44: 0.003013331107 | AA44: =SUMPRODUCT($V$9:$Z$9,V44:Z44) -> -28436.83236 | AB44: -36223.49893
A45: 35 | B45: 0.9012345679 | C45: 0.088 | D45: 0.1020408163 | E45: 0.2066115702 | F45: 0.7041420118 | H45: 1.288618168 | I45: -1.353174155 | J45: -1.270008415 | K45: -0.8182347775 | L45: 0.5363510191 | M45: =MMULT(H45:L45,TRANSPOSE(chol)) -> 0.007592779561 | N45: -0.004722157829 | O45: -0.006870790964 | P45: -0.00592976776 | Q45: 0.001989565196 | R45: 4194.043673 | S45: -38137.02155 | T45: 38137.02155 | V45: =MMULT(H45:L45,TRANSPOSE(racar)) -> 0.005673891187 | W45: -0.007138952252 | X45: -0.007855965402 | Y45: -0.004899966775 | Z45: 0.001834910575 | AA45: =SUMPRODUCT($V$9:$Z$9,V45:Z45) -> 10860.55292 | AB45: -32571.09252
A46: 36 | B46: 0.04938271605 | C46: 0.288 | D46: 0.2448979592 | E46: 0.2975206612 | F46: 0.7810650888 | H46: -1.650868485 | I46: -0.5592369776 | J46: -0.6906334541 | K46: -0.531544775 | L46: 0.7757953627 | M46: =MMULT(H46:L46,TRANSPOSE(chol)) -> -0.009727226271 | N46: -0.007081238229 | O46: -0.006827247776 | P46: -0.005177799396 | Q46: -0.003093309986 | R46: -31573.96207 | S46: -6544.695888 | T46: 6544.695888 | V46: =MMULT(H46:L46,TRANSPOSE(racar)) -> -0.009325288518 | W46: -0.004852482143 | X46: -0.005232898329 | Y46: -0.002825084625 | Z46: 0.001066936876 | AA46: =SUMPRODUCT($V$9:$Z$9,V46:Z46) -> -49504.12523 | AB46: -18828.85993
A47: 37 | B47: 0.3827160494 | C47: 0.488 | D47: 0.387755102 | E47: 0.3884297521 | F47: 0.8579881657 | H47: -0.2983551728 | I47: -0.03008407662 | J47: -0.2851748283 | K47: -0.2834139916 | L47: 1.07132423 | M47: =MMULT(H47:L47,TRANSPOSE(chol)) -> -0.00175796455 | N47: -0.0008732374544 | O47: -0.002239704031 | P47: -0.001852265181 | Q47: 0.004090573469 | R47: -40119.82434 | S47: -31127.75487 | T47: 31127.75487 | V47: =MMULT(H47:L47,TRANSPOSE(racar)) -> -0.0005158707866 | W47: 0.0003467817337 | X47: -0.001423882891 | Y47: -0.0003928134813 | Z47: 0.00581898872 | AA47: =SUMPRODUCT($V$9:$Z$9,V47:Z47) -> -41558.81378 | AB47: -34027.16036
A48: 38 | B48: 0.7160493827 | C48: 0.688 | D48: 0.5306122449 | E48: 0.479338843 | F48: 0.9349112426 | H48: 0.5711451806 | I48: 0.4901892317 | J48: 0.07680897577 | K48: -0.05181301382 | L48: 1.513402246 | M48: =MMULT(H48:L48,TRANSPOSE(chol)) -> 0.003365294361 | N48: 0.004149134059 | O48: 0.001419096486 | P48: 0.0009828021601 | Q48: 0.0105677035 | R48: -56254.5444 | S48: -54039.09584 | T48: 54039.09584 | V48: =MMULT(H48:L48,TRANSPOSE(racar)) -> 0.005734866002 | W48: 0.005118148485 | X48: 0.001924441934 | Y48: 0.002013798035 | Z48: 0.01080657969 | AA48: =SUMPRODUCT($V$9:$Z$9,V48:Z48) -> -45701.645 | AB48: -50647.43137
A49: 39 | B49: 0.1604938272 | C49: 0.888 | D49: 0.6734693878 | E49: 0.5702479339 | F49: 0.01775147929 | H49: -0.9924303205 | I49: 1.21596042 | J49: 0.4495135655 | K49: 0.17700542 | L49: -2.102574756 | M49: =MMULT(H49:L49,TRANSPOSE(chol)) -> -0.005847585299 | N49: 0.004632192579 | O49: 0.001956237088 | P49: 0.002270410304 | Q49: -0.01168758806 | R49: 29488.46558 | S49: 75119.06981 | T49: -75119.06981 | V49: =MMULT(H49:L49,TRANSPOSE(racar)) -> -0.006768386222 | W49: 0.004191555672 | X49: 0.001391486416 | Y49: -0.0005247998407 | Z49: -0.01274684843 | AA49: =SUMPRODUCT($V$9:$Z$9,V49:Z49) -> 19233.80742 | AB49: 68203.62638
A50: 40 | B50: 0.4938271605 | C50: 0.128 | D50: 0.8163265306 | E50: 0.6611570248 | F50: 0.09467455621 | H50: -0.0154736315 | I50: -1.135896221 | J50: 0.9014540797 | K50: 0.4156229226 | L50: -1.31250704 | M50: =MMULT(H50:L50,TRANSPOSE(chol)) -> -9.117353453e-05 | N50: -0.006541605738 | O50: 0.005391089124 | P50: 0.000827519734 | Q50: -0.007334522787 | R50: 90069.7044 | S50: 44409.48132 | T50: -44409.48132 | V50: =MMULT(H50:L50,TRANSPOSE(racar)) -> -0.00242329229 | W50: -0.00758263564 | X50: 0.004818835958 | Y50: -8.965093764e-06 | Z50: -0.008447176769 | AA50: =SUMPRODUCT($V$9:$Z$9,V50:Z50) -> 85623.00584 | AB50: 46747.0921
A51: 41 | B51: 0.8271604938 | C51: 0.328 | D51: 0.9591836735 | E51: 0.7520661157 | F51: 0.1715976331 | H51: 0.9430036962 | I51: -0.4454425063 | J51: 1.7412906 | K51: 0.681005882 | L51: -0.9478707323 | M51: =MMULT(H51:L51,TRANSPOSE(chol)) -> 0.005556354372 | N51: -0.0003355750007 | O51: 0.01229194912 | P51: 0.004443549283 | Q51: -0.0002869773087 | R51: 78505.14537 | S51: 21910.02937 | T51: -21910.02937 | V51: =MMULT(H51:L51,TRANSPOSE(racar)) -> 0.004674275322 | W51: -0.001629808636 | X51: 0.01132708886 | Y51: 0.002811900257 | Z51: -0.003295729841 | AA51: =SUMPRODUCT($V$9:$Z$9,V51:Z51) -> 87919.16441 | AB51: 31113.63465
A52: 42 | B52: 0.2716049383 | C52: 0.528 | D52: 0.1224489796 | E52: 0.8429752066 | F52: 0.2485207101 | H52: -0.6079662226 | I52: 0.07024331382 | J52: -1.16283129 | K52: 1.006761112 | L52: -0.6791522165 | M52: =MMULT(H52:L52,TRANSPOSE(chol)) -> -0.003582250836 | N52: -0.001026055547 | O52: -0.008254170199 | P52: 0.003967935091 | Q52: -0.004429742031 | R52: 11707.09325 | S52: 42681.40126 | T52: -42681.40126 | V52: =MMULT(H52:L52,TRANSPOSE(racar)) -> -0.004689852133 | W52: -0.0004396316163 | X52: -0.007943542254 | Y52: 0.003866851519 | Z52: -0.004606978563 | AA52: =SUMPRODUCT($V$9:$Z$9,V52:Z52) -> 4915.995926 | AB52: 43200.83882
A53: 43 | B53: 0.6049382716 | C53: 0.728 | D53: 0.2653061224 | E53: 0.9338842975 | F53: 0.325443787 | H53: 0.2661503012 | I53: 0.6067753635 | J53: -0.6270716877 | K53: 1.505360553 | L53: -0.4525295004 | M53: =MMULT(H53:L53,TRANSPOSE(chol)) -> 0.001568207416 | N53: 0.004100274508 | O53: -0.003468527041 | P53: 0.008262260524 | Q53: 0.00157115417 | R53: 7177.137763 | S53: 29081.10608 | T53: -29081.10608 | V53: =MMULT(H53:L53,TRANSPOSE(racar)) -> 0.001466079346 | W53: 0.004470678009 | X53: -0.003504053044 | Y53: 0.007462207293 | Z53: -0.0005330403822 | AA53: =SUMPRODUCT($V$9:$Z$9,V53:Z53) -> 12741.3591 | AB53: 37077.36638
A54: 44 | B54: 0.9382716049 | C54: 0.928 | D54: 0.4081632653 | E54: 0.03305785124 | F54: 0.4023668639 | H54: 1.540425005 | I54: 1.461056269 | J54: -0.2322722935 | K54: -1.837638427 | L54: -0.247225479 | M54: =MMULT(H54:L54,TRANSPOSE(chol)) -> 0.009076472603 | N54: 0.01198646473 | O54: 0.001052833343 | P54: -0.005839247122 | Q54: 0.001772645267 | R54: -53172.55465 | S54: -36521.56948 | T54: 36521.56948 | V54: =MMULT(H54:L54,TRANSPOSE(racar)) -> 0.009407527462 | W54: 0.008444959704 | X54: -0.001087559339 | Y54: -0.008234180695 | Z54: -0.0002398904805 | AA54: =SUMPRODUCT($V$9:$Z$9,V54:Z54) -> -38618.24118 | AB54: -36326.43611
A55: 45 | B55: 0.08641975309 | C55: 0.168 | D55: 0.5510204082 | E55: 0.1239669421 | F55: 0.4792899408 | H55: -1.363136466 | I55: -0.9620987539 | J55: 0.128239826 | K55: -1.155382355 | L55: -0.05193575836 | M55: =MMULT(H55:L55,TRANSPOSE(chol)) -> -0.008031855327 | N55: -0.008712429783 | O55: -0.001318917287 | P55: -0.00820306565 | Q55: -0.007820658776 | R55: 10004.13466 | S55: 5804.991525 | T55: -5804.991525 | V55: =MMULT(H55:L55,TRANSPOSE(racar)) -> -0.008874231968 | W55: -0.0081241827 | X55: -0.0006410880847 | Y55: -0.006935012772 | Z55: -0.004388756984 | AA55: =SUMPRODUCT($V$9:$Z$9,V55:Z55) -> -8430.827009 | AB55: -7405.132873
A56: 46 | B56: 0.4197530864 | C56: 0.368 | D56: 0.693877551 | E56: 0.2148760331 | F56: 0.5562130178 | H56: -0.2025251833 | I56: -0.337155077 | J56: 0.5068716226 | K56: -0.7896159917 | L56: 0.141374669 | M56: =MMULT(H56:L56,TRANSPOSE(chol)) -> -0.001193316307 | N56: -0.002406686183 | O56: 0.002871000006 | P56: -0.004306349511 | Q56: -0.001406005057 | R56: 1698.319629 | S56: -11905.34602 | T56: 11905.34602 | V56: =MMULT(H56:L56,TRANSPOSE(racar)) -> -0.001169754674 | W56: -0.002577229684 | X56: 0.002890316592 | Y56: -0.003986600783 | Z56: -0.0003112854573 | AA56: =SUMPRODUCT($V$9:$Z$9,V56:Z56) -> -1883.74027 | AB56: -16506.67036
A57: 47 | B57: 0.7530864198 | C57: 0.568 | D57: 0.8367346939 | E57: 0.305785124 | F57: 0.6331360947 | H57: 0.6842344044 | I57: 0.1712845859 | J57: 0.9811259962 | K57: -0.5078333093 | L57: 0.3401709274 | M57: =MMULT(H57:L57,TRANSPOSE(chol)) -> 0.004031637246 | N57: 0.002588462629 | O57: 0.00726958158 | P57: -0.001160675795 | Q57: 0.003978857848 | R57: -4591.46775 | S57: -27346.31302 | T57: 27346.31302 | V57: =MMULT(H57:L57,TRANSPOSE(racar)) -> 0.004918460482 | W57: 0.00195290519 | X57: 0.006832262899 | Y57: -0.001570136402 | Z57: 0.003283728694 | AA57: =SUMPRODUCT($V$9:$Z$9,V57:Z57) -> 3630.417378 | AB57: -25368.53648
A58: 48 | B58: 0.1975308642 | C58: 0.768 | D58: 0.9795918367 | E58: 0.3966942149 | F58: 0.7100591716 | H58: -0.8504737864 | I58: 0.7322762047 | J58: 2.04539099 | K58: -0.261913113 | L58: 0.5535575905 | M58: =MMULT(H58:L58,TRANSPOSE(chol)) -> -0.005011150816 | N58: 0.002195652198 | O58: 0.01222965481 | P58: 0.0003861294037 | Q58: 0.002850482609 | R58: -18877.66856 | S58: -14022.76381 | T58: 14022.76381 | V58: =MMULT(H58:L58,TRANSPOSE(racar)) -> -0.002206175741 | W58: 0.004402626186 | X58: 0.0132810718 | Y58: 0.000504006712 | Z58: 0.004208623804 | AA58: =SUMPRODUCT($V$9:$Z$9,V58:Z58) -> -21675.49876 | AB58: -21006.31905
A59: 49 | B59: 0.5308641975 | C59: 0.968 | D59: 0.002915451895 | E59: 0.4876033058 | F59: 0.7869822485 | H59: 0.07744240852 | I59: 1.852179859 | J59: -2.757141921 | K59: -0.03107890668 | L59: 0.7959940342 | M59: =MMULT(H59:L59,TRANSPOSE(chol)) -> 0.0004563051735 | N59: 0.01078933381 | O59: -0.0169823766 | P59: 0.001149219818 | Q59: 0.004984839059 | R59: -115620.269 | S59: -22355.12004 | T59: 22355.12004 | V59: =MMULT(H59:L59,TRANSPOSE(racar)) -> 0.001894687912 | W59: 0.01115215219 | X59: -0.01683267225 | Y59: 0.001298910932 | Z59: 0.005265403962 | AA59: =SUMPRODUCT($V$9:$Z$9,V59:Z59) -> -111375.3098 | AB59: -23224.59957
A60: 50 | B60: 0.8641975309 | C60: 0.016 | D60: 0.1457725948 | E60: 0.5785123967 | F60: 0.8639053254 | H60: 1.099374065 | I60: -2.144410621 | J60: -1.054737951 | K60: 0.1980892868 | L60: 1.098034673 | M60: =MMULT(H60:L60,TRANSPOSE(chol)) -> 0.00647771787 | N60: -0.009698155884 | O60: -0.006002966307 | P60: -0.002117035936 | Q60: 0.005346933177 | R60: 25234.55001 | S60: -39297.41394 | T60: 39297.41394 | V60: =MMULT(H60:L60,TRANSPOSE(racar)) -> 0.00481551892 | W60: -0.01053276147 | X60: -0.006041826818 | Y60: 0.0003076157247 | Z60: 0.005588184457 | AA60: =SUMPRODUCT($V$9:$Z$9,V60:Z60) -> 31503.53928 | AB60: -29545.67333
A61: 51 | B61: 0.3086419753 | C61: 0.216 | D61: 0.2886297376 | E61: 0.6694214876 | F61: 0.9408284024 | H61: -0.4997033822 | I61: -0.7857738315 | J61: -0.5573922268 | K61: 0.4383162817 | L61: 1.561765698 | M61: =MMULT(H61:L61,TRANSPOSE(chol)) -> -0.002944345906 | N61: -0.005674097305 | O61: -0.004505135917 | P61: 0.0002536963548 | Q61: 0.006117016637 | R61: -28225.04671 | S61: -32721.39826 | T61: 32721.39826 | V61: =MMULT(H61:L61,TRANSPOSE(racar)) -> -0.001819724268 | W61: -0.003304189071 | X61: -0.002925766058 | Y61: 0.003082864783 | Z61: 0.008486428624 | AA61: =SUMPRODUCT($V$9:$Z$9,V61:Z61) -> -31494.6392 | AB61: -32907.46478
A62: 52 | B62: 0.6419753086 | C62: 0.416 | D62: 0.4314868805 | E62: 0.7603305785 | F62: 0.02366863905 | H62: 0.3637437333 | I62: -0.2121371983 | J62: -0.1725899387 | K62: 0.7073663496 | L62: -1.983270004 | M62: =MMULT(H62:L62,TRANSPOSE(chol)) -> 0.002143246194 | N62: -0.0003603365075 | O62: -0.0006904284646 | P62: 0.00336651446 | Q62: -0.008783744128 | R62: 74052.01421 | S62: 64047.47962 | T62: -64047.47962 | V62: =MMULT(H62:L62,TRANSPOSE(racar)) -> -0.000739012134 | W62: -0.002473793555 | X62: -0.002023332149 | Y62: 0.001145523636 | Z62: -0.01155691857 | AA62: =SUMPRODUCT($V$9:$Z$9,V62:Z62) -> 73567.70723 | AB62: 69251.16229
A63: 53 | B63: 0.975308642 | C63: 0.616 | D63: 0.5743440233 | E63: 0.8512396694 | F63: 0.100591716 | H63: 1.965272419 | I63: 0.2949919882 | J63: 0.1874447316 | K63: 1.041764965 | L63: -1.27818719 | M63: =MMULT(H63:L63,TRANSPOSE(chol)) -> 0.01157975312 | N63: 0.006306564126 | O63: 0.00393178461 | P63: 0.007250518069 | Q63: 0.001432470029 | R63: 55748.4953 | S63: 25222.53411 | T63: -25222.53411 | V63: =MMULT(H63:L63,TRANSPOSE(racar)) -> 0.009972247836 | W63: 0.003355474433 | X63: 0.001922462813 | Y63: 0.004497865812 | Z63: -0.003851485855 | AA63: =SUMPRODUCT($V$9:$Z$9,V63:Z63) -> 75215.82841 | AB63: 41901.88638
A64: 54 | B64: 0.02469135802 | C64: 0.816 | D64: 0.7172011662 | E64: 0.9421487603 | F64: 0.1775147929 | H64: -1.965272419 | I64: 0.9002259857 | J64: 0.5745470556 | K64: 1.573070567 | L64: -0.9248775881 | M64: =MMULT(H64:L64,TRANSPOSE(chol)) -> -0.01157975312 | N64: 0.0005384226922 | O64: 0.001352091258 | P64: 0.008057008903 | Q64: -0.00593403264 | R64: 17112.49633 | S64: 69712.98307 | T64: -69712.98307 | V64: =MMULT(H64:L64,TRANSPOSE(racar)) -> -0.01070677568 | W64: 0.00375230874 | X64: 0.002862866933 | Y64: 0.007543898394 | Z64: -0.005244843536 | AA64: =SUMPRODUCT($V$9:$Z$9,V64:Z64) -> 2266.350816 | AB64: 63549.16129
A65: 55 | B65: 0.3580246914 | C65: 0.056 | D65: 0.860058309 | E65: 0.04132231405 | F65: 0.2544378698 | H65: -0.3637437333 | I65: -1.589267557 | J65: 1.080581351 | K65: -1.735543248 | L65: -0.6605892894 | M65: =MMULT(H65:L65,TRANSPOSE(chol)) -> -0.002143246194 | N65: -0.009956268558 | O65: 0.005925182311 | P65: -0.01073632369 | Q65: -0.009426971429 | R65: 57963.93849 | S65: 3117.532595 | T65: -3117.532595 | V65: =MMULT(H65:L65,TRANSPOSE(racar)) -> -0.004292179666 | W65: -0.01167261022 | X65: 0.005307203117 | Y65: -0.0105797464 | Z65: -0.007636384226 | AA65: =SUMPRODUCT($V$9:$Z$9,V65:Z65) -> 46133.60995 | AB65: -6084.322729
A66: 56 | B66: 0.6913580247 | C66: 0.256 | D66: 0.02332361516 | E66: 0.132231405 | F66: 0.3313609467 | H66: 0.4997033822 | I66: -0.6557266788 | J66: -1.989489222 | K66: -1.11590498 | L66: -0.4361582822 | M66: =MMULT(H66:L66,TRANSPOSE(chol)) -> 0.002944345906 | N66: -0.002581344135 | O66: -0.01231539112 | P66: -0.007356675895 | Q66: -0.005672710067 | R66: -5094.130164 | S66: -2221.720405 | T66: 2221.720405 | V66: =MMULT(H66:L66,TRANSPOSE(racar)) -> 0.0002520692333 | W66: -0.005315516182 | X66: -0.01351614392 | Y66: -0.00736033203 | Z66: -0.005392602472 | AA66: =SUMPRODUCT($V$9:$Z$9,V66:Z66) -> -8014.621088 | AB66: -3789.928727
A67: 57 | B67: 0.1358024691 | C67: 0.456 | D67: 0.166180758 | E67: 0.2231404959 | F67: 0.4082840237 | H67: -1.099374065 | I67: -0.1105162036 | J67: -0.9693681933 | K67: -0.7616297869 | L67: -0.231961332 | M67: =MMULT(H67:L67,TRANSPOSE(chol)) -> -0.00647771787 | N67: -0.003215760009 | O67: -0.007730027625 | P67: -0.005370440805 | Q67: -0.006897125695 | R67: -18249.38112 | S67: 13643.31381 | T67: -13643.31381 | V67: =MMULT(H67:L67,TRANSPOSE(racar)) -> -0.00726766832 | W67: -0.00295948765 | X67: -0.007360254313 | Y67: -0.004786074571 | Z67: -0.00453112577 | AA67: =SUMPRODUCT($V$9:$Z$9,V67:Z67) -> -32719.84701 | AB67: 3210.595648
A68: 58 | B68: 0.4691358025 | C68: 0.656 | D68: 0.3090379009 | E68: 0.3140495868 | F68: 0.4852071006 | H68: -0.07744240852 | I68: 0.4015706956 | J68: -0.4985792846 | K68: -0.4844040094 | L68: -0.03708880126 | M68: =MMULT(H68:L68,TRANSPOSE(chol)) -> -0.0004563051735 | N68: 0.002117845613 | O68: -0.003171480636 | P68: -0.002140595762 | Q68: -0.001142859444 | R68: -23881.65465 | S68: -3458.824245 | T68: 3458.824245 | V68: =MMULT(H68:L68,TRANSPOSE(racar)) -> -0.0004239726223 | W68: 0.001725261654 | X68: -0.003369535213 | Y68: -0.002371247876 | Z68: -0.0007877686966 | AA68: =SUMPRODUCT($V$9:$Z$9,V68:Z68) -> -25237.69315 | AB68: -6480.416662
A69: 59 | B69: 0.8024691358 | C69: 0.856 | D69: 0.4518950437 | E69: 0.4049586777 | F69: 0.5621301775 | H69: 0.8504737864 | I69: 1.062519302 | J69: -0.1208749452 | K69: -0.2405326496 | L69: 0.1563722048 | M69: =MMULT(H69:L69,TRANSPOSE(chol)) -> 0.005011150816 | N69: 0.008083101849 | O69: 0.0007127346285 | P69: 0.001027238749 | Q69: 0.004415223162 | R69: -36068.532 | S69: -19757.89629 | T69: 19757.89629 | V69: =MMULT(H69:L69,TRANSPOSE(racar)) -> 0.005988588763 | W69: 0.007140785311 | X69: -6.834149073e-06 | Y69: -5.538595354e-05 | Z69: 0.002884426799 | AA69: =SUMPRODUCT($V$9:$Z$9,V69:Z69) -> -25000.2915 | AB69: -16229.84093
A70: 60 | B70: 0.2469135802 | C70: 0.096 | D70: 0.5947521866 | E70: 0.4958677686 | F70: 0.6390532544 | H70: -0.6842344044 | I70: -1.304685385 | J70: 0.2397866887 | K70: -0.0103581533 | L70: 0.3559293286 | M70: =MMULT(H70:L70,TRANSPOSE(chol)) -> -0.004031637246 | N70: -0.009079423859 | O70: 0.0001933667927 | P70: -0.002453368406 | Q70: -0.001904345064 | R70: 27352.73281 | S70: -671.3486223 | T70: 671.3486223 | V70: =MMULT(H70:L70,TRANSPOSE(racar)) -> -0.004618718727 | W70: -0.008028774852 | X70: 0.001048334527 | Y70: -0.0007594862713 | Z70: 9.192134984e-05 | AA70: =SUMPRODUCT($V$9:$Z$9,V70:Z70) -> 18066.29422 | AB70: -3982.297906
A71: 61 | B71: 0.5802469136 | C71: 0.296 | D71: 0.7376093294 | E71: 0.5867768595 | F71: 0.7159763314 | H71: 0.2025251833 | I71: -0.5359400266 | J71: 0.6359924529 | K71: 0.2192615895 | L71: 0.5709296413 | M71: =MMULT(H71:L71,TRANSPOSE(chol)) -> 0.001193316307 | N71: -0.002593510104 | O71: 0.004176688853 | P71: 0.0007899719977 | Q71: 0.003803550413 | R71: 11165.61024 | S71: -17454.92876 | T71: 17454.92876 | V71: =MMULT(H71:L71,TRANSPOSE(racar)) -> 0.001711540303 | W71: -0.001999542925 | X71: 0.004547264264 | Y71: 0.001597257107 | Z71: 0.003957846863 | AA71: =SUMPRODUCT($V$9:$Z$9,V71:Z71) -> 14253.41145 | AB71: -14617.8217
A72: 62 | B72: 0.9135802469 | C72: 0.496 | D72: 0.8804664723 | E72: 0.6776859504 | F72: 0.7928994083 | H72: 1.363136466 | I72: -0.0100266811 | J72: 1.177321884 | K72: 0.4612376685 | L72: 0.8165228092 | M72: =MMULT(H72:L72,TRANSPOSE(chol)) -> 0.008031855327 | N72: 0.003145088985 | O72: 0.009378225947 | P72: 0.004013328192 | Q72: 0.01025288994 | R72: 4885.471911 | S72: -38436.68371 | T72: 38436.68371 | V72: =MMULT(H72:L72,TRANSPOSE(racar)) -> 0.009447803012 | W72: 0.002957831896 | X72: 0.0090966588 | Y72: 0.003953172709 | Z72: 0.00822292231 | AA72: =SUMPRODUCT($V$9:$Z$9,V72:Z72) -> 22623.76095 | AB72: -27467.98357
A73: 63 | B73: 0.06172839506 | C73: 0.696 | D73: 0.04373177843 | E73: 0.7685950413 | F73: 0.8698224852 | H73: -1.540425005 | I73: 0.5129304106 | J73: -1.708931942 | K73: 0.7342277928 | L73: 1.125552391 | M73: =MMULT(H73:L73,TRANSPOSE(chol)) -> -0.009076472603 | N73: -0.000681486815 | O73: -0.01286205602 | P73: 0.002264017839 | Q73: 0.002287324962 | R73: -71259.87669 | S73: -2315.845819 | T73: 2315.845819 | V73: =MMULT(H73:L73,TRANSPOSE(racar)) -> -0.007455636127 | W73: 0.002775891688 | X73: -0.01079423987 | Y73: 0.004555234245 | Z73: 0.005356800668 | AA73: =SUMPRODUCT($V$9:$Z$9,V73:Z73) -> -82938.36016 | AB73: -8839.568565
A74: 64 | B74: 0.3950617284 | C74: 0.896 | D74: 0.1865889213 | E74: 0.8595041322 | F74: 0.9467455621 | H74: -0.2661503012 | I74: 1.25908398 | J74: -0.8905365671 | K74: 1.078094165 | L74: 1.614085529 | M74: =MMULT(H74:L74,TRANSPOSE(chol)) -> -0.001568207416 | N74: 0.006585460556 | O74: -0.005657597702 | P74: 0.006585284117 | Q74: 0.01114529905 | R74: -85748.29358 | S74: -31618.01592 | T74: 31618.01592 | V74: =MMULT(H74:L74,TRANSPOSE(racar)) -> 0.001639054809 | W74: 0.00958349663 | X74: -0.004125665956 | Y74: 0.008013132863 | Z74: 0.011838275 | AA74: =SUMPRODUCT($V$9:$Z$9,V74:Z74) -> -79888.89192 | AB74: -28926.74526
A75: 65 | B75: 0.7283950617 | C75: 0.136 | D75: 0.3294460641 | E75: 0.9504132231 | F75: 0.02958579882 | H75: 0.6079662226 | I75: -1.09846842 | J75: -0.4414432623 | K75: 1.648873497 | L75: -1.886916201 | M75: =MMULT(H75:L75,TRANSPOSE(chol)) -> 0.003582250836 | N75: -0.004862566824 | O75: -0.002380605455 | P75: 0.006705735857 | Q75: -0.007362746313 | R75: 106841.8776 | S75: 71447.07506 | T75: -71447.07506 | V75: =MMULT(H75:L75,TRANSPOSE(racar)) -> -0.0001501308844 | W75: -0.006674116637 | X75: -0.003472616366 | Y75: 0.005259582572 | Z75: -0.01067732927 | AA75: =SUMPRODUCT($V$9:$Z$9,V75:Z75) -> 108046.1968 | AB75: 83192.92314
A76: 66 | B76: 0.1728395062 | C76: 0.336 | D76: 0.472303207 | E76: 0.04958677686 | F76: 0.1065088757 | H76: -0.9430036962 | I76: -0.4234047224 | J76: -0.06948142955 | K76: -1.648873497 | L76: -1.24531019 | M76: =MMULT(H76:L76,TRANSPOSE(chol)) -> -0.005556354372 | N76: -0.004640293801 | O76: -0.001848039392 | P76: -0.009619330811 | Q76: -0.01330131847 | R76: =SUMPRODUCT($M$9:$Q$9,M76:Q76) -> 23317.22651 | S76: =P76*$P$9+Q76*$Q$9 -> 29685.20709 | T76: =-S76 -> -29685.20709 | V76: =MMULT(H76:L76,TRANSPOSE(racar)) -> -0.007705592556 | W76: -0.006229963531 | X76: -0.002508067998 | Y76: -0.01036957287 | Z76: -0.01148178993 | AA76: =SUMPRODUCT($V$9:$Z$9,V76:Z76) -> 6435.194461 | AB76: =Y76*$Y$9+Z76*$Z$9 -> 16176.13519
A77: 67 | B77: 0.5061728395 | C77: 0.536 | D77: 0.6151603499 | E77: 0.1404958678 | F77: 0.1834319527 | H77: 0.0154736315 | I77: 0.09036143713 | J77: 0.2927944113 | K77: -1.078094165 | L77: -0.9023633086 | M77: =MMULT(H77:L77,TRANSPOSE(chol)) -> 9.117353453e-05 | N77: 0.0005538512272 | O77: 0.001929641702 | P77: -0.005038931053 | Q77: -0.006470218824 | R77: 15020.88764 | S77: 12794.72269 | T77: -12794.72269 | V77: =MMULT(H77:L77,TRANSPOSE(racar)) -> -0.001030146112 | W77: -0.001229472984 | X77: 0.0009480916354 | Y77: -0.006340093651 | Z77: -0.006619601987 | AA77: =SUMPRODUCT($V$9:$Z$9,V77:Z77) -> 11452.01944 | AB77: 7671.884186
A78: 68 | B78: 0.8395061728 | C78: 0.736 | D78: 0.7580174927 | E78: 0.2314049587 | F78: 0.2603550296 | H78: 0.9924303205 | I78: 0.6310619791 | J78: 0.6999396175 | K78: -0.7342277928 | L78: -0.6422512538 | M78: =MMULT(H78:L78,TRANSPOSE(chol)) -> 0.005847585299 | N78: 0.005945663718 | O78: 0.006028908204 | P78: -0.001505089637 | Q78: -0.0003799498669 | R78: 6308.248076 | S78: -4778.316712 | T78: 4778.316712 | V78: =MMULT(H78:L78,TRANSPOSE(racar)) -> 0.005653058888 | W78: 0.003685808047 | X78: 0.004575944168 | Y78: -0.003518699121 | Z78: -0.00245807592 | AA78: =SUMPRODUCT($V$9:$Z$9,V78:Z78) -> 15703.7125 | AB78: -2476.078039
A79: 69 | B79: 0.2839506173 | C79: 0.936 | D79: 0.9008746356 | E79: 0.3223140496 | F79: 0.3372781065 | H79: -0.5711451806 | I79: 1.522036242 | J79: 1.286551296 | K79: -0.4612376685 | L79: -0.4199031411 | M79: =MMULT(H79:L79,TRANSPOSE(chol)) -> -0.003365294361 | N79: 0.007374836581 | O79: 0.007993292945 | P79: 0.0003840667289 | Q79: -0.001390049002 | R79: -24256.51173 | S79: 9455.695272 | T79: -9455.695272 | V79: =MMULT(H79:L79,TRANSPOSE(racar)) -> -0.001534053327 | W79: 0.007965448895 | X79: 0.008014988394 | Y79: -0.001202728924 | Z79: -0.001442079772 | AA79: =SUMPRODUCT($V$9:$Z$9,V79:Z79) -> -25770.35107 | AB79: 2487.422434
A80: 70 | B80: 0.6172839506 | C80: 0.176 | D80: 0.06413994169 | E80: 0.4132231405 | F80: 0.4142011834 | H80: 0.2983551728 | I80: -0.9307169489 | J80: -1.520920123 | K80: -0.2192615895 | L80: -0.216751043 | M80: =MMULT(H80:L80,TRANSPOSE(chol)) -> 0.00175796455 | N80: -0.004629248701 | O80: -0.00966818661 | P80: -0.003199905614 | Q80: -0.003418579817 | R80: 12709.75642 | S80: 4301.912228 | T80: -4301.912228 | V80: =MMULT(H80:L80,TRANSPOSE(racar)) -> -0.0004616557151 | W80: -0.006052169427 | X80: -0.01018978979 | Y80: -0.002637638486 | Z80: -0.003229111773 | AA80: =SUMPRODUCT($V$9:$Z$9,V80:Z80) -> 10021.31629 | AB80: 5823.732362
A81: 71 | B81: 0.950617284 | C81: 0.376 | D81: 0.2069970845 | E81: 0.5041322314 | F81: 0.4911242604 | H81: 1.650868485 | I81: -0.3160033044 | J81: -0.8168849678 | K81: 0.0103581533 | L81: -0.02225001568 | M81: =MMULT(H81:L81,TRANSPOSE(chol)) -> 0.009727226271 | N81: 0.002068756553 | O81: -0.003136191313 | P81: 0.0003418781885 | Q81: 0.003567959772 | R81: 8413.185915 | S81: -18199.16216 | T81: 18199.16216 | V81: =MMULT(H81:L81,TRANSPOSE(racar)) -> 0.008466769691 | W81: -0.0003859112252 | X81: -0.004491795123 | Y81: -0.0002359122171 | Z81: 0.001152849071 | AA81: =SUMPRODUCT($V$9:$Z$9,V81:Z81) -> 22573.89559 | AB81: -7464.352726
A82: 72 | B82: 0.0987654321 | C82: 0.576 | D82: 0.3498542274 | E82: 0.5950413223 | F82: 0.5680473373 | H82: -1.288618168 | I82: 0.1916709022 | J82: -0.3857140518 | K82: 0.2405326496 | L82: 0.1714049976 | M82: =MMULT(H82:L82,TRANSPOSE(chol)) -> -0.007592779561 | N82: -0.001929745527 | O82: -0.004138043262 | P82: 0.0002821065136 | Q82: -0.002432774454 | R82: -20169.283 | S82: 14764.98278 | T82: -14764.98278 | V82: =MMULT(H82:L82,TRANSPOSE(racar)) -> -0.006984621267 | W82: 6.275243466e-05 | X82: -0.002960877771 | Y82: 0.001207473638 | Z82: -0.0003741197639 | AA82: =SUMPRODUCT($V$9:$Z$9,V82:Z82) -> -31840.4333 | AB82: 7594.027701
A83: 73 | B83: 0.4320987654 | C83: 0.776 | D83: 0.4927113703 | E83: 0.6859504132 | F83: 0.6449704142 | H83: -0.1710333647 | I83: 0.7587535445 | J83: -0.01827090188 | K83: 0.4844040094 | L83: 0.3717766212 | M83: =MMULT(H83:L83,TRANSPOSE(chol)) -> -0.001007760614 | N83: 0.003943544103 | O83: -9.659349007e-05 | P83: 0.00344338585 | Q83: 0.003566269743 | R83: -28860.75261 | S83: -4006.509608 | T83: 4006.509608 | V83: =MMULT(H83:L83,TRANSPOSE(racar)) -> 0.0003984954366 | W83: 0.005124317671 | X83: 0.0004182902735 | Y83: 0.003483903694 | Z83: 0.003481839106 | AA83: =SUMPRODUCT($V$9:$Z$9,V83:Z83) -> -26515.56096 | AB83: -3353.567163
A84: 74 | B84: 0.7654320988 | C84: 0.976 | D84: 0.6355685131 | E84: 0.7768595041 | F84: 0.7218934911 | H84: 0.7238858749 | I84: 1.977368428 | J84: 0.3466384263 | K84: 0.7616297869 | L84: 0.5884757328 | M84: =MMULT(H84:L84,TRANSPOSE(chol)) -> 0.004265271135 | N84: 0.01302502069 | O84: 0.00384483948 | P84: 0.007608036802 | Q84: 0.01006080962 | R84: -58236.18843 | S84: -20934.0545 | T84: 20934.0545 | V84: =MMULT(H84:L84,TRANSPOSE(racar)) -> 0.007240399111 | W84: 0.01386739725 | X84: 0.003861611829 | Y84: 0.006447538388 | Z84: 0.007887268454 | AA84: =SUMPRODUCT($V$9:$Z$9,V84:Z84) -> -42092.56175 | AB84: -14202.01719
A85: 75 | B85: 0.2098765432 | C85: 0.024 | D85: 0.778425656 | E85: 0.867768595 | F85: 0.798816568 | H85: -0.8068496911 | I85: -1.977368428 | J85: 0.7668870261 | K85: 1.11590498 | L85: 0.837401605 | M85: =MMULT(H85:L85,TRANSPOSE(chol)) -> -0.004754109477 | N85: -0.01321993337 | O85: 0.003190783527 | P85: 0.002324388121 | Q85: 0.001866977454 | R85: 53171.91153 | S85: 288.4932929 | T85: -288.4932929 | V85: =MMULT(H85:L85,TRANSPOSE(racar)) -> -0.004891457001 | W85: -0.01055717894 | X85: 0.004943921274 | Y85: 0.005139359715 | Z85: 0.003885377878 | AA85: =SUMPRODUCT($V$9:$Z$9,V85:Z85) -> 44924.69192 | AB85: 1981.723083
A86: 76 | B86: 0.5432098765 | C86: 0.224 | D86: 0.9212827988 | E86: 0.958677686 | F86: 0.875739645 | H86: 0.1085237438 | I86: -0.7587535445 | J86: 1.413753121 | K86: 1.735543248 | L86: 1.153949899 | M86: =MMULT(H86:L86,TRANSPOSE(chol)) -> 0.0006394422215 | N86: -0.004090402315 | O86: 0.008969233341 | P86: 0.008374078191 | Q86: 0.009842623526 | R86: 28917.61874 | S86: -16222.41172 | T86: 16222.41172 | V86: =MMULT(H86:L86,TRANSPOSE(racar)) -> 0.002412871191 | W86: -0.001323525146 | X86: 0.01041961747 | Y86: 0.0100670782 | Z86: 0.009526145682 | AA86: =SUMPRODUCT($V$9:$Z$9,V86:Z86) -> 35982.56694 | AB86: -6727.329693
A87: 77 | B87: 0.8765432099 | C87: 0.424 | D87: 0.08454810496 | E87: 0.05785123967 | F87: 0.9526627219 | H87: 1.157878604 | I87: -0.1916709022 | J87: -1.375113661 | K87: -1.573070567 | L87: 1.671238613 | M87: =MMULT(H87:L87,TRANSPOSE(chol)) -> 0.006822437566 | N87: 0.001622589951 | O87: -0.007338197806 | P87: -0.008047782209 | Q87: 0.00800866448 | R87: -75662.4341 | S87: -81161.97289 | T87: 81161.97289 | V87: =MMULT(H87:L87,TRANSPOSE(racar)) -> 0.007448272262 | W87: 0.0001908264732 | X87: -0.007818780228 | Y87: -0.006536018824 | Z87: 0.009131607116 | AA87: =SUMPRODUCT($V$9:$Z$9,V87:Z87) -> -65986.93968 | AB87: -80468.50154
A88: 78 | B88: 0.3209876543 | C88: 0.624 | D88: 0.2274052478 | E88: 0.1487603306 | F88: 0.03550295858 | H88: -0.4649387655 | I88: 0.3160033044 | J88: -0.7474193055 | K88: -1.041764965 | L88: -1.805439613 | M88: =MMULT(H88:L88,TRANSPOSE(chol)) -> -0.002739506274 | N88: 0.000717430846 | O88: -0.005315610877 | P88: -0.005488248645 | Q88: -0.01321878411 | R88: 19198.49589 | S88: 48119.62537 | T88: -48119.62537 | V88: =MMULT(H88:L88,TRANSPOSE(racar)) -> -0.005239789914 | W88: -0.001622677753 | X88: -0.006587418588 | Y88: -0.007473170419 | Z88: -0.01334016833 | AA88: =SUMPRODUCT($V$9:$Z$9,V88:Z88) -> 8153.227838 | AB88: 39714.85134
A89: 79 | B89: 0.6543209877 | C89: 0.824 | D89: 0.3702623907 | E89: 0.2396694215 | F89: 0.1124260355 | H89: 0.3970127959 | I89: 0.9307169489 | J89: -0.331158479 | K89: -0.7073663496 | L89: -1.213726789 | M89: =MMULT(H89:L89,TRANSPOSE(chol)) -> 0.002339273741 | N89: 0.006262925166 | O89: -0.001287483942 | P89: -0.00196934868 | Q89: -0.005571642655 | R89: -2263.149928 | S89: 21854.89307 | T89: -21854.89307 | V89: =MMULT(H89:L89,TRANSPOSE(racar)) -> 0.001311656616 | W89: 0.003962977103 | X89: -0.002728903442 | Y89: -0.004274605324 | Z89: -0.007163522955 | AA89: =SUMPRODUCT($V$9:$Z$9,V89:Z89) -> -484.2556277 | AB89: 20130.15226
A90: 80 | B90: 0.987654321 | C90: 0.064 | D90: 0.5131195335 | E90: 0.3305785124 | F90: 0.1893491124 | H90: 2.246197536 | I90: -1.522036242 | J90: 0.03289172346 | K90: -0.4383162817 | L90: -0.8802973924 | M90: =MMULT(H90:L90,TRANSPOSE(chol)) -> 0.01323501652 | N90: -0.003439519264 | O90: 0.002718062245 | P90: -0.002802727575 | Q90: -0.001297827101 | R90: 79016.25118 | S90: -5628.422994 | T90: 5628.422994 | V90: =MMULT(H90:L90,TRANSPOSE(racar)) -> 0.009811922384 | W90: -0.007985340834 | X90: 0.0002917914264 | Y90: -0.004087900504 | Z90: -0.004734150842 | AA90: =SUMPRODUCT($V$9:$Z$9,V90:Z90) -> 93725.02171 | AB90: 7527.903628
A91: 81 | B91: 0.004115226337 | C91: 0.264 | D91: 0.6559766764 | E91: 0.4214876033 | F91: 0.2662721893 | H91: -2.64246683 | I91: -0.6310619791 | J91: 0.4015073237 | K91: -0.1980892868 | L91: -0.6241267026 | M91: =MMULT(H91:L91,TRANSPOSE(chol)) -> -0.01556990941 | N91: -0.009822209564 | O91: -0.001169249303 | P91: -0.003744349555 | Q91: -0.01212395929 | R91: 25646.84882 | S91: 50030.40242 | T91: -50030.40242 | V91: =MMULT(H91:L91,TRANSPOSE(racar)) -> -0.01614015961 | W91: -0.007247434061 | X91: 0.0004931526652 | Y91: -0.002577370305 | Z91: -0.008031838674 | AA91: =SUMPRODUCT($V$9:$Z$9,V91:Z91) -> -3379.003251 | AB91: 32701.17738
A92: 82 | B92: 0.3374485597 | C92: 0.464 | D92: 0.7988338192 | E92: 0.5123966942 | F92: 0.3431952663 | H92: -0.4194365466 | I92: -0.09036143713 | J92: 0.8374630084 | K92: 0.03107890668 | L92: -0.4037582063 | M92: =MMULT(H92:L92,TRANSPOSE(chol)) -> -0.00247139868 | N92: -0.001502909477 | O92: 0.004783523788 | P92: 0.0001875215862 | Q92: -0.002784779443 | R92: 24016.80674 | S92: 16282.16431 | T92: -16282.16431 | V92: =MMULT(H92:L92,TRANSPOSE(racar)) -> -0.002512165892 | W92: -0.001153825695 | X92: 0.004926861358 | Y92: -0.0001507929846 | Z92: -0.002605216923 | AA92: =SUMPRODUCT($V$9:$Z$9,V92:Z92) -> 19860.57604 | AB92: 13740.46187
A93: 83 | B93: 0.670781893 | C93: 0.664 | D93: 0.9416909621 | E93: 0.6033057851 | F93: 0.4201183432 | H93: 0.4420732318 | I93: 0.4234047224 | J93: 1.569128175 | K93: 0.261913113 | L93: -0.2015907382 | M93: =MMULT(H93:L93,TRANSPOSE(chol)) -> 0.002604778268 | N93: 0.003463422925 | O93: 0.01080213505 | P93: 0.003220300474 | Q93: 0.002673605561 | R93: 20143.71259 | S93: -82.30602253 | T93: 82.30602253 | V93: =MMULT(H93:L93,TRANSPOSE(racar)) -> 0.003576885467 | W93: 0.003414158665 | X93: 0.01051113473 | Y93: 0.002104098723 | Z93: 0.001094272379 | AA93: =SUMPRODUCT($V$9:$Z$9,V93:Z93) -> 27798.72628 | AB93: 3561.041165
A94: 84 | B94: 0.1152263374 | C94: 0.864 | D94: 0.1049562682 | E94: 0.694214876 | F94: 0.4970414201 | H94: -1.199193601 | I94: 1.09846842 | J94: -1.253805976 | K94: 0.5078333093 | L94: -0.007416127963 | M94: =MMULT(H94:L94,TRANSPOSE(chol)) -> -0.007065873267 | N94: 0.003473555111 | O94: -0.009291378528 | P94: 0.002573206998 | Q94: -0.001973728057 | R94: -49554.24039 | S94: 22699.64373 | T94: -22699.64373 | V94: =MMULT(H94:L94,TRANSPOSE(racar)) -> -0.006194336884 | W94: 0.005332583373 | X94: -0.008316156985 | Y94: 0.002812414378 | Z94: -0.0006720422891 | AA94: =SUMPRODUCT($V$9:$Z$9,V94:Z94) -> -58768.8377 | AB94: 16583.63582
A95: 85 | B95: 0.4485596708 | C95: 0.104 | D95: 0.2478134111 | E95: 0.7851239669 | F95: 0.573964497 | H95: -0.1293011752 | I95: -1.25908398 | J95: -0.6813867223 | K95: 0.7896159917 | L95: 0.1864766275 | M95: =MMULT(H95:L95,TRANSPOSE(chol)) -> -0.0007618667382 | N95: -0.007514522289 | O95: -0.004960707402 | P95: 0.001478152608 | Q95: -0.0003935512664 | R95: 31689.2018 | S95: 8939.480307 | T95: -8939.480307 | V95: =MMULT(H95:L95,TRANSPOSE(racar)) -> -0.002038093015 | W95: -0.006950080839 | X95: -0.004432864976 | Y95: 0.002918185758 | Z95: 0.0001129206813 | AA95: =SUMPRODUCT($V$9:$Z$9,V95:Z95) -> 28016.60427 | AB95: 12719.49818
A96: 86 | B96: 0.7818930041 | C96: 0.304 | D96: 0.3906705539 | E96: 0.8760330579 | F96: 0.650887574 | H96: 0.7786023544 | I96: -0.5129304106 | J96: -0.2775717664 | K96: 1.155382355 | L96: 0.3877178401 | M96: =MMULT(H96:L96,TRANSPOSE(chol)) -> 0.004587670879 | N96: -0.001108316269 | O96: -0.000907670015 | P96: 0.005384413608 | Q96: 0.005529925454 | R96: 18481.98241 | S96: -6006.626713 | T96: 6006.626713 | V96: =MMULT(H96:L96,TRANSPOSE(racar)) -> 0.004397950259 | W96: -0.0009327980187 | X96: -0.0008384747471 | Y96: 0.005939858154 | Z96: 0.004057024282 | AA96: =SUMPRODUCT($V$9:$Z$9,V96:Z96) -> 27585.58822 | AB96: 4691.694789
A97: 87 | B97: 0.2263374486 | C97: 0.504 | D97: 0.5335276968 | E97: 0.9669421488 | F97: 0.7278106509 | H97: -0.7509630439 | I97: 0.0100266811 | J97: 0.08414064846 | K97: 1.837638427 | L97: 0.6062049017 | M97: =MMULT(H97:L97,TRANSPOSE(chol)) -> -0.004424814886 | N97: -0.001706867272 | O97: -0.0004622802371 | P97: 0.008633117509 | Q97: 0.004614248473 | R97: 1180.454309 | S97: 13921.64359 | T97: -13921.64359 | V97: =MMULT(H97:L97,TRANSPOSE(racar)) -> -0.003039798029 | W97: 0.001468693166 | X97: 0.001204186353 | Y97: 0.009953447563 | Z97: 0.005020250149 | AA97: =SUMPRODUCT($V$9:$Z$9,V97:Z97) -> -797.6292829 | AB97: 17710.75052
A98: 88 | B98: 0.5596707819 | C98: 0.704 | D98: 0.6763848397 | E98: 0.06611570248 | F98: 0.8047337278 | H98: 0.1501345826 | I98: 0.5359400266 | J98: 0.4576132525 | K98: -1.505360553 | L98: 0.858651992 | M98: =MMULT(H98:L98,TRANSPOSE(chol)) -> 0.0008846210761 | N98: 0.003422038287 | O98: 0.003314424066 | P98: -0.006274474085 | Q98: 0.003453819467 | R98: -53192.7174 | S98: -47823.73623 | T98: 47823.73623 | V98: =MMULT(H98:L98,TRANSPOSE(racar)) -> 0.002509978775 | W98: 0.003145184423 | X98: 0.003216575052 | Y98: -0.006035596456 | Z98: 0.004755635495 | AA98: =SUMPRODUCT($V$9:$Z$9,V98:Z98) -> -50686.98583 | AB98: -53941.97359
A99: 89 | B99: 0.8930041152 | C99: 0.904 | D99: 0.8192419825 | E99: 0.1570247934 | F99: 0.8816568047 | H99: 1.242663744 | I99: 1.304685385 | J99: 0.9124801105 | K99: -1.006761112 | L99: 1.183309799 | M99: =MMULT(H99:L99,TRANSPOSE(chol)) -> 0.00732200749 | N99: 0.01039138085 | O99: 0.007949781819 | P99: -0.001501366222 | Q99: 0.01091293605 | R99: -67415.55493 | S99: -67311.48508 | T99: 67311.48508 | V99: =MMULT(H99:L99,TRANSPOSE(racar)) -> 0.01022045934 | W99: 0.009747422672 | X99: 0.007379982484 | Y99: -0.002125393128 | Z99: 0.009929810175 | AA99: =SUMPRODUCT($V$9:$Z$9,V99:Z99) -> -49628.74176 | AB99: -64719.74117
A100: 90 | B100: 0.04115226337 | C100: 0.144 | D100: 0.9620991254 | E100: 0.2479338843 | F100: 0.9585798817 | H100: -1.737468402 | I100: -1.062519302 | J100: 1.775582544 | K100: -0.681005882 | L100: 1.734438907 | M100: =MMULT(H100:L100,TRANSPOSE(chol)) -> -0.0102374892 | N100: -0.01016698016 | O100: 0.008719584628 | P100: -0.00531449742 | Q100: 0.002855682127 | R100: -14639.53218 | S100: -40120.70839 | T100: 40120.70839 | V100: =MMULT(H100:L100,TRANSPOSE(racar)) -> -0.00775481068 | W100: -0.006343017501 | X100: 0.01116625285 | Y100: -0.002015221268 | Z100: 0.007904698149 | AA100: =SUMPRODUCT($V$9:$Z$9,V100:Z100) -> -29672.9957 | AB100: -52999.02345
A101: 91 | B101: 0.3744855967 | C101: 0.344 | D101: 0.1253644315 | E101: 0.3388429752 | F101: 0.04142011834 | H101: -0.3199962234 | I101: -0.4015706956 | J101: -1.148580836 | K101: -0.4156229226 | L101: -1.734438907 | M101: =MMULT(H101:L101,TRANSPOSE(chol)) -> -0.001885477674 | N101: -0.003051575909 | O101: -0.007932363003 | P101: -0.003610243235 | Q101: -0.01267176277 | R101: 41528.38788 | S101: 53677.90498 | T101: -53677.90498 | V101: =MMULT(H101:L101,TRANSPOSE(racar)) -> -0.005194368813 | W101: -0.005249751437 | X101: -0.009035436314 | Y101: -0.004919628043 | Z101: -0.01301830481 | AA101: =SUMPRODUCT($V$9:$Z$9,V101:Z101) -> 30795.07804 | AB101: 49609.50987
A102: 92 | B102: 0.70781893 | C102: 0.544 | D102: 0.2682215743 | E102: 0.4297520661 | F102: 0.1183431953 | H102: 0.5470241512 | I102: 0.1105162036 | J102: -0.6182005483 | K102: -0.17700542 | L102: -1.183309799 | M102: =MMULT(H102:L102,TRANSPOSE(chol)) -> 0.003223168739 | N102: 0.001918085834 | O102: -0.003198791859 | P102: -0.0006556742911 | Q102: -0.005470366411 | R102: 24700.50187 | S102: 27301.40792 | T102: -27301.40792 | V102: =MMULT(H102:L102,TRANSPOSE(racar)) -> 0.001270450593 | W102: -0.0003598710243 | X102: -0.004523290286 | Y102: -0.002297629257 | Z102: -0.007236510971 | AA102: =SUMPRODUCT($V$9:$Z$9,V102:Z102) -> 26403.6318 | AB102: 29575.19923
A103: 93 | B103: 0.1522633745 | C103: 0.744 | D103: 0.4110787172 | E103: 0.520661157 | F103: 0.1952662722 | H103: -1.02677431 | I103: 0.6557266788 | J103: -0.2247709911 | K103: 0.05181301382 | L103: -0.858651992 | M103: =MMULT(H103:L103,TRANSPOSE(chol)) -> -0.006049946515 | N103: 0.001343059646 | O103: -0.002601746687 | P103: 0.0003567073063 | Q103: -0.006734542215 | R103: -1849.189232 | S103: 38933.20737 | T103: -38933.20737 | V103: =MMULT(H103:L103,TRANSPOSE(racar)) -> -0.006317774739 | W103: 0.001874815428 | X103: -0.002388720029 | Y103: -0.0004475318702 | Z103: -0.0061384712 | AA103: =SUMPRODUCT($V$9:$Z$9,V103:Z103) -> -12244.16876 | AB103: 31953.81711
A104: 94 | B104: 0.4855967078 | C104: 0.944 | D104: 0.5539358601 | E104: 0.6115702479 | F104: 0.2721893491 | H104: -0.0361115464 | I104: 1.589267557 | J104: 0.1356116693 | K104: 0.2834139916 | L104: -0.6062049017 | M104: =MMULT(H104:L104,TRANSPOSE(chol)) -> -0.0002127759939 | N104: 0.009016860663 | O104: 0.001345026995 | P104: 0.003923369059 | Q104: -0.000293234465 | R104: -23924.79464 | S104: 19565.8867 | T104: -19565.8867 | V104: =MMULT(H104:L104,TRANSPOSE(racar)) -> 0.0007988549076 | W104: 0.009024181266 | X104: 0.001005866618 | Y104: 0.002104471286 | Z104: -0.001744620771 | AA104: =SUMPRODUCT($V$9:$Z$9,V104:Z104) -> -20412.89271 | AB104: 19287.09769
A105: 95 | B105: 0.8189300412 | C105: 0.184 | D105: 0.6967930029 | E105: 0.7024793388 | F105: 0.349112426 | H105: 0.9112950807 | I105: -0.9002259857 | J105: 0.5151989622 | K105: 0.531544775 | L105: -0.3877178401 | M105: =MMULT(H105:L105,TRANSPOSE(chol)) -> 0.005369521272 | N105: -0.003014605159 | O105: 0.004230643629 | P105: 0.002249476388 | Q105: 0.000632101943 | R105: 56823.3054 | S105: 6785.77483 | T105: -6785.77483 | V105: =MMULT(H105:L105,TRANSPOSE(racar)) -> 0.004048173104 | W105: -0.004225750039 | X105: 0.003537084832 | Y105: 0.001865560414 | Z105: -0.001271995907 | AA105: =SUMPRODUCT($V$9:$Z$9,V105:Z105) -> 64037.91428 | AB105: 15576.72768
A106: 96 | B106: 0.2633744856 | C106: 0.384 | D106: 0.8396501458 | E106: 0.7933884298 | F106: 0.426035503 | H106: -0.6329765276 | I106: -0.2949919882 | J106: 0.9930210251 | K106: 0.8182347775 | L106: -0.1864766275 | M106: =MMULT(H106:L106,TRANSPOSE(chol)) -> -0.003729616237 | N106: -0.003176508472 | O106: 0.00542862058 | P106: 0.003714951172 | Q106: -0.0009398150968 | R106: 34190.57234 | S106: 22194.13235 | T106: -22194.13235 | V106: =MMULT(H106:L106,TRANSPOSE(racar)) -> -0.003415522916 | W106: -0.00166492171 | X106: 0.006192495254 | Y106: 0.003954062115 | Z106: -0.000726927168 | AA106: =SUMPRODUCT($V$9:$Z$9,V106:Z106) -> 29706.35102 | AB106: 22108.42867
A107: 97 | B107: 0.5967078189 | C107: 0.584 | D107: 0.9825072886 | E107: 0.8842975207 | F107: 0.5029585799 | H107: 0.2448347808 | I107: 0.2121371983 | J107: 2.108527082 | K107: 1.196747572 | L107: 0.007416127963 | M107: =MMULT(H107:L107,TRANSPOSE(chol)) -> 0.001442612378 | N107: 0.001790112454 | O107: 0.01393040632 | P107: 0.007710591163 | Q107: 0.005112982878 | R107: 37808.93108 | S107: 6940.460419 | T107: -6940.460419 | V107: =MMULT(H107:L107,TRANSPOSE(racar)) -> 0.002985461325 | W107: 0.003100458374 | X107: 0.01432434928 | Y107: 0.007088570161 | Z107: 0.003356564064 | AA107: =SUMPRODUCT($V$9:$Z$9,V107:Z107) -> 46065.13976 | AB107: 13824.57172
A108: 98 | B108: 0.9300411523 | C108: 0.784 | D108: 0.00583090379 | E108: 0.9752066116 | F108: 0.5798816568 | H108: 1.476097591 | I108: 0.7857738315 | J108: -2.522215998 | K108: 1.963511437 | L108: 0.2015907382 | M108: =MMULT(H108:L108,TRANSPOSE(chol)) -> 0.008697443433 | N108: 0.007968008315 | O108: -0.01395262554 | P108: 0.01062659463 | Q108: 0.008191234316 | R108: -30686.80547 | S108: 3225.300555 | T108: -3225.300555 | V108: =MMULT(H108:L108,TRANSPOSE(racar)) -> 0.008345311885 | W108: 0.007362594137 | X108: -0.01449424769 | Y108: 0.01022026398 | Z108: 0.004647194519 | AA108: =SUMPRODUCT($V$9:$Z$9,V108:Z108) -> -12755.08349 | AB108: 20997.22916
A109: 99 | B109: 0.07818930041 | C109: 0.984 | D109: 0.1486880466 | E109: 0.07438016529 | F109: 0.6568047337 | H109: -1.417356921 | I109: 2.144410621 | J109: -1.042076758 | K109: -1.443924086 | L109: 0.4037582063 | M109: =MMULT(H109:L109,TRANSPOSE(chol)) -> -0.008351332406 | N109: 0.008951096584 | O109: -0.007880407791 | P109: -0.005558187693 | Q109: -0.00228117549 | R109: -115337.3647 | S109: -12782.55739 | T109: 12782.55739 | V109: =MMULT(H109:L109,TRANSPOSE(racar)) -> -0.006019056131 | W109: 0.01020188865 | X109: -0.007214570387 | Y109: -0.005743282736 | Z109: 0.0006545407214 | AA109: =SUMPRODUCT($V$9:$Z$9,V109:Z109) -> -126499.4072 | AB109: -29889.64911
A110: 100 | B110: 0.4115226337 | C110: 0.032 | D110: 0.2915451895 | E110: 0.1652892562 | F110: 0.7337278107 | H110: -0.2236299366 | I110: -1.852179859 | J110: -0.5488762485 | K110: -0.9729492768 | L110: 0.6241267026 | M110: =MMULT(H110:L110,TRANSPOSE(chol)) -> -0.001317669465 | N110: -0.01113278236 | O110: -0.00443173869 | P110: -0.008202445106 | Q110: -0.002420943059 | R110: 15717.51723 | S110: -24100.67037 | T110: 24100.67037 | V110: =MMULT(H110:L110,TRANSPOSE(racar)) -> -0.002862666427 | W110: -0.01152511324 | X110: -0.004144763254 | Y110: -0.00600842927 | Z110: 0.0001707256676 | AA110: =SUMPRODUCT($V$9:$Z$9,V110:Z110) -> 6987.000507 | AB110: -28422.36803
A111: 101 | B111: 0.7448559671 | C111: 0.232 | D111: 0.4344023324 | E111: 0.2561983471 | F111: 0.8106508876 | H111: 0.6583892118 | I111: -0.7322762047 | J111: -0.1651770041 | K111: -0.6551103727 | L111: 0.8802973924 | M111: =MMULT(H111:L111,TRANSPOSE(chol)) -> 0.003879352531 | N111: -0.002646929885 | O111: -0.0004194694597 | P111: -0.003987414156 | Q111: 0.004189680073 | R111: -11228.60588 | S111: -41440.79983 | T111: 41440.79983 | V111: =MMULT(H111:L111,TRANSPOSE(racar)) -> 0.003872380547 | W111: -0.003300720464 | X111: -0.0005731453398 | Y111: -0.002869923939 | Z111: 0.004761031248 | AA111: =SUMPRODUCT($V$9:$Z$9,V111:Z111) -> -6366.625425 | AB111: -39495.14061
A112: 102 | B112: 0.1893004115 | C112: 0.432 | D112: 0.5772594752 | E112: 0.347107438 | F112: 0.8875739645 | H112: -0.8804772521 | I112: -0.1712845859 | J112: 0.1948874624 | K112: -0.3931416329 | L112: 1.213726789 | M112: =MMULT(H112:L112,TRANSPOSE(chol)) -> -0.005187936854 | N112: -0.003049509637 | O112: 1.540553497e-05 | P112: -0.002778653586 | Q112: 0.003133783456 | R112: -38352.64437 | S112: -30064.59132 | T112: 30064.59132 | V112: =MMULT(H112:L112,TRANSPOSE(racar)) -> -0.003503963535 | W112: -0.0009079532691 | X112: 0.001386300605 | Y112: -0.0008338532145 | Z112: 0.005993220949 | AA112: =SUMPRODUCT($V$9:$Z$9,V112:Z112) -> -45156.12764 | AB112: -37009.10423
A113: 103 | B113: 0.5226337449 | C113: 0.632 | D113: 0.7201166181 | E113: 0.4380165289 | F113: 0.9644970414 | H113: 0.05676485517 | I113: 0.337155077 | J113: 0.5831879772 | K113: -0.1559999535 | L113: 1.805439613 | M113: =MMULT(H113:L113,TRANSPOSE(chol)) -> 0.0003344691569 | N113: 0.002064241278 | O113: 0.003929926948 | P113: 0.0001328838125 | Q113: 0.01063214578 | R113: -57815.27482 | S113: -58282.73853 | T113: 58282.73853 | V113: =MMULT(H113:L113,TRANSPOSE(racar)) -> 0.003326061482 | W113: 0.004037064357 | X113: 0.005039855854 | Y113: 0.001785055535 | Z113: 0.01202372215 | AA113: =SUMPRODUCT($V$9:$Z$9,V113:Z113) -> -51598.48459 | AB113: -58435.11158
A114: 104 | B114: 0.8559670782 | C114: 0.832 | D114: 0.8629737609 | E114: 0.5289256198 | F114: 0.04733727811 | H114: 1.062374195 | I114: 0.9620987539 | J114: 1.09377772 | K114: 0.0725694219 | L114: -1.671238613 | M114: =MMULT(H114:L114,TRANSPOSE(chol)) -> 0.006259707708 | N114: 0.008005828006 | O114: 0.008759202914 | P114: 0.003306429587 | Q114: -0.003373820172 | R114: 42868.06874 | S114: 33807.6675 | T114: -33807.6675 | V114: =MMULT(H114:L114,TRANSPOSE(racar)) -> 0.005410816739 | W114: 0.00539635375 | X114: 0.006881612372 | Y114: -0.0001656939189 | Z114: -0.007311562128 | AA114: =SUMPRODUCT($V$9:$Z$9,V114:Z114) -> 53650.2398 | AB114: 39740.30733
A115: 105 | B115: 0.3004115226 | C115: 0.072 | D115: 0.02623906706 | E115: 0.6198347107 | F115: 0.124260355 | H115: -0.5232172978 | I115: -1.461056269 | J115: -1.939190597 | K115: 0.3050467082 | L115: -1.153949899 | M115: =MMULT(H115:L115,TRANSPOSE(chol)) -> -0.003082894301 | N115: -0.009596667724 | O115: -0.01362737379 | P115: -0.002286741359 | Q115: -0.01106983749 | R115: 52786.25636 | S115: 50857.41234 | T115: -50857.41234 | V115: =MMULT(H115:L115,TRANSPOSE(racar)) -> -0.006995878747 | W115: -0.01075512022 | X115: -0.01392920471 | Y115: -0.001786980365 | Z115: -0.01045411898 | AA115: =SUMPRODUCT($V$9:$Z$9,V115:Z115) -> 38869.71839 | AB115: 49732.43012
A116: 106 | B116: 0.633744856 | C116: 0.272 | D116: 0.1690962099 | E116: 0.7107438017 | F116: 0.201183432 | H116: 0.3417882031 | I116: -0.6067753635 | J116: -0.9577428973 | K116: 0.5555589555 | L116: -0.837401605 | M116: =MMULT(H116:L116,TRANSPOSE(chol)) -> 0.002013880099 | N116: -0.002672002182 | O116: -0.005888891566 | P116: 0.001521031065 | Q116: -0.004213315532 | R116: 38990.17635 | S116: 30292.86724 | T116: -30292.86724 | V116: =MMULT(H116:L116,TRANSPOSE(racar)) -> -0.0002390082289 | W116: -0.003951944889 | X116: -0.006544756614 | Y116: 0.0010734719 | Z116: -0.005475884568 | AA116: =SUMPRODUCT($V$9:$Z$9,V116:Z116) -> 38527.45824 | AB116: 35239.41213
A117: 107 | B117: 0.9670781893 | C117: 0.472 | D117: 0.3119533528 | E117: 0.8016528926 | F117: 0.2781065089 | H117: 1.839486775 | I117: -0.07024331382 | J117: -0.4903210899 | K117: 0.8475399758 | L117: -0.5884757328 | M117: =MMULT(H117:L117,TRANSPOSE(chol)) -> 0.01083860055 | N117: 0.003919352668 | O117: -0.0007068181111 | P117: 0.005223501537 | Q117: 0.003290820117 | R117: 33795.55498 | S117: 5659.703821 | T117: -5659.703821 | V117: =MMULT(H117:L117,TRANSPOSE(racar)) -> 0.009375054512 | W117: 0.001446919224 | X117: -0.002266007182 | Y117: 0.003730149541 | Z117: -0.0007288194688 | AA117: =SUMPRODUCT($V$9:$Z$9,V117:Z117) -> 51328.30965 | AB117: 21094.95073
A118: 108 | B118: 0.01646090535 | C118: 0.672 | D118: 0.4548104956 | E118: 0.8925619835 | F118: 0.3550295858 | H118: -2.133035542 | I118: 0.4454425063 | J118: -0.1135166151 | K118: 1.240268679 | L118: -0.3717766212 | M118: =MMULT(H118:L118,TRANSPOSE(chol)) -> -0.01256824486 | N118: -0.002460249809 | O118: -0.003438285017 | P118: 0.005163823072 | Q118: -0.005343346953 | R118: -176.1404614 | S118: 53210.60316 | T118: -53210.60316 | V118: =MMULT(H118:L118,TRANSPOSE(racar)) -> -0.01184299486 | W118: 0.001003092677 | X118: -0.001580721481 | Y118: 0.005828318518 | Z118: -0.003300847988 | AA118: =SUMPRODUCT($V$9:$Z$9,V118:Z118) -> -18245.84458 | AB118: 44936.15872
A119: 109 | B119: 0.3497942387 | C119: 0.872 | D119: 0.5976676385 | E119: 0.9834710744 | F119: 0.4319526627 | H119: -0.3858760385 | I119: 1.135896221 | J119: 0.2473146484 | K119: 2.131379975 | L119: -0.1714049976 | M119: =MMULT(H119:L119,TRANSPOSE(chol)) -> -0.002273653881 | N119: 0.005598686967 | O119: 0.001444383166 | P119: 0.0122128565 | Q119: 0.003903715719 | R119: -1139.81695 | S119: 34227.47385 | T119: -34227.47385 | V119: =MMULT(H119:L119,TRANSPOSE(racar)) -> -0.0006801252179 | W119: 0.0079927853 | X119: 0.002372965048 | Y119: 0.01161172592 | Z119: 0.002250818864 | AA119: =SUMPRODUCT($V$9:$Z$9,V119:Z119) -> 2653.448006 | AB119: 40633.71965
A120: 110 | B120: 0.683127572 | C120: 0.112 | D120: 0.7405247813 | E120: 0.0826446281 | F120: 0.5088757396 | H120: 0.476462586 | I120: -1.21596042 | J120: 0.6449641205 | K120: -1.387500312 | L120: 0.02225001568 | M120: =MMULT(H120:L120,TRANSPOSE(chol)) -> 0.002807406783 | N120: -0.005844391562 | O120: 0.00437730653 | P120: -0.0080416798 | Q120: -0.002414602372 | R120: 29590.55301 | S120: -23400.60604 | T120: 23400.60604 | V120: =MMULT(H120:L120,TRANSPOSE(racar)) -> 0.001535694934 | W120: -0.007670568926 | X120: 0.003621190129 | Y120: -0.007721773243 | Z120: -0.001717205359 | AA120: =SUMPRODUCT($V$9:$Z$9,V120:Z120) -> 28811.70882 | AB120: -25800.4775
A121: 111 | B121: 0.1275720165 | C121: 0.312 | D121: 0.8833819242 | E121: 0.173553719 | F121: 0.5857988166 | H121: -1.137943602 | I121: -0.4901892317 | J121: 1.192064 | K121: -0.9402147097 | L121: 0.216751043 | M121: =MMULT(H121:L121,TRANSPOSE(chol)) -> -0.006704976804 | N121: -0.00548075312 | O121: 0.005965667083 | P121: -0.005603398202 | Q121: -0.003683136192 | R121: 6099.497822 | S121: -5223.982623 | T121: 5223.982623 | V121: =MMULT(H121:L121,TRANSPOSE(racar)) -> -0.006137281221 | W121: -0.004322299323 | X121: 0.006775286731 | Y121: -0.004711196078 | Z121: -0.0009464129216 | AA121: =SUMPRODUCT($V$9:$Z$9,V121:Z121) -> -6313.83853 | AB121: -16302.35814
A122: 112 | B122: 0.4609053498 | C122: 0.512 | D122: 0.04664723032 | E122: 0.2644628099 | F122: 0.6627218935 | H122: -0.09815312992 | I122: 0.03008407662 | J122: -1.678269699 | K122: -0.6296469174 | L122: 0.4199031411 | M122: =MMULT(H122:L122,TRANSPOSE(chol)) -> -0.0005783366224 | N122: -5.830715411e-05 | O122: -0.01089283901 | P122: -0.004148962635 | Q122: -0.0005737354827 | R122: -44215.87317 | S122: -15795.47105 | T122: 15795.47105 | V122: =MMULT(H122:L122,TRANSPOSE(racar)) -> -0.001009338883 | W122: -0.0004588927483 | X122: -0.01089539278 | Y122: -0.003326866354 | Z122: 0.000724853212 | AA122: =SUMPRODUCT($V$9:$Z$9,V122:Z122) -> -47600.09171 | AB122: -19228.75537
A123: 113 | B123: 0.7942386831 | C123: 0.712 | D123: 0.1895043732 | E123: 0.3553719008 | F123: 0.7396449704 | H123: 0.8212170723 | I123: 0.5592369776 | J123: -0.8797241814 | K123: -0.3708573252 | L123: 0.6422512538 | M123: =MMULT(H123:L123,TRANSPOSE(chol)) -> 0.004838764777 | N123: 0.005132080303 | O123: -0.004362439278 | P123: -0.000869712945 | Q123: 0.005295945035 | R123: -47588.30791 | S123: -33310.94849 | T123: 33310.94849 | V123: =MMULT(H123:L123,TRANSPOSE(racar)) -> 0.005489240472 | W123: 0.004324629774 | X123: -0.004817307443 | Y123: -0.0008589246336 | Z123: 0.004719846334 | AA123: =SUMPRODUCT($V$9:$Z$9,V123:Z123) -> -38357.957 | AB123: -30070.65859
A124: 114 | B124: 0.2386831276 | C124: 0.912 | D124: 0.332361516 | E124: 0.4462809917 | F124: 0.8165680473 | H124: -0.7105449689 | I124: 1.353174155 | J124: -0.4334016087 | K124: -0.1350631016 | L124: 0.9023633086 | M124: =MMULT(H124:L124,TRANSPOSE(chol)) -> -0.004186664019 | N124: 0.00608026551 | O124: -0.003287777295 | P124: 0.0006258119878 | Q124: 0.004245921564 | R124: -78561.70263 | S124: -20655.88837 | T124: 20655.88837 | V124: =MMULT(H124:L124,TRANSPOSE(racar)) -> -0.001655637677 | W124: 0.0080321319 | X124: -0.002287152393 | Y124: 0.001185316819 | Z124: 0.005776200369 | AA124: =SUMPRODUCT($V$9:$Z$9,V124:Z124) -> -80377.37699 | AB124: -26573.32058
A125: 115 | B125: 0.5720164609 | C125: 0.152 | D125: 0.4752186589 | E125: 0.5371900826 | F125: 0.8934911243 | H125: 0.1815102631 | I125: -1.027893346 | J125: -0.06215761215 | K125: 0.0933571455 | L125: 1.24531019 | M125: =MMULT(H125:L125,TRANSPOSE(chol)) -> 0.001069492461 | N125: -0.005460287665 | O125: -0.0004941469196 | P125: -0.001025405951 | Q125: 0.005803299557 | R125: -5416.404012 | S125: -36833.12479 | T125: 36833.12479 | V125: =MMULT(H125:L125,TRANSPOSE(racar)) -> 0.001551024828 | W125: -0.004516496565 | X125: 0.0002639806451 | Y125: 0.001066053208 | Z125: 0.007049672875 | AA125: =SUMPRODUCT($V$9:$Z$9,V125:Z125) -> -3520.188395 | AB125: -34172.35704
A126: 116 | B126: 0.9053497942 | C126: 0.352 | D126: 0.6180758017 | E126: 0.6280991736 | F126: 0.9704142012 | H126: 1.312651488 | I126: -0.379926467 | J126: 0.3004310316 | K126: 0.3268231448 | L126: 1.886916201 | M126: =MMULT(H126:L126,TRANSPOSE(chol)) -> 0.007734388383 | N126: 0.0009080732388 | O126: 0.003560917633 | P126: 0.00221686584 | Q126: 0.01432537463 | R126: -29824.40615 | S126: -69209.05855 | T126: 69209.05855 | V126: =MMULT(H126:L126,TRANSPOSE(racar)) -> 0.009667390451 | W126: 0.001504514397 | X126: 0.003927552746 | Y126: 0.003864696054 | Z126: 0.01377715579 | AA126: =SUMPRODUCT($V$9:$Z$9,V126:Z126) -> -12535.39389 | AB126: -58636.94861
A127: 117 | B127: 0.05349794239 | C127: 0.552 | D127: 0.7609329446 | E127: 0.7190082645 | F127: 0.05325443787 | H127: -1.611844027 | I127: 0.1307159681 | J127: 0.709306798 | K127: 0.5798979013 | L127: -1.614085529 | M127: =MMULT(H127:L127,TRANSPOSE(chol)) -> -0.009497286856 | N127: -0.003038210136 | O127: 0.002437024388 | P127: 0.002273930377 | Q127: -0.01155490473 | R127: 52086.50439 | S127: 74400.24719 | T127: -74400.24719 | V127: =MMULT(H127:L127,TRANSPOSE(racar)) -> -0.01053391075 | W127: -0.001975044289 | X127: 0.002904141723 | Y127: 0.001172045561 | Z127: -0.01100990292 | AA127: =SUMPRODUCT($V$9:$Z$9,V127:Z127) -> 35000.22872 | AB127: 66342.58148
A128: 118 | B128: 0.3868312757 | C128: 0.752 | D128: 0.9037900875 | E128: 0.8099173554 | F128: 0.1301775148 | H128: -0.2875874516 | I128: 0.6807969188 | J128: 1.303453959 | K128: 0.8775917845 | L128: -1.125552391 | M128: =MMULT(H128:L128,TRANSPOSE(chol)) -> -0.001694519121 | N128: 0.003223259592 | O128: 0.008204639244 | P128: 0.005967971252 | Q128: -0.003127161721 | R128: 40125.10124 | S128: 44612.76372 | T128: -44612.76372 | V128: =MMULT(H128:L128,TRANSPOSE(racar)) -> -0.001496114962 | W128: 0.003619812431 | X128: 0.008073254008 | Y128: 0.004159684338 | Z128: -0.004874434506 | AA128: =SUMPRODUCT($V$9:$Z$9,V128:Z128) -> 40117.93077 | AB128: 46021.3849
A129: 119 | B129: 0.7201646091 | C129: 0.952 | D129: 0.06705539359 | E129: 0.9008264463 | F129: 0.2071005917 | H129: 0.5833305777 | I129: 1.664562861 | J129: -1.498086465 | K129: 1.286274991 | L129: -0.8165228092 | M129: =MMULT(H129:L129,TRANSPOSE(chol)) -> 0.003437093003 | N129: 0.01090337378 | O129: -0.008285947812 | P129: 0.008539820951 | Q129: 0.001012527125 | R129: -25920.6487 | S129: 33444.57942 | T129: -33444.57942 | V129: =MMULT(H129:L129,TRANSPOSE(racar)) -> 0.003363475353 | W129: 0.01027377676 | X129: -0.009010162112 | Y129: 0.006543770088 | Z129: -0.002099714268 | AA129: =SUMPRODUCT($V$9:$Z$9,V129:Z129) -> -16687.43267 | AB129: 41554.97841
A130: 120 | B130: 0.1646090535 | C130: 0.192 | D130: 0.2099125364 | E130: 0.9917355372 | F130: 0.2840236686 | H130: -0.9756900046 | I130: -0.8705498302 | J130: -0.806724765 | K130: 2.397022125 | L130: -0.5709296413 | M130: =MMULT(H130:L130,TRANSPOSE(chol)) -> -0.005748948222 | N130: -0.007277876136 | O130: -0.0067706627 | P130: 0.009355883808 | Q130: -0.003452041418 | R130: 56253.15654 | S130: 61905.27093 | T130: -61905.27093 | V130: =MMULT(H130:L130,TRANSPOSE(racar)) -> -0.007155892096 | W130: -0.005048396795 | X130: -0.005516232444 | Y130: 0.0103513668 | Z130: -0.003584290447 | AA130: =SUMPRODUCT($V$9:$Z$9,V130:Z130) -> 46779.48914 | AB130: 67190.1603
A131: 121 | B131: 0.4979423868 | C131: 0.392 | D131: 0.3527696793 | E131: 0.0007513148009 | F131: 0.3609467456 | H131: -0.005157694214 | I131: -0.274110116 | J131: -0.3778535928 | K131: -3.174175201 | L131: -0.3559293286 | M131: =MMULT(H131:L131,TRANSPOSE(chol)) -> -3.039010018e-05 | N131: -0.001581939883 | O131: -0.002522216271 | P131: -0.01644128387 | Q131: -0.008647758172 | R131: -25438.28144 | S131: -27287.41529 | T131: 27287.41529 | V131: =MMULT(H131:L131,TRANSPOSE(racar)) -> -0.001561091224 | W131: -0.004750513116 | X131: -0.00392440391 | Y131: -0.0169295161 | Z131: -0.006444868455 | AA131: =SUMPRODUCT($V$9:$Z$9,V131:Z131) -> -34176.57767 | AB131: -41721.70823
A132: 122 | B132: 0.8312757202 | C132: 0.592 | D132: 0.4956268222 | E132: 0.09166040571 | F132: 0.4378698225 | H132: 0.959218744 | I132: 0.2326927492 | J132: -0.01096215078 | K132: -1.330599548 | L132: -0.1563722048 | M132: =MMULT(H132:L132,TRANSPOSE(chol)) -> 0.005651896471 | N132: 0.003586185704 | O132: 0.001290696065 | P132: -0.005532761412 | Q132: -0.0001861242704 | R132: -13451.61467 | S132: -24270.56695 | T132: 24270.56695 | V132: =MMULT(H132:L132,TRANSPOSE(racar)) -> 0.005184232344 | W132: 0.001116056612 | X132: -6.650629106e-05 | Y132: -0.006590386388 | Z132: -0.001019520237 | AA132: =SUMPRODUCT($V$9:$Z$9,V132:Z132) -> -6535.820187 | AB132: -24491.01996
A133: 123 | B133: 0.2757201646 | C133: 0.792 | D133: 0.638483965 | E133: 0.1825694966 | F133: 0.5147928994 | H133: -0.5956032138 | I133: 0.8133803882 | J133: 0.354409428 | K133: -0.9056162717 | L133: 0.03708880126 | M133: =MMULT(H133:L133,TRANSPOSE(chol)) -> -0.003509405673 | N133: 0.003258919268 | O133: 0.001744748673 | P133: -0.003491622796 | Q133: -0.001703334601 | R133: -34981.2331 | S133: -6532.695838 | T133: 6532.695838 | V133: =MMULT(H133:L133,TRANSPOSE(racar)) -> -0.00241178834 | W133: 0.003595013386 | X133: 0.00189161852 | Y133: -0.003870301615 | Z133: -0.0004785037638 | AA133: =SUMPRODUCT($V$9:$Z$9,V133:Z133) -> -39816.71401 | AB133: -15048.6247
A134: 124 | B134: 0.6090534979 | C134: 0.992 | D134: 0.7813411079 | E134: 0.2734785875 | F134: 0.5917159763 | H134: 0.2768529725 | I134: 2.408915546 | J134: 0.7767305069 | K134: -0.6023259732 | L134: 0.231961332 | M134: =MMULT(H134:L134,TRANSPOSE(chol)) -> 0.001631269559 | N134: 0.01444623588 | O134: 0.00614861728 | P134: 0.001403058782 | Q134: 0.005283309097 | R134: -73925.17296 | S134: -22847.50299 | T134: 22847.50299 | V134: =MMULT(H134:L134,TRANSPOSE(racar)) -> 0.004707385174 | W134: 0.01456781643 | X134: 0.005794842493 | Y134: -0.0004700109685 | Z134: 0.004233101268 | AA134: =SUMPRODUCT($V$9:$Z$9,V134:Z134) -> -64029.83645 | AB134: -25596.11069
A135: 125 | B135: 0.9423868313 | C135: 0.0016 | D135: 0.9241982507 | E135: 0.3643876784 | F135: 0.6686390533 | H135: 1.575130447 | I135: -2.947842552 | J135: 1.433890552 | K135: -0.3467550397 | L135: 0.4361582822 | M135: =MMULT(H135:L135,TRANSPOSE(chol)) -> 0.009280963566 | N135: -0.01318166508 | O135: 0.0103419779 | P135: -0.004242763392 | Q135: 0.003008603138 | R135: 98098.68191 | S135: -36066.64972 | T135: 36066.64972 | V135: =MMULT(H135:L135,TRANSPOSE(racar)) -> 0.007053841629 | W135: -0.01528063771 | X135: 0.009520800924 | Y135: -0.002897938459 | Z135: 0.002180776726 | AA135: =SUMPRODUCT($V$9:$Z$9,V135:Z135) -> 107301.3011 | AB135: -25331.47328
A136: 126 | B136: 0.09053497942 | C136: 0.2016 | D136: 0.08746355685 | E136: 0.4552967693 | F136: 0.7455621302 | H136: -1.337467884 | I136: -0.8359198403 | J136: -1.356540955 | K136: -0.112289914 | L136: 0.6605892894 | M136: =MMULT(H136:L136,TRANSPOSE(chol)) -> -0.007880611235 | N136: -0.007929500955 | O136: -0.0107724932 | P136: -0.003673452351 | Q136: -0.002993579072 | R136: -21915.98349 | S136: -217.6695759 | T136: 217.6695759 | V136: =MMULT(H136:L136,TRANSPOSE(racar)) -> -0.008296999088 | W136: -0.006128341993 | X136: -0.009382592633 | Y136: -0.001239792775 | Z136: 0.0004973592168 | AA136: =SUMPRODUCT($V$9:$Z$9,V136:Z136) -> -37842.03454 | AB136: -8424.435461
A137: 127 | B137: 0.4238683128 | C137: 0.4016 | D137: 0.2303206997 | E137: 0.5462058603 | F137: 0.8224852071 | H137: -0.1920071235 | I137: -0.2492078597 | J137: -0.737791105 | K137: 0.1160810849 | L137: 0.9248775881 | M137: =MMULT(H137:L137,TRANSPOSE(chol)) -> -0.001131341928 | N137: -0.001878303609 | O137: -0.005074343591 | P137: -0.000389598634 | Q137: 0.003645269291 | R137: -29775.74372 | S137: -21972.43847 | T137: 21972.43847 | V137: =MMULT(H137:L137,TRANSPOSE(racar)) -> -0.0005173795291 | W137: -0.0007953833852 | X137: -0.004314771331 | Y137: 0.00114428201 | Z137: 0.004961114736 | AA137: =SUMPRODUCT($V$9:$Z$9,V137:Z137) -> -30909.02753 | AB137: -22246.29408
A138: 128 | B138: 0.7572016461 | C138: 0.6016 | D138: 0.3731778426 | E138: 0.6371149512 | F138: 0.899408284 | H138: 0.6973293444 | I138: 0.2574906918 | J138: -0.3234483929 | K138: 0.3507577483 | L138: 1.27818719 | M138: =MMULT(H138:L138,TRANSPOSE(chol)) -> 0.004108795085 | N138: 0.00311292794 | O138: -0.001057403422 | P138: 0.002485729957 | Q138: 0.009730308088 | R138: -42003.70798 | S138: -42527.90829 | T138: 42527.90829 | V138: =MMULT(H138:L138,TRANSPOSE(racar)) -> 0.005743949767 | W138: 0.003837716682 | X138: -0.0006765394667 | Y138: 0.003475882903 | Z138: 0.009438283158 | AA138: =SUMPRODUCT($V$9:$Z$9,V138:Z138) -> -31124.16664 | AB138: -36382.41021
A139: 129 | B139: 0.2016460905 | C139: 0.8016 | D139: 0.5160349854 | E139: 0.7280240421 | F139: 0.9763313609 | H139: -0.8357560055 | I139: 0.8473501166 | J139: 0.04020457638 | K139: 0.6068478104 | L139: 1.983270004 | M139: =MMULT(H139:L139,TRANSPOSE(chol)) -> -0.004924430895 | N139: 0.002889255447 | O139: -0.0005822555114 | P139: 0.003716480632 | Q139: 0.01073468603 | R139: -81093.67848 | S139: -42462.79856 | T139: 42462.79856 | V139: =MMULT(H139:L139,TRANSPOSE(racar)) -> -0.001082917349 | W139: 0.006803974156 | X139: 0.001559378262 | Y139: 0.00593577176 | Z139: 0.01304792883 | AA139: =SUMPRODUCT($V$9:$Z$9,V139:Z139) -> -80871.32052 | AB139: -45126.73738
A140: 130 | B140: 0.5349794239 | C140: 0.0416 | D140: 0.6588921283 | E140: 0.818933133 | F140: 0.05917159763 | H140: 0.08779306191 | I140: -1.732413309 | J140: 0.4094414266 | K140: 0.9113068199 | L140: -1.561765698 | M140: =MMULT(H140:L140,TRANSPOSE(chol)) -> 0.0005172931616 | N140: -0.009715234221 | O140: 0.002175276617 | P140: 0.002158688148 | Q140: -0.00877550052 | R140: =SUMPRODUCT($M$9:$Q$9,M140:Q140) -> 115330.9362 | S140: =P140*$P$9+Q140*$Q$9 -> 58478.39154 | T140: =-S140 -> -58478.39154 | V140: =MMULT(H140:L140,TRANSPOSE(racar)) -> -0.002977088935 | W140: -0.01101197763 | X140: 0.001533547687 | Y140: 0.001571885437 | Z140: -0.01027851104 | AA140: =SUMPRODUCT($V$9:$Z$9,V140:Z140) -> 109988.7708 | AB140: =Y140*$Y$9+Z140*$Z$9 -> 64119.95334
A141: 131 | B141: 0.8683127572 | C141: 0.2416 | D141: 0.8017492711 | E141: 0.9098422239 | F141: 0.1360946746 | H141: 1.118450853 | I141: -0.7011650794 | J141: 0.8478860078 | K141: 1.339784082 | L141: -1.098034673 | M141: =MMULT(H141:L141,TRANSPOSE(chol)) -> 0.006590121877 | N141: -0.001387902261 | O141: 0.006708770938 | P141: 0.006932564667 | Q141: -0.000489749933 | R141: 87729.69423 | S141: 34415.51248 | T141: -34415.51248 | V141: =MMULT(H141:L141,TRANSPOSE(racar)) -> 0.004821428963 | W141: -0.002828177417 | X141: 0.00569469088 | Y141: 0.005485481955 | Z141: -0.00411742239 | AA141: =SUMPRODUCT($V$9:$Z$9,V141:Z141) -> 97972.806 | AB141: 47891.2825
A142: 132 | B142: 0.3127572016 | C142: 0.4416 | D142: 0.944606414 | E142: 0.009015777611 | F142: 0.2130177515 | H142: -0.4880500316 | I142: -0.1469138751 | J142: 1.594664985 | K142: -2.364969513 | L142: -0.7959940342 | M142: =MMULT(H142:L142,TRANSPOSE(chol)) -> -0.002875682182 | N142: -0.00198798248 | O142: 0.009532832214 | P142: -0.01142598177 | Q142: -0.009059980563 | R142: 17635.7701 | S142: -2069.022071 | T142: 2069.022071 | V142: =MMULT(H142:L142,TRANSPOSE(racar)) -> -0.003483320928 | W142: -0.003758661042 | X142: 0.008656909158 | Y142: -0.01257883038 | Z142: -0.007487282808 | AA142: =SUMPRODUCT($V$9:$Z$9,V142:Z142) -> 7751.053931 | AB142: -16052.05462
A143: 133 | B143: 0.646090535 | C143: 0.6416 | D143: 0.1078717201 | E143: 0.09992486852 | F143: 0.2899408284 | H143: 0.3747869371 | I143: 0.3627388171 | J143: -1.237926163 | K143: -1.281979787 | L143: -0.5535575905 | M143: =MMULT(H143:L143,TRANSPOSE(chol)) -> 0.002208314819 | N143: 0.002957910247 | O143: -0.00732388927 | P143: -0.006258400329 | Q143: -0.00478887468 | R143: -24494.07914 | S143: -2094.750023 | T143: 2094.750023 | V143: =MMULT(H143:L143,TRANSPOSE(racar)) -> 0.0008502691281 | W143: 0.0005483731128 | X143: -0.008561427545 | Y143: -0.00724509896 | Z143: -0.004897809078 | AA143: =SUMPRODUCT($V$9:$Z$9,V143:Z143) -> -25370.94948 | AB143: -6003.576731
A144: 134 | B144: 0.9794238683 | C144: 0.8416 | D144: 0.250728863 | E144: 0.1908339594 | F144: 0.3668639053 | H144: 2.04199262 | I144: 1.001055453 | J144: -0.6721978871 | K144: -0.8748272297 | L144: -0.3401709274 | M144: =MMULT(H144:L144,TRANSPOSE(chol)) -> 0.01203180292 | N144: 0.01053041804 | O144: -0.001250394201 | P144: -0.001638019111 | Q144: 0.003476291181 | R144: -27969.40313 | S144: -26745.5511 | T144: 26745.5511 | V144: =MMULT(H144:L144,TRANSPOSE(racar)) -> 0.01155206162 | W144: 0.006814275483 | X144: -0.003504144522 | Y144: -0.003892480972 | Z144: 0.0001532764385 | AA144: =SUMPRODUCT($V$9:$Z$9,V144:Z144) -> -8617.891947 | AB144: -18649.42063
A145: 135 | B145: 0.02880658436 | C145: 0.0816 | D145: 0.3935860058 | E145: 0.2817430503 | F145: 0.4437869822 | H145: -1.89862979 | I145: -1.394389557 | J145: -0.2699847164 | K145: -0.5776712386 | L145: -0.141374669 | M145: =MMULT(H145:L145,TRANSPOSE(chol)) -> -0.01118708228 | N145: -0.01244622143 | O145: -0.004734096553 | P145: -0.006642112667 | Q145: -0.009786772086 | R145: 24328.61504 | S145: 23833.38861 | T145: -23833.38861 | V145: =MMULT(H145:L145,TRANSPOSE(racar)) -> -0.01256937836 | W145: -0.01098257452 | X145: -0.003489141579 | Y145: -0.004697498637 | Z145: -0.005714709705 | AA145: =SUMPRODUCT($V$9:$Z$9,V145:Z145) -> -117.2793141 | AB145: 10171.41236
A146: 136 | B146: 0.3621399177 | C146: 0.2816 | D146: 0.5364431487 | E146: 0.3726521412 | F146: 0.5207100592 | H146: -0.3527447127 | I146: -0.5780949742 | J146: 0.09147684685 | K146: -0.3248372079 | L146: 0.05193575836 | M146: =MMULT(H146:L146,TRANSPOSE(chol)) -> -0.002078437905 | N146: -0.004139464845 | O146: -7.549341035e-05 | P146: -0.00272673085 | Q146: -0.002175301937 | R146: 10862.21219 | S146: -420.6398999 | T146: 420.6398999 | V146: =MMULT(H146:L146,TRANSPOSE(racar)) -> -0.002529008655 | W146: -0.003992640236 | X146: 0.0001549043721 | Y146: -0.002102314558 | Z146: -0.001069002814 | AA146: =SUMPRODUCT($V$9:$Z$9,V146:Z146) -> 5330.27873 | AB146: -3692.847779
A147: 137 | B147: 0.695473251 | C147: 0.4816 | D147: 0.6793002915 | E147: 0.4635612322 | F147: 0.5976331361 | H147: 0.5114249929 | I147: -0.04613832448 | J147: 0.4657430734 | K147: -0.09146581967 | L147: 0.247225479 | M147: =MMULT(H147:L147,TRANSPOSE(chol)) -> 0.003013411832 | N147: 0.0009372932425 | O147: 0.003658843629 | P147: 0.0001383989828 | Q147: 0.002985071025 | R147: 1919.208774 | S147: -15901.11492 | T147: 15901.11492 | V147: =MMULT(H147:L147,TRANSPOSE(racar)) -> 0.003388565232 | W147: 0.0005819361702 | X147: 0.003421796546 | Y147: 4.26529839e-05 | Z147: 0.002378309149 | AA147: =SUMPRODUCT($V$9:$Z$9,V147:Z147) -> 7797.774592 | AB147: -12978.16941
A148: 138 | B148: 0.1399176955 | C148: 0.6816 | D148: 0.8221574344 | E148: 0.5544703231 | F148: 0.674556213 | H148: -1.080689195 | I148: 0.4721776377 | J148: 0.9236182066 | K148: 0.1369638695 | L148: 0.4525295004 | M148: =MMULT(H148:L148,TRANSPOSE(chol)) -> -0.006367623116 | N148: 0.0001652123602 | O148: 0.004636129944 | P148: 0.001131160812 | Q148: 0.001034958792 | R148: -19506.51178 | S148: -559.7021809 | T148: 559.7021809 | V148: =MMULT(H148:L148,TRANSPOSE(racar)) -> -0.004451357233 | W148: 0.002526748346 | X148: 0.005878669582 | Y148: 0.001751447278 | Z148: 0.002712848093 | AA148: =SUMPRODUCT($V$9:$Z$9,V148:Z148) -> -26180.11446 | AB148: -7016.778239
A149: 139 | B149: 0.4732510288 | C149: 0.8816 | D149: 0.9650145773 | E149: 0.645379414 | F149: 0.7514792899 | H149: -0.06710004558 | I149: 1.183023081 | J149: 1.812099359 | K149: 0.372875413 | L149: 0.6791522165 | M149: =MMULT(H149:L149,TRANSPOSE(chol)) -> -0.0003953660342 | N149: 0.006617504122 | O149: 0.01192970622 | P149: 0.004702897184 | Q149: 0.007515710262 | R149: -26954.35151 | S149: -20122.29138 | T149: 20122.29138 | V149: =MMULT(H149:L149,TRANSPOSE(racar)) -> 0.002818402108 | W149: 0.00849917633 | X149: 0.01263733403 | Y149: 0.004308141302 | Z149: 0.007086154372 | AA149: =SUMPRODUCT($V$9:$Z$9,V149:Z149) -> -19492.54405 | AB149: -19548.25413
A150: 140 | B150: 0.8065843621 | C150: 0.1216 | D150: 0.1282798834 | E150: 0.7362885049 | F150: 0.8284023669 | H150: 0.865378139 | I150: -1.167025678 | J150: -1.13455989 | K150: 0.631944735 | L150: 0.9478707323 | M150: =MMULT(H150:L150,TRANSPOSE(chol)) -> 0.005098970052 | N150: -0.004650436949 | O150: -0.006506963076 | P150: 0.001329138983 | Q150: 0.006098389831 | R150: 3701.024801 | S150: -27700.19338 | T150: 27700.19338 | V150: =MMULT(H150:L150,TRANSPOSE(racar)) -> 0.004364536042 | W150: -0.004796015015 | X150: -0.006358610882 | Y150: 0.003081220921 | Z150: 0.005833537611 | AA150: =SUMPRODUCT($V$9:$Z$9,V150:Z150) -> 10905.55756 | AB150: -18220.87716
A151: 141 | B151: 0.2510288066 | C151: 0.3216 | D151: 0.2711370262 | E151: 0.8271975958 | F151: 0.9053254438 | H151: -0.6712557587 | I151: -0.463229323 | J151: -0.6093777952 | K151: 0.943148779 | L151: 1.31250704 | M151: =MMULT(H151:L151,TRANSPOSE(chol)) -> -0.003955164635 | N151: -0.004229932023 | O151: -0.004962361114 | P151: 0.003102923201 | Q151: 0.005668566314 | R151: -25765.92744 | S151: -17207.872 | T151: 17207.872 | V151: =MMULT(H151:L151,TRANSPOSE(racar)) -> -0.002708699008 | W151: -0.001432420653 | X151: -0.003247943383 | Y151: 0.005582717629 | Z151: 0.007584116401 | AA151: =SUMPRODUCT($V$9:$Z$9,V151:Z151) -> -29406.19585 | AB151: -16477.73988
A152: 142 | B152: 0.5843621399 | C152: 0.5216 | D152: 0.4139941691 | E152: 0.9181066867 | F152: 0.9822485207 | H152: 0.2130656969 | I152: 0.0541696512 | J152: -0.2172823154 | K152: 1.3924485 | L152: 2.102574756 | M152: =MMULT(H152:L152,TRANSPOSE(chol)) -> 0.001255422987 | N152: 0.0008107984919 | O152: -0.001091400034 | P152: 0.007045560467 | Q152: 0.01449894084 | R152: -49055.06579 | S152: -48088.65315 | T152: 48088.65315 | V152: =MMULT(H152:L152,TRANSPOSE(racar)) -> 0.00413288647 | W152: 0.003900418131 | X152: 0.000611311969 | Y152: 0.009508791365 | Z152: 0.0150522175 | AA152: =SUMPRODUCT($V$9:$Z$9,V152:Z152) -> -39255.38185 | AB152: -39888.76671
A153: 143 | B153: 0.9176954733 | C153: 0.7216 | D153: 0.556851312 | E153: 0.01728024042 | F153: 0.0650887574 | H153: 1.389736017 | I153: 0.587601208 | J153: 0.1429908899 | K153: -2.113470927 | L153: -1.513402246 | M153: =MMULT(H153:L153,TRANSPOSE(chol)) -> 0.008188584866 | N153: 0.006630182828 | O153: 0.002972078542 | P153: -0.008458170539 | Q153: -0.0070500019 | R153: 11406.10735 | S153: 369.7954764 | T153: -369.7954764 | V153: =MMULT(H153:L153,TRANSPOSE(racar)) -> 0.006146165969 | W153: 0.001610956747 | X153: 9.132370121e-05 | Y153: -0.01170789236 | Z153: -0.009430348255 | AA153: =SUMPRODUCT($V$9:$Z$9,V153:Z153) -> 18927.38994 | AB153: -1306.777424
A154: 144 | B154: 0.0658436214 | C154: 0.9216 | D154: 0.6997084548 | E154: 0.1081893313 | F154: 0.1420118343 | H154: -1.507481654 | I154: 1.415916341 | J154: 0.5235621827 | K154: -1.236214983 | L154: -1.07132423 | M154: =MMULT(H154:L154,TRANSPOSE(chol)) -> -0.00888236421 | N154: 0.004567289685 | O154: 0.001807594981 | P154: -0.00479991382 | Q154: -0.009918511359 | R154: -26587.09216 | S154: 32987.51262 | T154: -32987.51262 | V154: =MMULT(H154:L154,TRANSPOSE(racar)) -> -0.008317929893 | W154: 0.004798112065 | X154: 0.001805242538 | Y154: -0.006430891691 | Z154: -0.008279826598 | AA154: =SUMPRODUCT($V$9:$Z$9,V154:Z154) -> -41709.97179 | AB154: 16452.48439
A155: 145 | B155: 0.3991769547 | C155: 0.1616 | D155: 0.8425655977 | E155: 0.1990984222 | F155: 0.2189349112 | H155: -0.255478031 | I155: -0.9879033187 | J155: 1.005058245 | K155: -0.8448459697 | L155: -0.7757953627 | M155: =MMULT(H155:L155,TRANSPOSE(chol)) -> -0.001505324402 | N155: -0.006257912743 | O155: 0.005783348056 | P155: -0.005335932829 | Q155: -0.007196808441 | R155: 54135.64638 | S155: 15461.03342 | T155: -15461.03342 | V155: =MMULT(H155:L155,TRANSPOSE(racar)) -> -0.003084564612 | W155: -0.007393331325 | X155: 0.005292577132 | Y155: -0.005689265493 | Z155: -0.006599478301 | AA155: =SUMPRODUCT($V$9:$Z$9,V155:Z155) -> 46553.39266 | AB155: 10536.67859
A156: 146 | B156: 0.7325102881 | C156: 0.3616 | D156: 0.9854227405 | E156: 0.2900075131 | F156: 0.2958579882 | H156: 0.6204228632 | I156: -0.3541853259 | J156: 2.181390862 | K156: -0.5533627709 | L156: -0.5363510191 | M156: =MMULT(H156:L156,TRANSPOSE(chol)) -> 0.003655647695 | N156: -0.0005708088012 | O156: 0.01471462585 | P156: -0.001542829665 | Q156: -0.0008217879639 | R156: 52364.81983 | S156: -2503.604839 | T156: 2503.604839 | V156: =MMULT(H156:L156,TRANSPOSE(racar)) -> 0.00351598688 | W156: -0.001884127632 | X156: 0.01385148243 | Y156: -0.002818569028 | Z156: -0.002155255532 | AA156: =SUMPRODUCT($V$9:$Z$9,V156:Z156) -> 57872.10367 | AB156: -951.6538448
A157: 147 | B157: 0.1769547325 | C157: 0.5616 | D157: 0.008746355685 | E157: 0.3809166041 | F157: 0.3727810651 | H157: -0.9270328762 | I157: 0.1550270402 | J157: -2.376184549 | K157: -0.3030743408 | L157: -0.3244965548 | M157: =MMULT(H157:L157,TRANSPOSE(chol)) -> -0.00546225131 | N157: -0.001290106569 | O157: -0.01644094938 | P157: -0.003374924408 | Q157: -0.006807429469 | R157: -35573.63791 | S157: 22272.05411 | T157: -22272.05411 | V157: =MMULT(H157:L157,TRANSPOSE(racar)) -> -0.00683441396 | W157: -0.001310283925 | X157: -0.01621840142 | Y157: -0.002821427441 | Z157: -0.005000358434 | AA157: =SUMPRODUCT($V$9:$Z$9,V157:Z157) -> -48709.57783 | AB157: 14794.02253
A158: 148 | B158: 0.5102880658 | C158: 0.7616 | D158: 0.1516034985 | E158: 0.471825695 | F158: 0.449704142 | H158: 0.02579121578 | I158: 0.7114587563 | J158: -1.029580449 | K158: -0.07068131773 | L158: -0.1264088665 | M158: =MMULT(H158:L158,TRANSPOSE(chol)) -> 0.0001519666732 | N158: 0.004135101614 | O158: -0.006339279611 | P158: 0.0001635588453 | Q158: -0.0005163052466 | R158: -31836.78097 | S158: 3607.724217 | T158: -3607.724217 | V158: =MMULT(H158:L158,TRANSPOSE(racar)) -> 0.0001463881127 | W158: 0.003774233931 | X158: -0.006581809394 | Y158: -0.0002870457676 | Z158: -0.0007555960901 | AA158: =SUMPRODUCT($V$9:$Z$9,V158:Z158) -> -31347.59011 | AB158: 2872.5039
A159: 149 | B159: 0.8436213992 | C159: 0.9616 | D159: 0.2944606414 | E159: 0.5627347859 | F159: 0.5266272189 | H159: 1.009453479 | I159: 1.769562803 | J159: -0.5403998913 | K159: 0.1579065607 | L159: 0.06679417324 | M159: =MMULT(H159:L159,TRANSPOSE(chol)) -> 0.005947888937 | N159: 0.01250582637 | O159: -0.001534249658 | P159: 0.003978638267 | Q159: 0.005878620411 | R159: -54189.80116 | S159: -14366.66878 | T159: 14366.66878 | V159: =MMULT(H159:L159,TRANSPOSE(racar)) -> 0.007347459298 | W159: 0.01162572735 | X159: -0.002360426511 | Y159: 0.002330412221 | Z159: 0.003470710575 | AA159: =SUMPRODUCT($V$9:$Z$9,V159:Z159) -> -39484.57628 | AB159: -8566.879937
A160: 150 | B160: 0.2880658436 | C160: 0.0096 | D160: 0.4373177843 | E160: 0.6536438768 | F160: 0.6035502959 | H160: -0.5590440066 | I160: -2.34162491 | J160: -0.1577731352 | K160: 0.3951770259 | L160: 0.2625474498 | M160: =MMULT(H160:L160,TRANSPOSE(chol)) -> -0.003293991978 | N160: -0.01472383498 | O160: -0.002531819412 | P160: -0.00218034629 | Q160: -0.00320504614 | R160: 61296.13589 | S160: 7781.646696 | T160: -7781.646696 | V160: =MMULT(H160:L160,TRANSPOSE(racar)) -> -0.005272092246 | W160: -0.01393249936 | X160: -0.001664145474 | Y160: 0.0002154964493 | Z160: -0.001243375298 | AA160: =SUMPRODUCT($V$9:$Z$9,V160:Z160) -> 50377.81401 | AB160: 7872.406736
A161: 151 | B161: 0.621399177 | C161: 0.2096 | D161: 0.5801749271 | E161: 0.7445529677 | F161: 0.6804733728 | H161: 0.309157599 | I161: -0.8078099436 | J161: 0.2023410047 | K161: 0.6574461826 | L161: 0.4690229183 | M161: =MMULT(H161:L161,TRANSPOSE(chol)) -> 0.001821614468 | N161: -0.003899984116 | O161: 0.001446789973 | P161: 0.002374804987 | Q161: 0.003607439978 | R161: 22475.13486 | S161: -9121.201282 | T161: 9121.201282 | V161: =MMULT(H161:L161,TRANSPOSE(racar)) -> 0.001731884415 | W161: -0.003369566604 | X161: 0.00180843074 | Y161: 0.003345769851 | Z161: 0.003381384955 | AA161: =SUMPRODUCT($V$9:$Z$9,V161:Z161) -> 25931.03938 | AB161: -3428.851791
A162: 152 | B162: 0.9547325103 | C162: 0.4096 | D162: 0.72303207 | E162: 0.8354620586 | F162: 0.7573964497 | H162: 1.692582421 | I162: -0.2285740445 | J162: 0.5918726642 | K162: 0.9759769584 | L162: 0.6979521795 | M162: =MMULT(H162:L162,TRANSPOSE(chol)) -> 0.009973012592 | N162: 0.002667463444 | O162: 0.005989987848 | P162: 0.00614234151 | Q162: 0.01071819791 | R162: 15261.66679 | S162: -31277.93472 | T162: 31277.93472 | V162: =MMULT(H162:L162,TRANSPOSE(racar)) -> 0.01068439935 | W162: 0.002141950201 | X162: 0.005526902947 | Y162: 0.006100950011 | Z162: 0.007878319959 | AA162: =SUMPRODUCT($V$9:$Z$9,V162:Z162) -> 35621.95246 | AB162: -15737.41184
A163: 153 | B163: 0.1028806584 | C163: 0.6096 | D163: 0.8658892128 | E163: 0.9263711495 | F163: 0.8343195266 | H163: -1.265306948 | I163: 0.2782766488 | J163: 1.107167365 | K163: 1.449286101 | L163: 0.9713762584 | M163: =MMULT(H163:L163,TRANSPOSE(chol)) -> -0.007455425489 | N163: -0.001378989663 | O163: 0.005503137024 | P163: 0.0073262841 | Q163: 0.005621316448 | R163: -11661.40491 | S163: 2367.402026 | T163: -2367.402026 | V163: =MMULT(H163:L163,TRANSPOSE(racar)) -> -0.004676901875 | W163: 0.002876889294 | X163: 0.007734753216 | Y163: 0.008900181321 | Z163: 0.007164265646 | AA163: =SUMPRODUCT($V$9:$Z$9,V163:Z163) -> -16513.80041 | AB163: 1018.637907
A164: 154 | B164: 0.4362139918 | C164: 0.8096 | D164: 0.02915451895 | E164: 0.02554470323 | F164: 0.9112426036 | H164: -0.1605752068 | I164: 0.8764232195 | J164: -1.893367323 | K164: -1.950728036 | L164: 1.348446574 | M164: =MMULT(H164:L164,TRANSPOSE(chol)) -> -0.0009461391893 | N164: 0.0046420058 | O164: -0.01207842288 | P164: -0.009584510939 | Q164: 0.002889814936 | R164: -116620.4552 | S164: -59836.67221 | T164: 59836.67221 | V164: =MMULT(H164:L164,TRANSPOSE(racar)) -> 0.000385888644 | W164: 0.004348770519 | X164: -0.01196417929 | Y164: -0.008370937336 | Z164: 0.005747281296 | AA164: =SUMPRODUCT($V$9:$Z$9,V164:Z164) -> -119028.6462 | AB164: -70114.1901
A165: 155 | B165: 0.7695473251 | C165: 0.0496 | D165: 0.1720116618 | E165: 0.1164537941 | F165: 0.9881656805 | H165: 0.7373568811 | I165: -1.648744448 | J165: -0.9462456181 | K165: -1.192902428 | L165: 2.262465808 | M165: =MMULT(H165:L165,TRANSPOSE(chol)) -> 0.004344644827 | N165: -0.007709998929 | O165: -0.005628303833 | P165: -0.008481672863 | Q165: 0.008808768609 | R165: -42015.58319 | S165: -87577.86732 | T165: 87577.86732 | V165: =MMULT(H165:L165,TRANSPOSE(racar)) -> 0.004633335241 | W165: -0.007837514198 | X165: -0.005142617538 | Y165: -0.005047137679 | Z165: 0.01146121696 | AA165: =SUMPRODUCT($V$9:$Z$9,V165:Z165) -> -37868.18215 | AB165: -86563.28355
A166: 156 | B166: 0.2139917695 | C166: 0.2496 | D166: 0.3148688047 | E166: 0.207362885 | F166: 0.07100591716 | H166: -0.7926469626 | I166: -0.6757490312 | J166: -0.4820961998 | K166: -0.8156055571 | L166: -1.468340208 | M166: =MMULT(H166:L166,TRANSPOSE(chol)) -> -0.004670424341 | N166: -0.005732220498 | O166: -0.004377946482 | P166: -0.005993087184 | Q166: -0.01323235049 | R166: 43065.79874 | S166: 45886.12579 | T166: -45886.12579 | V166: =MMULT(H166:L166,TRANSPOSE(racar)) -> -0.0074947339 | W166: -0.007235315079 | X166: -0.005016159807 | Y166: -0.006717975983 | Z166: -0.01227552841 | AA166: =SUMPRODUCT($V$9:$Z$9,V166:Z166) -> 27595.36444 | AB166: 37271.44229
A167: 157 | B167: 0.5473251029 | C167: 0.4496 | D167: 0.4577259475 | E167: 0.298271976 | F167: 0.1479289941 | H167: 0.1189060428 | I167: -0.1266720102 | J167: -0.1061644264 | K167: -0.5293769973 | L167: -1.045357031 | M167: =MMULT(H167:L167,TRANSPOSE(chol)) -> 0.0007006166717 | N167: -0.0004460935326 | O167: -0.0005638353809 | P167: -0.00280133134 | Q167: -0.0065762607 | R167: 27741.1779 | S167: 23614.69186 | T167: -23614.69186 | V167: =MMULT(H167:L167,TRANSPOSE(racar)) -> -0.000984917914 | W167: -0.002220109839 | X167: -0.001538729234 | Y167: -0.004018800694 | Z167: -0.007250384725 | AA167: =SUMPRODUCT($V$9:$Z$9,V167:Z167) -> 24842.75287 | AB167: 21781.07373
A168: 158 | B168: 0.8806584362 | C168: 0.6496 | D168: 0.6005830904 | E168: 0.3891810669 | F168: 0.224852071 | H168: 1.178284694 | I168: 0.3842407743 | J168: 0.2548566499 | K168: -0.2814540932 | L168: -0.7559083588 | M168: =MMULT(H168:L168,TRANSPOSE(chol)) -> 0.006942674073 | N168: 0.004968764796 | O168: 0.003339968901 | P168: 0.0002448810464 | Q168: -0.0003508947324 | R168: 17692.90076 | S168: 3063.420454 | T168: -3063.420454 | V168: =MMULT(H168:L168,TRANSPOSE(racar)) -> 0.006125798833 | W168: 0.002544043292 | X168: 0.001811103417 | Y168: -0.001678631628 | Z168: -0.002968860198 | AA168: =SUMPRODUCT($V$9:$Z$9,V168:Z168) -> 28290.98202 | AB168: 8767.792608
A169: 159 | B169: 0.3251028807 | C169: 0.8496 | D169: 0.7434402332 | E169: 0.4800901578 | F169: 0.3017751479 | H169: -0.4534763613 | I169: 1.034719343 | J169: 0.6539880051 | K169: -0.04992730831 | L169: -0.5193018036 | M169: =MMULT(H169:L169,TRANSPOSE(chol)) -> -0.002671967642 | N169: 0.004860431078 | O169: 0.003930634775 | P169: 0.001392849333 | Q169: -0.00208914642 | R169: -9559.443471 | S169: 17941.12225 | T169: -17941.12225 | V169: =MMULT(H169:L169,TRANSPOSE(racar)) -> -0.001789057927 | W169: 0.005252387592 | X169: 0.003923042964 | Y169: 0.0001628202555 | Z169: -0.002381638831 | AA169: =SUMPRODUCT($V$9:$Z$9,V169:Z169) -> -11521.44177 | AB169: 13936.24775
A170: 160 | B170: 0.658436214 | C170: 0.0896 | D170: 0.8862973761 | E170: 0.5709992487 | F170: 0.3786982249 | H170: 0.408199014 | I170: -1.343222309 | J170: 1.207069842 | K170: 0.1789187466 | L170: -0.3089015079 | M170: =MMULT(H170:L170,TRANSPOSE(chol)) -> 0.002405185033 | N170: -0.006733593949 | O170: 0.007851666229 | P170: -0.0001675265822 | Q170: -0.001177749942 | R170: 69727.19443 | S170: 5757.337963 | T170: -5757.337963 | V170: =MMULT(H170:L170,TRANSPOSE(racar)) -> 0.001177241293 | W170: -0.007401435651 | X170: 0.00755190385 | Y170: -4.32251954e-05 | Z170: -0.001860269844 | AA170: =SUMPRODUCT($V$9:$Z$9,V170:Z170) -> 71114.69208 | AB170: 10106.18339
A171: 161 | B171: 0.9917695473 | C171: 0.2896 | D171: 0.04956268222 | E171: 0.6619083396 | F171: 0.4556213018 | H171: 2.398532729 | I171: -0.5545536495 | J171: -1.649108716 | K171: 0.4176769588 | L171: -0.1114713246 | M171: =MMULT(H171:L171,TRANSPOSE(chol)) -> 0.01413260401 | N171: 0.002459123771 | O171: -0.007554806314 | P171: 0.00207961081 | Q171: 0.004977635895 | R171: 16202.34753 | S171: -18060.51528 | T171: 18060.51528 | V171: =MMULT(H171:L171,TRANSPOSE(racar)) -> 0.0119152954 | W171: -0.001007334968 | X171: -0.009458618755 | Y171: 0.001367493753 | Z171: 0.00123274378 | AA171: =SUMPRODUCT($V$9:$Z$9,V171:Z171) -> 36546.21632 | AB171: -574.4560352
A172: 162 | B172: 0.008230452675 | C172: 0.4896 | D172: 0.1924198251 | E172: 0.7528174305 | F172: 0.5325443787 | H172: -2.398532729 | I172: -0.02607188745 | J172: -0.8690136767 | K172: 0.6833825573 | L172: 0.0816673499 | M172: =MMULT(H172:L172,TRANSPOSE(chol)) -> -0.01413260401 | N172: -0.005784353338 | O172: -0.008797835775 | P172: 0.001015639804 | Q172: -0.006081598861 | R172: -18195.31589 | S172: 38329.93664 | T172: -38329.93664 | V172: =MMULT(H172:L172,TRANSPOSE(racar)) -> -0.01375365477 | W172: -0.002259601048 | X172: -0.006667867858 | Y172: 0.002801636405 | Z172: -0.002432963032 | AA172: =SUMPRODUCT($V$9:$Z$9,V172:Z172) -> -41280.40601 | AB172: 26287.91637
A173: 163 | B173: 0.341563786 | C173: 0.6896 | D173: 0.3352769679 | E173: 0.8437265214 | F173: 0.6094674556 | H173: -0.408199014 | I173: 0.494716858 | J173: -0.4253878855 | K173: 1.009892164 | L173: 0.2779313097 | M173: =MMULT(H173:L173,TRANSPOSE(chol)) -> -0.002405185033 | N173: 0.001874222058 | O173: -0.003113988369 | P173: 0.005227714973 | Q173: 0.002603885878 | R173: -18503.36104 | S173: 9483.833873 | T173: -9483.833873 | V173: =MMULT(H173:L173,TRANSPOSE(racar)) -> -0.001463819464 | W173: 0.003528250301 | X173: -0.002298431208 | Y173: 0.005640341845 | Z173: 0.002633117204 | AA173: =SUMPRODUCT($V$9:$Z$9,V173:Z173) -> -18898.95153 | AB173: 11208.88001
A174: 164 | B174: 0.6748971193 | C174: 0.8896 | D174: 0.4781341108 | E174: 0.9346356123 | F174: 0.6863905325 | H174: 0.4534763613 | I174: 1.224403632 | J174: -0.05483712731 | K174: 1.511234264 | L174: 0.48564493 | M174: =MMULT(H174:L174,TRANSPOSE(chol)) -> 0.002671967642 | N174: 0.008077516074 | O174: 0.0006582335543 | P174: 0.00972801869 | Q174: 0.008628443872 | R174: -30445.80295 | S174: -3305.576538 | T174: 3305.576538 | V174: =MMULT(H174:L174,TRANSPOSE(racar)) -> 0.004709697959 | W174: 0.009509218398 | X174: 0.001103707452 | Y174: 0.009325343283 | Z174: 0.006673981022 | AA174: =SUMPRODUCT($V$9:$Z$9,V174:Z174) -> -18312.25788 | AB174: 5678.555671
A175: 165 | B175: 0.1193415638 | C175: 0.1296 | D175: 0.6209912536 | E175: 0.03380916604 | F175: 0.7633136095 | H175: -1.178284694 | I175: -1.128283996 | J175: 0.308085213 | K175: -1.827541902 | L175: 0.7170021321 | M175: =MMULT(H175:L175,TRANSPOSE(chol)) -> -0.006942674073 | N175: -0.00922988382 | O175: 2.819059438e-05 | P175: -0.01155708325 | Q175: -0.004493774659 | R175: -12918.37959 | S175: -27960.32321 | T175: 27960.32321 | V175: =MMULT(H175:L175,TRANSPOSE(racar)) -> -0.007026764265 | W175: -0.008597213194 | X175: 0.0008421013549 | Y175: -0.009510125729 | Z175: -0.0001327886961 | AA175: =SUMPRODUCT($V$9:$Z$9,V175:Z175) -> -29359.68969 | AB175: -42754.59906
A176: 166 | B176: 0.4526748971 | C176: 0.3296 | D176: 0.7638483965 | E176: 0.1247182569 | F176: 0.8402366864 | H176: -0.1189060428 | I176: -0.4410179529 | J176: 0.7187366338 | K176: -1.151719117 | L176: 0.9954311243 | M176: =MMULT(H176:L176,TRANSPOSE(chol)) -> -0.0007006166717 | N176: -0.002805054291 | O176: 0.004308563745 | P176: -0.006079894296 | Q176: 0.002789523999 | R176: -21931.01366 | S176: -43254.44883 | T176: 43254.44883 | V176: =MMULT(H176:L176,TRANSPOSE(racar)) -> 0.0003589942346 | W176: -0.002429031089 | X176: 0.004711948322 | Y176: -0.004840748546 | Z176: 0.004793735956 | AA176: =SUMPRODUCT($V$9:$Z$9,V176:Z176) -> -23448.08855 | AB176: -48688.93143
A177: 167 | B177: 0.7860082305 | C177: 0.5296 | D177: 0.9067055394 | E177: 0.2156273479 | F177: 0.9171597633 | H177: 0.7926469626 | I177: 0.07426440435 | J177: 1.320737453 | K177: -0.7870464151 | L177: 1.386217585 | M177: =MMULT(H177:L177,TRANSPOSE(chol)) -> 0.004670424341 | N177: 0.002287531385 | O177: 0.00956248724 | P177: -0.002417111938 | Q177: 0.009558070662 | R177: -31297.75247 | S177: -63994.75145 | T177: 63994.75145 | V177: =MMULT(H177:L177,TRANSPOSE(racar)) -> 0.006929960383 | W177: 0.002478342446 | X177: 0.009655184233 | Y177: -0.001724846053 | Z177: 0.009818259939 | AA177: =SUMPRODUCT($V$9:$Z$9,V177:Z177) -> -19956.89656 | AB177: -62270.16096
A178: 168 | B178: 0.2304526749 | C178: 0.7296 | D178: 0.06997084548 | E178: 0.3065364388 | F178: 0.9940828402 | H178: -0.7373568811 | I178: 0.6116036841 | J178: -1.4760082 | K178: -0.5056920109 | L178: 2.517046542 | M178: =MMULT(H178:L178,TRANSPOSE(chol)) -> -0.004344644827 | N178: 0.001770316784 | O178: -0.01025927925 | P178: -0.00300082401 | Q178: 0.010172725 | R178: -123520.0845 | S178: -70068.59555 | T178: 70068.59555 | V178: =MMULT(H178:L178,TRANSPOSE(racar)) -> -0.001115615511 | W178: 0.004739515385 | X178: -0.008350676769 | Y178: 0.0001566419831 | Z178: 0.014012724 | AA178: =SUMPRODUCT($V$9:$Z$9,V178:Z178) -> -126034.7764 | AB178: -76898.78536
A179: 169 | B179: 0.5637860082 | C179: 0.9296 | D179: 0.2128279883 | E179: 0.3974455297 | F179: 0.0004551661356 | H179: 0.1605752068 | I179: 1.472818435 | J179: -0.7966471657 | K179: -0.2599646269 | L179: -3.31686612 | M179: =MMULT(H179:L179,TRANSPOSE(chol)) -> 0.0009461391893 | N179: 0.008812049033 | O179: -0.004413246339 | P179: 0.0006411309302 | Q179: -0.01634175096 | R179: 42532.06258 | S179: 93447.27946 | T179: -93447.27946 | V179: =MMULT(H179:L179,TRANSPOSE(racar)) -> -0.002372757532 | W179: 0.004914704917 | X179: -0.006949356601 | Y179: -0.004180136727 | Z179: -0.01994074858 | AA179: =SUMPRODUCT($V$9:$Z$9,V179:Z179) -> 38897.17218 | AB179: 91333.96893
A180: 170 | B180: 0.8971193416 | C180: 0.1696 | D180: 0.3556851312 | E180: 0.4883546206 | F180: 0.07737824306 | H180: 1.265306948 | I180: -0.9557471402 | J180: -0.3700164114 | K180: -0.02919478407 | L180: -1.42292987 | M180: =MMULT(H180:L180,TRANSPOSE(chol)) -> 0.007455425489 | N180: -0.00250086881 | O180: -0.0009949775204 | P180: -0.0008769149311 | Q180: -0.005806463711 | R180: 72645.50711 | S180: 28151.27777 | T180: -28151.27777 | V180: =MMULT(H180:L180,TRANSPOSE(racar)) -> 0.004037202689 | W180: -0.006007145193 | X180: -0.002914870718 | Y180: -0.002484365184 | Z180: -0.008622418613 | AA180: =SUMPRODUCT($V$9:$Z$9,V180:Z180) -> 78405.77012 | AB180: 36397.6575
A181: 171 | B181: 0.04526748971 | C181: 0.3696 | D181: 0.4985422741 | E181: 0.5792637115 | F181: 0.15430132 | H181: -1.692582421 | I181: -0.3329129418 | J181: -0.003653985208 | K181: 0.2000102343 | L181: -1.018158496 | M181: =MMULT(H181:L181,TRANSPOSE(chol)) -> -0.009973012592 | N181: -0.005883086956 | O181: -0.002399521538 | P181: -0.0008153878668 | Q181: -0.0106008261 | R181: 33349.18005 | S181: 54988.14948 | T181: -54988.14948 | V181: =MMULT(H181:L181,TRANSPOSE(racar)) -> -0.01115665309 | W181: -0.004685280626 | X181: -0.001644623801 | Y181: -0.0007346715765 | Z181: -0.008762174628 | AA181: =SUMPRODUCT($V$9:$Z$9,V181:Z181) -> 13837.05297 | AB181: 45173.15611
A182: 172 | B182: 0.378600823 | C182: 0.5696 | D182: 0.6413994169 | E182: 0.6701728024 | F182: 0.2312243969 | H182: -0.309157599 | I182: 0.1753558877 | J182: 0.3622018915 | K182: 0.4403903745 | L182: -0.7348205437 | M182: =MMULT(H182:L182,TRANSPOSE(chol)) -> -0.001821614468 | N182: 0.0002779337697 | O182: 0.001968368135 | P182: 0.00243953329 | Q182: -0.003472129452 | R182: 25334.05867 | S182: 30387.84912 | T182: -30387.84912 | V182: =MMULT(H182:L182,TRANSPOSE(racar)) -> -0.002234628024 | W182: 0.0003918598764 | X182: 0.001907700369 | Y182: 0.001617936983 | Z182: -0.004103978118 | AA182: =SUMPRODUCT($V$9:$Z$9,V182:Z182) -> 22459.54532 | AB182: 30130.41174
A183: 173 | B183: 0.7119341564 | C183: 0.7696 | D183: 0.7842565598 | E183: 0.7610818933 | F183: 0.3081474738 | H183: 0.5590440066 | I183: 0.737530175 | J183: 0.7866498303 | K183: 0.7097870298 | L183: -0.5011082405 | M183: =MMULT(H183:L183,TRANSPOSE(chol)) -> 0.003293991978 | N183: 0.005537220022 | O183: 0.006040119877 | P183: 0.005563302887 | Q183: 0.002064020351 | R183: 15482.95373 | S183: 14008.7505 | T183: -14008.7505 | V183: =MMULT(H183:L183,TRANSPOSE(racar)) -> 0.003821680054 | W183: 0.005235260041 | X183: 0.005549361995 | Y183: 0.004034513164 | Z183: -0.0003022381134 | AA183: =SUMPRODUCT($V$9:$Z$9,V183:Z183) -> 24375.47578 | AB183: 20124.02251
A184: 174 | B184: 0.1563786008 | C184: 0.9696 | D184: 0.9271137026 | E184: 0.8519909842 | F184: 0.3850705508 | H184: -1.009453479 | I184: 1.874947111 | J184: 1.454626846 | K184: 1.045010684 | L184: -0.2921903342 | M184: =MMULT(H184:L184,TRANSPOSE(chol)) -> -0.005947888937 | N184: 0.008366201044 | O184: 0.008601226727 | P184: 0.008187856518 | Q184: 0.001530827993 | R184: -20165.3215 | S184: 28964.217 | T184: -28964.217 | V184: =MMULT(H184:L184,TRANSPOSE(racar)) -> -0.003095892787 | W184: 0.01103349 | X184: 0.009596073798 | Y184: 0.006884698597 | Z184: 0.001012779752 | AA184: =SUMPRODUCT($V$9:$Z$9,V184:Z184) -> -21323.98011 | AB184: 25874.2538
A185: 175 | B185: 0.4897119342 | C185: 0.0176 | D185: 0.09037900875 | E185: 0.9429000751 | F185: 0.4619936277 | H185: -0.02579121578 | I185: -2.106050108 | J185: -1.338424743 | K185: 1.579594107 | L185: -0.09541241497 | M185: =MMULT(H185:L185,TRANSPOSE(chol)) -> -0.0001519666732 | N185: -0.01212189534 | O185: -0.009317764186 | P185: 0.003788470106 | Q185: -0.001979894645 | R185: 66781.03958 | S185: 28291.2361 | T185: -28291.2361 | V185: =MMULT(H185:L185,TRANSPOSE(racar)) -> -0.002934115684 | W185: -0.01170413873 | X185: -0.008772748259 | Y185: 0.005691606195 | Z185: -0.001963147285 | AA185: =SUMPRODUCT($V$9:$Z$9,V185:Z185) -> 61817.66104 | AB185: 36901.57502
A186: 176 | B186: 0.8230452675 | C186: 0.2176 | D186: 0.2332361516 | E186: 0.04207362885 | F186: 0.5389167046 | H186: 0.9270328762 | I186: -0.7803243222 | J186: -0.7282308188 | K186: -1.727113633 | L186: 0.09770494248 | M186: =MMULT(H186:L186,TRANSPOSE(chol)) -> 0.00546225131 | N186: -0.002290957091 | O186: -0.003689281195 | P186: -0.009521052652 | Q186: -0.001813731604 | R186: -5651.942709 | S186: -33493.9891 | T186: 33493.9891 | V186: =MMULT(H186:L186,TRANSPOSE(racar)) -> 0.003805383647 | W186: -0.005189840659 | X186: -0.004999251189 | Y186: -0.009422799908 | Z186: -0.001476610048 | AA186: =SUMPRODUCT($V$9:$Z$9,V186:Z186) -> -3099.720034 | AB186: -34911.95971
A187: 177 | B187: 0.2674897119 | C187: 0.4176 | D187: 0.3760932945 | E187: 0.1329827198 | F187: 0.6158397815 | H187: -0.6204228632 | I187: -0.2080370992 | J187: -0.3157574869 | K187: -1.11240178 | L187: 0.2945725462 | M187: =MMULT(H187:L187,TRANSPOSE(chol)) -> -0.003655647695 | N187: -0.002649026553 | O187: -0.002925825303 | P187: -0.006515731021 | Q187: -0.002907197114 | R187: -24023.79854 | S187: -13693.96018 | T187: 13693.96018 | V187: =MMULT(H187:L187,TRANSPOSE(racar)) -> -0.003693529669 | W187: -0.002579202686 | X187: -0.002662100844 | Y187: -0.005721655869 | Z187: -0.0006643563977 | AA187: =SUMPRODUCT($V$9:$Z$9,V187:Z187) -> -32712.1881 | AB187: -22485.50603
A188: 178 | B188: 0.6008230453 | C188: 0.6176 | D188: 0.5189504373 | E188: 0.2238918107 | F188: 0.6927628584 | H188: 0.255478031 | I188: 0.29918355 | J188: 0.04751958002 | K188: -0.7591152434 | L188: 0.503697048 | M188: =MMULT(H188:L188,TRANSPOSE(chol)) -> 0.001505324402 | N188: 0.002313629908 | O188: 0.0007455508554 | P188: -0.003089887914 | Q188: 0.002540656081 | R188: -31249.90223 | S188: -28202.60086 | T188: 28202.60086 | V188: =MMULT(H188:L188,TRANSPOSE(racar)) -> 0.002297585257 | W188: 0.001971893039 | X188: 0.0005859275616 | Y188: -0.002972885424 | Z188: 0.002989615064 | AA188: =SUMPRODUCT($V$9:$Z$9,V188:Z188) -> -28216.9328 | AB188: -30154.28491
A189: 179 | B189: 0.9341563786 | C189: 0.8176 | D189: 0.6618075802 | E189: 0.3148009016 | F189: 0.7696859354 | H189: 1.507481654 | I189: 0.9062566966 | J189: 0.4174013882 | K189: -0.4822873911 | L189: 0.7378129393 | M189: =MMULT(H189:L189,TRANSPOSE(chol)) -> 0.00888236421 | N189: 0.008731743778 | O189: 0.004995810887 | P189: 0.0004013622183 | Q189: 0.009241634339 | R189: -40951.83341 | S189: -49353.0709 | T189: 49353.0709 | V189: =MMULT(H189:L189,TRANSPOSE(racar)) -> 0.01052933737 | W189: 0.007476424869 | X189: 0.004100286945 | Y189: -0.0004317295973 | Z189: 0.007316547868 | AA189: =SUMPRODUCT($V$9:$Z$9,V189:Z189) -> -22321.52257 | AB189: -42499.95931
A190: 180 | B190: 0.08230452675 | C190: 0.0576 | D190: 0.804664723 | E190: 0.4057099925 | F190: 0.8466090123 | H190: -1.389736017 | I190: -1.575244583 | J190: 0.8584019451 | K190: -0.2385945585 | L190: 1.021997729 | M190: =MMULT(H190:L190,TRANSPOSE(chol)) -> -0.008188584866 | N190: -0.01228639452 | O190: 0.003129936803 | P190: -0.004182256437 | Q190: -0.0006996918193 | R190: 17002.35208 | S190: -15250.06476 | T190: 15250.06476 | V190: =MMULT(H190:L190,TRANSPOSE(racar)) -> -0.007696351717 | W190: -0.009678030417 | X190: 0.004954936173 | Y190: -0.001280082374 | Z190: 0.003222124079 | AA190: =SUMPRODUCT($V$9:$Z$9,V190:Z190) -> 1946.154382 | AB190: -23700.88836
A191: 181 | B191: 0.4156378601 | C191: 0.2576 | D191: 0.9475218659 | E191: 0.4966190834 | F191: 0.9235320892 | H191: -0.2130656969 | I191: -0.650762207 | J191: 1.621286223 | K191: -0.008474802599 | L191: 1.429238061 | M191: =MMULT(H191:L191,TRANSPOSE(chol)) -> -0.001255422987 | N191: -0.004227470822 | O191: 0.009906105228 | P191: -0.0002579014799 | Q191: 0.00744585548 | R191: -3034.187534 | S191: -42421.26016 | T191: 42421.26016 | V191: =MMULT(H191:L191,TRANSPOSE(racar)) -> 0.0008798152915 | W191: -0.00211046452 | X191: 0.01116378548 | Y191: 0.001615312456 | Z191: 0.009088012698 | AA191: =SUMPRODUCT($V$9:$Z$9,V191:Z191) -> -1499.513981 | AB191: -42950.74314
A192: 182 | B192: 0.7489711934 | C192: 0.4576 | D192: 0.110787172 | E192: 0.5875281743 | F192: 0.006372325899 | H192: 0.6712557587 | I192: -0.1064819195 | J192: -1.222352526 | K192: 0.2211910839 | L192: -2.490825998 | M192: =MMULT(H192:L192,TRANSPOSE(chol)) -> 0.003955164635 | N192: 0.0009672083778 | O192: -0.006981355684 | P192: 0.0007282426328 | Q192: -0.01226032518 | R192: 67767.13266 | S192: 71239.02396 | T192: -71239.02396 | V192: =MMULT(H192:L192,TRANSPOSE(racar)) -> -0.0002296689302 | W192: -0.002762650492 | X192: -0.009150711539 | Y192: -0.002152947917 | Z192: -0.01549022974 | AA192: =SUMPRODUCT($V$9:$Z$9,V192:Z192) -> 67016.78483 | AB192: 75953.37628
A193: 183 | B193: 0.1934156379 | C193: 0.6576 | D193: 0.2536443149 | E193: 0.6784372652 | F193: 0.08329540282 | H193: -0.865378139 | I193: 0.4059218812 | J193: -0.6630654616 | K193: 0.4633333149 | L193: -1.383241575 | M193: =MMULT(H193:L193,TRANSPOSE(chol)) -> -0.005098970052 | N193: 0.000291612393 | O193: -0.00528085021 | P193: 0.001882156015 | Q193: -0.009072858268 | R193: 21362.09684 | S193: 58860.83705 | T193: -58860.83705 | V193: =MMULT(H193:L193,TRANSPOSE(racar)) -> -0.006526379448 | W193: 0.0002153150256 | X193: -0.005408797871 | Y193: 0.0007055393065 | Z193: -0.00931832592 | AA193: =SUMPRODUCT($V$9:$Z$9,V193:Z193) -> 10875.73202 | AB193: 54839.75343
A194: 184 | B194: 0.5267489712 | C194: 0.8576 | D194: 0.3965014577 | E194: 0.7693463561 | F194: 0.1602184797 | H194: 0.06710004558 | I194: 1.069598657 | J194: -0.2624131761 | K194: 0.7366959213 | L194: -0.9935603421 | M194: =MMULT(H194:L194,TRANSPOSE(chol)) -> 0.0003953660342 | N194: 0.006283210593 | O194: -0.001242346008 | P194: 0.005217921468 | Q194: -0.002362725819 | R194: 3920.923216 | S194: 36948.62653 | T194: -36948.62653 | V194: =MMULT(H194:L194,TRANSPOSE(racar)) -> 0.0001891001688 | W194: 0.005893694161 | X194: -0.001754181514 | Y194: 0.003408640164 | Z194: -0.004351081739 | AA194: =SUMPRODUCT($V$9:$Z$9,V194:Z194) -> 6465.31381 | AB194: 39688.03635
A195: 185 | B195: 0.8600823045 | C195: 0.0976 | D195: 0.5393586006 | E195: 0.860255447 | F195: 0.2371415567 | H195: 1.080689195 | I195: -1.295348602 | J195: 0.09881797189 | K195: 1.081467734 | L195: -0.7155275665 | M195: =MMULT(H195:L195,TRANSPOSE(chol)) -> 0.006367623116 | N195: -0.00487949421 | O195: 0.001655070132 | P195: 0.004257393852 | Q195: -0.0005642436929 | R195: 80505.26124 | S195: 22594.48627 | T195: -22594.48627 | V195: =MMULT(H195:L195,TRANSPOSE(racar)) -> 0.004026126149 | W195: -0.006407810339 | X195: 0.0008032285776 | Y195: 0.003838411108 | Z195: -0.003183446986 | AA195: =SUMPRODUCT($V$9:$Z$9,V195:Z195) -> 88071.94709 | AB195: 35185.97711
A196: 186 | B196: 0.304526749 | C196: 0.2976 | D196: 0.6822157434 | E196: 0.9511645379 | F196: 0.3140646336 | H196: -0.5114249929 | I196: -0.5313157398 | J196: 0.4739037946 | K196: 1.65625137 | L196: -0.4843615979 | M196: =MMULT(H196:L196,TRANSPOSE(chol)) -> -0.003013411832 | N196: -0.004244359857 | O196: 0.002181869592 | P196: 0.007304909356 | Q196: -0.001415865482 | R196: 54176.31081 | S196: 41247.92026 | T196: -41247.92026 | V196: =MMULT(H196:L196,TRANSPOSE(racar)) -> -0.003505383279 | W196: -0.002711416371 | X196: 0.002934093125 | Y196: 0.007512937243 | Z196: -0.002077537331 | AA196: =SUMPRODUCT($V$9:$Z$9,V196:Z196) -> 50561.2284 | AB196: 45864.17426
A197: 187 | B197: 0.6378600823 | C197: 0.4976 | D197: 0.8250728863 | E197: 0.05033809166 | F197: 0.3909877105 | H197: 0.3527447127 | I197: -0.006015944147 | J197: 0.9348720798 | K197: -1.641584301 | L197: -0.2767456443 | M197: =MMULT(H197:L197,TRANSPOSE(chol)) -> 0.002078437905 | N197: 0.0007942745758 | O197: 0.006470478468 | P197: -0.007355638001 | Q197: -0.002768919132 | R197: 2684.670436 | S197: -18300.78938 | T197: 18300.78938 | V197: =MMULT(H197:L197,TRANSPOSE(racar)) -> 0.001834008341 | W197: -0.001063924286 | X197: 0.005481032406 | Y197: -0.008273032337 | Z197: -0.002564312911 | AA197: =SUMPRODUCT($V$9:$Z$9,V197:Z197) -> 3292.367634 | AB197: -23629.35634
A198: 188 | B198: 0.9711934156 | C198: 0.6976 | D198: 0.9679300292 | E198: 0.1412471826 | F198: 0.4679107874 | H198: 1.89862979 | I198: 0.5175102723 | J198: 1.851205869 | K198: -1.07473282 | L198: -0.08052265975 | M198: =MMULT(H198:L198,TRANSPOSE(chol)) -> 0.01118708228 | N198: 0.007424353226 | O198: 0.01459395998 | P198: -0.00200476637 | Q198: 0.005467595761 | R198: 9115.397614 | S198: -39452.34 | T198: 39452.34 | V198: =MMULT(H198:L198,TRANSPOSE(racar)) -> 0.01193314541 | W198: 0.00460354785 | X198: 0.01276287222 | Y198: -0.004116312377 | Z198: 0.002510503018 | AA198: =SUMPRODUCT($V$9:$Z$9,V198:Z198) -> 29185.4186 | AB198: -32729.45719
A199: 189 | B199: 0.02057613169 | C199: 0.8976 | D199: 0.1311953353 | E199: 0.2321562735 | F199: 0.5448338644 | H199: -2.04199262 | I199: 1.267994261 | J199: -1.120758507 | K199: -0.7317641288 | L199: 0.1126194412 | M199: =MMULT(H199:L199,TRANSPOSE(chol)) -> -0.01203180292 | N199: 0.002464379326 | O199: -0.009510256226 | P199: -0.003896094429 | Q199: -0.00575719924 | R199: -76361.29097 | S199: 14071.60429 | T199: -14071.60429 | V199: =MMULT(H199:L199,TRANSPOSE(racar)) -> -0.01074464249 | W199: 0.004594231272 | X199: -0.008243637832 | Y199: -0.003320756635 | Z199: -0.002172829448 | AA199: =SUMPRODUCT($V$9:$Z$9,V199:Z199) -> -95452.63015 | AB199: -3150.833286
A200: 190 | B200: 0.353909465 | C200: 0.1376 | D200: 0.2740524781 | E200: 0.3230653644 | F200: 0.6217569413 | H200: -0.3747869371 | I200: -1.091165649 | J200: -0.6006022241 | K200: -0.4591440457 | L200: 0.3100984151 | M200: =MMULT(H200:L200,TRANSPOSE(chol)) -> -0.002208314819 | N200: -0.007129594552 | O200: -0.004715690115 | P200: -0.004613820145 | Q200: -0.002469372771 | R200: 7328.695406 | S200: -7421.528607 | T200: 7421.528607 | V200: =MMULT(H200:L200,TRANSPOSE(racar)) -> -0.003259646287 | W200: -0.007089140212 | X200: -0.004371861446 | Y200: -0.003170474126 | Z200: -0.0006311389362 | AA200: =SUMPRODUCT($V$9:$Z$9,V200:Z200) -> -456.5371721 | AB200: -11002.86032
... 1849 more rows
